Workbook

Sheet Eingabe
A1: Titrationskurven | H1: Berücksichtigung der Verdünnung | K1: x-Achse | N1: y-Achse
K2: Minimum | L2: 0 | N2: Minimum | O2: 0
A3: Probenvolumen | K3: Maximum | L3: 25 | N3: Maximum | O3: 14
A4: Vp [mL] | B4: 100
A6: Säure 1
A7: c0 [mol/L] | B7: 0.1
A8: pKS1 | B8: -8
A9: pKS2
A10: pKS3
A12: Säure 2
A13: c0 [mol/L] | B13: 0.1
A14: pKS1 | B14: -8
A15: pKS2
A16: pKS3
A18: Titrans
A19: cT [mol/L] | B19: 2
A20: pKS1 | B20: 20
A21: pKS2
A22: pKS3
A23: =pKS-Werte der konjugierten Säuren

Sheet Speziierung
A1: Speziierung von Säure 1 oder Base 1
A2: zudem [H+] und [OH-] | D2: c | E2: =Berechnung!F2 -> 0.1
A3: sowie Titrationskurve | D3: pK1 | E3: =Berechnung!F3 -> -8
A4: letztere sind nur korrekt, wenn | D4: pK2 | E4: =Berechnung!F4 -> 30
A5: unter "Eingabe" die konzentration von Säure 2 | D5: pK3 | E5: =Berechnung!F5 -> 30
A6: Null gesetzt wird | E6: Relative Anteile | I6: ohne Verdünnung | M6: Mit Verdünnung
E7: H3A | F7: H2A | G7: HA | H7: A | I7: H3A | J7: H2A | K7: HA | L7: A | M7: H3A | N7: H2A | O7: HA | P7: A
A8: pH | B8: vt | C8: H+ | D8: OH- | E8: 3 | F8: 2 | G8: 1 | H8: 0 | I8: 3 | J8: 2 | K8: 1 | L8: 0 | M8: 3 | N8: 2 | O8: 1 | P8: 0
A9: =Berechnung!M8 -> 0 | B9: =Berechnung!N8 -> -40.0000001 | C9: =10^-A9 -> 1 | D9: =10^-(14-A9) -> 1e-14 | E9: =ALPHA(E$8,$A9,$E$3:$E$5) -> 9.9999999e-09 | F9: 0.99999999 | G9: 9.9999999e-31 | H9: 9.9999999e-61 | I9: =$E$2*E9 -> 9.9999999e-10 | J9: =$E$2*F9 -> 0.099999999 | K9: 9.9999999e-32 | L9: 9.9999999e-62 | M9: =$E$2*Eingabe!$B$4/(Eingabe!$B$4+$B9)*E9 -> 1.666666653e-09 | N9: =$E$2*Eingabe!$B$4/(Eingabe!$B$4+$B9)*F9 -> 0.1666666653 | O9: =$E$2*Eingabe!$B$4/(Eingabe!$B$4+$B9)*G9 -> 1.666666653e-31 | P9: =$E$2*Eingabe!$B$4/(Eingabe!$B$4+$B9)*H9 -> 1.666666653e-61
A10: =Berechnung!M9 -> 0.1 | B10: =Berechnung!N9 -> -29.71641182 | C10: =10^-A10 -> 0.7943282347 | D10: =10^-(14-A10) -> 1.258925412e-14 | E10: 7.943282284e-09 | F10: 0.9999999921 | G10: 1.258925402e-30 | H10: 1.58489318e-60 | I10: =$E$2*E10 -> 7.943282284e-10 | J10: =$E$2*F10 -> 0.09999999921 | K10: =$E$2*G10 -> 1.258925402e-31 | L10: =$E$2*H10 -> 1.58489318e-61 | M10: =$E$2*Eingabe!$B$4/(Eingabe!$B$4+$B10)*E10 -> 1.130175976e-09 | N10: =$E$2*Eingabe!$B$4/(Eingabe!$B$4+$B10)*F10 -> 0.1422807255 | O10: =$E$2*Eingabe!$B$4/(Eingabe!$B$4+$B10)*G10 -> 1.79120821e-31 | P10: =$E$2*Eingabe!$B$4/(Eingabe!$B$4+$B10)*H10 -> 2.254997533e-61
A11: =Berechnung!M10 -> 0.2 | B11: =Berechnung!N10 -> -21.54786729 | C11: 0.6309573445 | D11: 1.584893192e-14 | E11: 6.309573405e-09 | F11: 0.9999999937 | G11: 1.584893182e-30 | H11: 2.511886416e-60 | I11: 6.309573405e-10 | J11: 0.09999999937 | K11: 1.584893182e-31 | L11: 2.511886416e-61 | M11: =$E$2*Eingabe!$B$4/(Eingabe!$B$4+$B11)*E11 -> 8.042577285e-10 | N11: =$E$2*Eingabe!$B$4/(Eingabe!$B$4+$B11)*F11 -> 0.1274662599 | O11: =$E$2*Eingabe!$B$4/(Eingabe!$B$4+$B11)*G11 -> 2.020204076e-31 | P11: =$E$2*Eingabe!$B$4/(Eingabe!$B$4+$B11)*H11 -> 3.201807687e-61
A12: =Berechnung!M11 -> 0.3 | B12: =Berechnung!N11 -> -15.05936173 | C12: 0.5011872336 | D12: 1.995262315e-14 | E12: 5.011872311e-09 | F12: 0.999999995 | G12: 1.995262305e-30 | H12: 3.981071686e-60 | I12: 5.011872311e-10 | J12: 0.0999999995 | K12: 1.995262305e-31 | L12: 3.981071686e-61 | M12: =$E$2*Eingabe!$B$4/(Eingabe!$B$4+$B12)*E12 -> 5.900441077e-10 | N12: =$E$2*Eingabe!$B$4/(Eingabe!$B$4+$B12)*F12 -> 0.1177292772 | O12: =$E$2*Eingabe!$B$4/(Eingabe!$B$4+$B12)*G12 -> 2.349007902e-31 | P12: =$E$2*Eingabe!$B$4/(Eingabe!$B$4+$B12)*H12 -> 4.686886945e-61
A13: =Berechnung!M12 -> 0.4 | B13: =Berechnung!N12 -> -9.905358567 | C13: 0.3981071706 | D13: 2.511886432e-14 | E13: 3.98107169e-09 | F13: 0.999999996 | G13: 2.511886422e-30 | H13: 6.30957342e-60 | I13: 3.98107169e-10 | J13: 0.0999999996 | K13: 2.511886422e-31 | L13: 6.30957342e-61 | M13: =$E$2*Eingabe!$B$4/(Eingabe!$B$4+$B13)*E13 -> 4.41876634e-10 | N13: =$E$2*Eingabe!$B$4/(Eingabe!$B$4+$B13)*F13 -> 0.1109943921 | O13: =$E$2*Eingabe!$B$4/(Eingabe!$B$4+$B13)*G13 -> 2.788053076e-31 | P13: =$E$2*Eingabe!$B$4/(Eingabe!$B$4+$B13)*H13 -> 7.003272691e-61
A14: =Berechnung!M13 -> 0.5 | B14: =Berechnung!N13 -> -5.811388332 | C14: 0.316227766 | D14: 3.16227766e-14 | E14: 3.16227765e-09 | F14: 0.9999999968 | G14: 3.16227765e-30 | H14: 9.999999968e-60 | I14: 3.16227765e-10 | J14: 0.09999999968 | K14: 3.16227765e-31 | L14: 9.999999968e-61 | M14: =$E$2*Eingabe!$B$4/(Eingabe!$B$4+$B14)*E14 -> 3.357388536e-10 | N14: =$E$2*Eingabe!$B$4/(Eingabe!$B$4+$B14)*F14 -> 0.1061699476 | O14: =$E$2*Eingabe!$B$4/(Eingabe!$B$4+$B14)*G14 -> 3.357388536e-31 | P14: =$E$2*Eingabe!$B$4/(Eingabe!$B$4+$B14)*H14 -> 1.061699476e-60
A15: =Berechnung!M14 -> 0.6 | B15: =Berechnung!N14 -> -2.559432183 | C15: 0.2511886432 | D15: 3.981071706e-14 | E15: 2.511886425e-09 | F15: 0.9999999975 | G15: 3.981071696e-30 | H15: 1.584893188e-59 | I15: 2.511886425e-10 | J15: 0.09999999975 | K15: 3.981071696e-31 | L15: 1.584893188e-60 | M15: =$E$2*Eingabe!$B$4/(Eingabe!$B$4+$B15)*E15 -> 2.577865135e-10 | N15: =$E$2*Eingabe!$B$4/(Eingabe!$B$4+$B15)*F15 -> 0.1026266595 | O15: =$E$2*Eingabe!$B$4/(Eingabe!$B$4+$B15)*G15 -> 4.085640904e-31 | P15: =$E$2*Eingabe!$B$4/(Eingabe!$B$4+$B15)*H15 -> 1.62652294e-60
A16: =Berechnung!M15 -> 0.7 | B16: =Berechnung!N15 -> 0.02368840521 | C16: 0.1995262315 | D16: 5.011872336e-14 | E16: 1.995262311e-09 | F16: 0.999999998 | G16: 5.011872326e-30 | H16: 2.511886426e-59 | I16: 1.995262311e-10 | J16: 0.0999999998 | K16: 5.011872326e-31 | L16: 2.511886426e-60 | M16: =$E$2*Eingabe!$B$4/(Eingabe!$B$4+$B16)*E16 -> 1.994789777e-10 | N16: =$E$2*Eingabe!$B$4/(Eingabe!$B$4+$B16)*F16 -> 0.09997631701 | O16: =$E$2*Eingabe!$B$4/(Eingabe!$B$4+$B16)*G16 -> 5.010685375e-31 | P16: =$E$2*Eingabe!$B$4/(Eingabe!$B$4+$B16)*H16 -> 2.511291542e-60
A17: =Berechnung!M16 -> 0.8 | B17: =Berechnung!N16 -> 2.075534022 | C17: 0.1584893192 | D17: 6.309573445e-14 | E17: 1.58489319e-09 | F17: 0.9999999984 | G17: 6.309573435e-30 | H17: 3.981071699e-59 | I17: 1.58489319e-10 | J17: 0.09999999984 | K17: 6.309573435e-31 | L17: 3.981071699e-60 | M17: =$E$2*Eingabe!$B$4/(Eingabe!$B$4+$B17)*E17 -> 1.552667057e-10 | N17: =$E$2*Eingabe!$B$4/(Eingabe!$B$4+$B17)*F17 -> 0.09796666831 | O17: =$E$2*Eingabe!$B$4/(Eingabe!$B$4+$B17)*G17 -> 6.181278888e-31 | P17: =$E$2*Eingabe!$B$4/(Eingabe!$B$4+$B17)*H17 -> 3.900123313e-60
A18: =Berechnung!M17 -> 0.9 | B18: =Berechnung!N17 -> 3.705372928 | C18: 0.1258925412 | D18: 7.943282347e-14 | E18: 1.25892541e-09 | F18: 0.9999999987 | G18: 7.943282337e-30 | H18: 6.309573437e-59 | I18: 1.25892541e-10 | J18: 0.09999999987 | K18: 7.943282337e-31 | L18: 6.309573437e-60 | M18: =$E$2*Eingabe!$B$4/(Eingabe!$B$4+$B18)*E18 -> 1.213944249e-10 | N18: =$E$2*Eingabe!$B$4/(Eingabe!$B$4+$B18)*F18 -> 0.09642701921 | O18: =$E$2*Eingabe!$B$4/(Eingabe!$B$4+$B18)*G18 -> 7.659470395e-31 | P18: =$E$2*Eingabe!$B$4/(Eingabe!$B$4+$B18)*H18 -> 6.084133598e-60
A19: =Berechnung!M18 -> 1 | B19: =Berechnung!N18 -> 4.99999999 | C19: 0.1 | D19: 1e-13 | E19: 9.99999999e-10 | F19: 0.999999999 | G19: 9.99999999e-30 | H19: 9.99999999e-59 | I19: 9.99999999e-11 | J19: 0.0999999999 | K19: 9.99999999e-31 | L19: 9.99999999e-60 | M19: =$E$2*Eingabe!$B$4/(Eingabe!$B$4+$B19)*E19 -> 9.523809515e-11 | N19: =$E$2*Eingabe!$B$4/(Eingabe!$B$4+$B19)*F19 -> 0.09523809515 | O19: =$E$2*Eingabe!$B$4/(Eingabe!$B$4+$B19)*G19 -> 9.523809515e-31 | P19: =$E$2*Eingabe!$B$4/(Eingabe!$B$4+$B19)*H19 -> 9.523809515e-60
A20: =Berechnung!M19 -> 1.1 | B20: =Berechnung!N19 -> 6.028358818 | C20: 0.07943282347 | D20: 1.258925412e-13 | E20: 7.943282341e-10 | F20: 0.9999999992 | G20: 1.258925411e-29 | H20: 1.584893191e-58 | I20: 7.943282341e-11 | J20: 0.09999999992 | K20: 1.258925411e-30 | L20: 1.584893191e-59 | M20: =$E$2*Eingabe!$B$4/(Eingabe!$B$4+$B20)*E20 -> 7.491658297e-11 | N20: =$E$2*Eingabe!$B$4/(Eingabe!$B$4+$B20)*F20 -> 0.09431439007 | O20: =$E$2*Eingabe!$B$4/(Eingabe!$B$4+$B20)*G20 -> 1.187347824e-30 | P20: =$E$2*Eingabe!$B$4/(Eingabe!$B$4+$B20)*H20 -> 1.494782348e-59
A21: =Berechnung!M20 -> 1.2 | B21: =Berechnung!N20 -> 6.845213271 | C21: 0.06309573445 | D21: 1.584893192e-13 | E21: 6.309573441e-10 | F21: 0.9999999994 | G21: 1.584893191e-29 | H21: 2.51188643e-58 | I21: 6.309573441e-11 | J21: 0.09999999994 | K21: 1.584893191e-30 | L21: 2.51188643e-59 | M21: =$E$2*Eingabe!$B$4/(Eingabe!$B$4+$B21)*E21 -> 5.905340303e-11 | N21: =$E$2*Eingabe!$B$4/(Eingabe!$B$4+$B21)*F21 -> 0.09359333645 | O21: =$E$2*Eingabe!$B$4/(Eingabe!$B$4+$B21)*G21 -> 1.483354418e-30 | P21: =$E$2*Eingabe!$B$4/(Eingabe!$B$4+$B21)*H21 -> 2.350958319e-59
A22: =Berechnung!M21 -> 1.3 | B22: =Berechnung!N21 -> 7.494063827 | C22: 0.05011872336 | D22: 1.995262315e-13 | E22: 5.011872334e-10 | F22: 0.9999999995 | G22: 1.995262314e-29 | H22: 3.981071704e-58 | I22: 5.011872334e-11 | J22: 0.09999999995 | K22: 1.995262314e-30 | L22: 3.981071704e-59 | M22: =$E$2*Eingabe!$B$4/(Eingabe!$B$4+$B22)*E22 -> 4.662464284e-11 | N22: =$E$2*Eingabe!$B$4/(Eingabe!$B$4+$B22)*F22 -> 0.09302839282 | O22: =$E$2*Eingabe!$B$4/(Eingabe!$B$4+$B22)*G22 -> 1.856160464e-30 | P22: =$E$2*Eingabe!$B$4/(Eingabe!$B$4+$B22)*H22 -> 3.703527024e-59
A23: =Berechnung!M22 -> 1.4 | B23: =Berechnung!N22 -> 8.009464143 | C23: 0.03981071706 | D23: 2.511886432e-13 | E23: 3.981071704e-10 | F23: 0.9999999996 | G23: 2.511886431e-29 | H23: 6.309573442e-58 | I23: 3.981071704e-11 | J23: 0.09999999996 | K23: 2.511886431e-30 | L23: 6.309573442e-59 | M23: =$E$2*Eingabe!$B$4/(Eingabe!$B$4+$B23)*E23 -> 3.685854509e-11 | N23: =$E$2*Eingabe!$B$4/(Eingabe!$B$4+$B23)*F23 -> 0.09258447929 | O23: =$E$2*Eingabe!$B$4/(Eingabe!$B$4+$B23)*G23 -> 2.325616973e-30 | P23: =$E$2*Eingabe!$B$4/(Eingabe!$B$4+$B23)*H23 -> 5.841685719e-59
A24: =Berechnung!M23 -> 1.5 | B24: =Berechnung!N23 -> 8.418861167 | C24: 0.0316227766 | D24: 3.16227766e-13 | E24: 3.162277659e-10 | F24: 0.9999999997 | G24: 3.162277659e-29 | H24: 9.999999997e-58 | I24: 3.162277659e-11 | J24: 0.09999999997 | K24: 3.162277659e-30 | L24: 9.999999997e-59 | M24: =$E$2*Eingabe!$B$4/(Eingabe!$B$4+$B24)*E24 -> 2.916722815e-11 | N24: =$E$2*Eingabe!$B$4/(Eingabe!$B$4+$B24)*F24 -> 0.09223487398 | O24: =$E$2*Eingabe!$B$4/(Eingabe!$B$4+$B24)*G24 -> 2.916722815e-30 | P24: =$E$2*Eingabe!$B$4/(Eingabe!$B$4+$B24)*H24 -> 9.223487398e-59
A25: =Berechnung!M24 -> 1.6 | B25: =Berechnung!N24 -> 8.744056782 | C25: 0.02511886432 | D25: 3.981071706e-13 | E25: 2.511886431e-10 | F25: 0.9999999997 | G25: 3.981071705e-29 | H25: 1.584893192e-57 | I25: 2.511886431e-11 | J25: 0.09999999997 | K25: 3.981071705e-30 | L25: 1.584893192e-58 | M25: =$E$2*Eingabe!$B$4/(Eingabe!$B$4+$B25)*E25 -> 2.309906863e-11 | N25: =$E$2*Eingabe!$B$4/(Eingabe!$B$4+$B25)*F25 -> 0.09195904855 | O25: =$E$2*Eingabe!$B$4/(Eingabe!$B$4+$B25)*G25 -> 3.660955663e-30 | P25: =$E$2*Eingabe!$B$4/(Eingabe!$B$4+$B25)*H25 -> 1.4574527e-58
A26: =Berechnung!M25 -> 1.7 | B26: =Berechnung!N25 -> 9.002368841 | C26: 0.01995262315 | D26: 5.011872336e-13 | E26: 1.995262315e-10 | F26: 0.9999999998 | G26: 5.011872335e-29 | H26: 2.511886431e-57 | I26: 1.995262315e-11 | J26: 0.09999999998 | K26: 5.011872335e-30 | L26: 2.511886431e-58 | M26: =$E$2*Eingabe!$B$4/(Eingabe!$B$4+$B26)*E26 -> 1.830476104e-11 | N26: =$E$2*Eingabe!$B$4/(Eingabe!$B$4+$B26)*F26 -> 0.09174112549 | O26: =$E$2*Eingabe!$B$4/(Eingabe!$B$4+$B26)*G26 -> 4.597948089e-30 | P26: =$E$2*Eingabe!$B$4/(Eingabe!$B$4+$B26)*H26 -> 2.304432883e-58
A27: =Berechnung!M26 -> 1.8 | B27: =Berechnung!N26 -> 9.207553402 | C27: 0.01584893192 | D27: 6.309573445e-13 | E27: 1.584893192e-10 | F27: 0.9999999998 | G27: 6.309573444e-29 | H27: 3.981071705e-57 | I27: 1.584893192e-11 | J27: 0.09999999998 | K27: 6.309573444e-30 | L27: 3.981071705e-58 | M27: =$E$2*Eingabe!$B$4/(Eingabe!$B$4+$B27)*E27 -> 1.451267007e-11 | N27: =$E$2*Eingabe!$B$4/(Eingabe!$B$4+$B27)*F27 -> 0.09156875772 | O27: =$E$2*Eingabe!$B$4/(Eingabe!$B$4+$B27)*G27 -> 5.777598021e-30 | P27: =$E$2*Eingabe!$B$4/(Eingabe!$B$4+$B27)*H27 -> 3.645417905e-58
A28: =Berechnung!M27 -> 1.9 | B28: =Berechnung!N27 -> 9.370537293 | C28: 0.01258925412 | D28: 7.943282347e-13 | E28: 1.258925412e-10 | F28: 0.9999999999 | G28: 7.943282346e-29 | H28: 6.309573444e-57 | I28: 1.258925412e-11 | J28: 0.09999999999 | K28: 7.943282346e-30 | L28: 6.309573444e-58 | M28: =$E$2*Eingabe!$B$4/(Eingabe!$B$4+$B28)*E28 -> 1.151064485e-11 | N28: =$E$2*Eingabe!$B$4/(Eingabe!$B$4+$B28)*F28 -> 0.09143230203 | O28: =$E$2*Eingabe!$B$4/(Eingabe!$B$4+$B28)*G28 -> 7.262725907e-30 | P28: =$E$2*Eingabe!$B$4/(Eingabe!$B$4+$B28)*H28 -> 5.768988249e-58
A29: =Berechnung!M28 -> 2 | B29: =Berechnung!N28 -> 9.499999999 | C29: 0.01 | D29: 1e-12 | E29: =ALPHA(E$8,$A29,$E$3:$E$5) -> 9.999999999e-11 | F29: 0.9999999999 | G29: 9.999999999e-29 | H29: 9.999999999e-57 | I29: 9.999999999e-12 | J29: 0.09999999999 | K29: 9.999999999e-30 | L29: 9.999999999e-58 | M29: =$E$2*Eingabe!$B$4/(Eingabe!$B$4+$B29)*E29 -> 9.13242009e-12 | N29: =$E$2*Eingabe!$B$4/(Eingabe!$B$4+$B29)*F29 -> 0.0913242009 | O29: =$E$2*Eingabe!$B$4/(Eingabe!$B$4+$B29)*G29 -> 9.13242009e-30 | P29: =$E$2*Eingabe!$B$4/(Eingabe!$B$4+$B29)*H29 -> 9.13242009e-58
A30: =Berechnung!M29 -> 2.1 | B30: =Berechnung!N29 -> 9.602835882 | C30: 0.007943282347 | D30: 1.258925412e-12 | E30: 7.943282347e-11 | F30: 0.9999999999 | G30: 1.258925412e-28 | H30: 1.584893192e-56 | I30: 7.943282347e-12 | J30: 0.09999999999 | K30: 1.258925412e-29 | L30: 1.584893192e-57 | M30: =$E$2*Eingabe!$B$4/(Eingabe!$B$4+$B30)*E30 -> 7.247332866e-12 | N30: =$E$2*Eingabe!$B$4/(Eingabe!$B$4+$B30)*F30 -> 0.09123851512 | O30: =$E$2*Eingabe!$B$4/(Eingabe!$B$4+$B30)*G30 -> 1.148624852e-29 | P30: =$E$2*Eingabe!$B$4/(Eingabe!$B$4+$B30)*H30 -> 1.446033015e-57
A31: =Berechnung!M30 -> 2.2 | B31: =Berechnung!N30 -> 9.684521327 | C31: 0.006309573445 | D31: 1.584893192e-12 | E31: 6.309573444e-11 | F31: 0.9999999999 | G31: 1.584893192e-28 | H31: 2.511886431e-56 | I31: 6.309573444e-12 | J31: 0.09999999999 | K31: 1.584893192e-29 | L31: 2.511886431e-57 | M31: =$E$2*Eingabe!$B$4/(Eingabe!$B$4+$B31)*E31 -> 5.752473884e-12 | N31: =$E$2*Eingabe!$B$4/(Eingabe!$B$4+$B31)*F31 -> 0.09117056699 | O31: =$E$2*Eingabe!$B$4/(Eingabe!$B$4+$B31)*G31 -> 1.44495611e-29 | P31: =$E$2*Eingabe!$B$4/(Eingabe!$B$4+$B31)*H31 -> 2.290101102e-57
A32: =Berechnung!M31 -> 2.3 | B32: =Berechnung!N31 -> 9.749406383 | C32: 0.005011872336 | D32: 1.995262315e-12 | E32: 5.011872336e-11 | F32: 0.9999999999 | G32: 1.995262315e-28 | H32: 3.981071705e-56 | I32: 5.011872336e-12 | J32: 0.09999999999 | K32: 1.995262315e-29 | L32: 3.981071705e-57 | M32: =$E$2*Eingabe!$B$4/(Eingabe!$B$4+$B32)*E32 -> 4.566650974e-12 | N32: =$E$2*Eingabe!$B$4/(Eingabe!$B$4+$B32)*F32 -> 0.09111666595 | O32: =$E$2*Eingabe!$B$4/(Eingabe!$B$4+$B32)*G32 -> 1.818016498e-29 | P32: =$E$2*Eingabe!$B$4/(Eingabe!$B$4+$B32)*H32 -> 3.627419807e-57
A33: =Berechnung!M32 -> 2.4 | B33: =Berechnung!N32 -> 9.800946414 | C33: 0.003981071706 | D33: 2.511886432e-12 | E33: 3.981071705e-11 | F33: 1 | G33: 2.511886431e-28 | H33: 6.309573445e-56 | I33: 3.981071705e-12 | J33: 0.1 | K33: 2.511886431e-29 | L33: 6.309573445e-57 | M33: =$E$2*Eingabe!$B$4/(Eingabe!$B$4+$B33)*E33 -> 3.625717114e-12 | N33: =$E$2*Eingabe!$B$4/(Eingabe!$B$4+$B33)*F33 -> 0.09107389623 | O33: =$E$2*Eingabe!$B$4/(Eingabe!$B$4+$B33)*G33 -> 2.287672842e-29 | P33: =$E$2*Eingabe!$B$4/(Eingabe!$B$4+$B33)*H33 -> 5.746374372e-57
A34: =Berechnung!M33 -> 2.5 | B34: =Berechnung!N33 -> 9.841886117 | C34: 0.00316227766 | D34: 3.16227766e-12 | E34: 3.16227766e-11 | F34: 1 | G34: 3.16227766e-28 | H34: 1e-55 | I34: 3.16227766e-12 | J34: 0.1 | K34: 3.16227766e-29 | L34: 1e-56 | M34: =$E$2*Eingabe!$B$4/(Eingabe!$B$4+$B34)*E34 -> 2.878936052e-12 | N34: =$E$2*Eingabe!$B$4/(Eingabe!$B$4+$B34)*F34 -> 0.09103995164 | O34: =$E$2*Eingabe!$B$4/(Eingabe!$B$4+$B34)*G34 -> 2.878936052e-29 | P34: =$E$2*Eingabe!$B$4/(Eingabe!$B$4+$B34)*H34 -> 9.103995164e-57
A35: =Berechnung!M34 -> 2.6 | B35: =Berechnung!N34 -> 9.874405678 | C35: 0.002511886432 | D35: 3.981071706e-12 | E35: 2.511886431e-11 | F35: 1 | G35: 3.981071705e-28 | H35: 1.584893192e-55 | I35: 2.511886431e-12 | J35: 0.1 | K35: 3.981071705e-29 | L35: 1.584893192e-56 | M35: =$E$2*Eingabe!$B$4/(Eingabe!$B$4+$B35)*E35 -> 2.286143362e-12 | N35: =$E$2*Eingabe!$B$4/(Eingabe!$B$4+$B35)*F35 -> 0.09101300651 | O35: =$E$2*Eingabe!$B$4/(Eingabe!$B$4+$B35)*G35 -> 3.623293051e-29 | P35: =$E$2*Eingabe!$B$4/(Eingabe!$B$4+$B35)*H35 -> 1.442458944e-56
A36: =Berechnung!M35 -> 2.7 | B36: =Berechnung!N35 -> 9.900236884 | C36: 0.001995262315 | D36: 5.011872336e-12 | E36: 1.995262315e-11 | F36: 1 | G36: 5.011872336e-28 | H36: 2.511886431e-55 | I36: 1.995262315e-12 | J36: 0.1 | K36: 5.011872336e-29 | L36: 2.511886431e-56 | M36: =$E$2*Eingabe!$B$4/(Eingabe!$B$4+$B36)*E36 -> 1.815521396e-12 | N36: =$E$2*Eingabe!$B$4/(Eingabe!$B$4+$B36)*F36 -> 0.09099161461 | O36: =$E$2*Eingabe!$B$4/(Eingabe!$B$4+$B36)*G36 -> 4.560383561e-29 | P36: =$E$2*Eingabe!$B$4/(Eingabe!$B$4+$B36)*H36 -> 2.285606021e-56
A37: =Berechnung!M36 -> 2.8 | B37: =Berechnung!N36 -> 9.920755341 | C37: 0.001584893192 | D37: 6.309573445e-12 | E37: 1.584893192e-11 | F37: 1 | G37: 6.309573445e-28 | H37: 3.981071705e-55 | I37: 1.584893192e-12 | J37: 0.1 | K37: 6.309573445e-29 | L37: 3.981071705e-56 | M37: =$E$2*Eingabe!$B$4/(Eingabe!$B$4+$B37)*E37 -> 1.441850711e-12 | N37: =$E$2*Eingabe!$B$4/(Eingabe!$B$4+$B37)*F37 -> 0.09097462958 | O37: =$E$2*Eingabe!$B$4/(Eingabe!$B$4+$B37)*G37 -> 5.740111069e-29 | P37: =$E$2*Eingabe!$B$4/(Eingabe!$B$4+$B37)*H37 -> 3.621765237e-56
A38: =Berechnung!M37 -> 2.9 | B38: =Berechnung!N37 -> 9.93705373 | C38: 0.001258925412 | D38: 7.943282347e-12 | E38: 1.258925412e-11 | F38: 1 | G38: 7.943282347e-28 | H38: 6.309573445e-55 | I38: 1.258925412e-12 | J38: 0.1 | K38: 7.943282347e-29 | L38: 6.309573445e-56 | M38: =$E$2*Eingabe!$B$4/(Eingabe!$B$4+$B38)*E38 -> 1.145132937e-12 | N38: =$E$2*Eingabe!$B$4/(Eingabe!$B$4+$B38)*F38 -> 0.0909611424 | O38: =$E$2*Eingabe!$B$4/(Eingabe!$B$4+$B38)*G38 -> 7.225300367e-29 | P38: =$E$2*Eingabe!$B$4/(Eingabe!$B$4+$B38)*H38 -> 5.739260086e-56
A39: =Berechnung!M38 -> 3 | B39: =Berechnung!N38 -> 9.95 | C39: 0.001 | D39: 1e-11 | E39: 1e-11 | F39: 1 | G39: 1e-27 | H39: 1e-54 | I39: 1e-12 | J39: 0.1 | K39: 1e-28 | L39: 1e-55 | M39: =$E$2*Eingabe!$B$4/(Eingabe!$B$4+$B39)*E39 -> 9.095043201e-13 | N39: =$E$2*Eingabe!$B$4/(Eingabe!$B$4+$B39)*F39 -> 0.09095043201 | O39: =$E$2*Eingabe!$B$4/(Eingabe!$B$4+$B39)*G39 -> 9.095043201e-29 | P39: =$E$2*Eingabe!$B$4/(Eingabe!$B$4+$B39)*H39 -> 9.095043201e-56
A40: =Berechnung!M39 -> 3.1 | B40: =Berechnung!N39 -> 9.960283589 | C40: 0.0007943282347 | D40: 1.258925412e-11 | E40: 7.943282347e-12 | F40: 1 | G40: 1.258925412e-27 | H40: 1.584893192e-54 | I40: 7.943282347e-13 | J40: 0.1 | K40: 1.258925412e-28 | L40: 1.584893192e-55 | M40: =$E$2*Eingabe!$B$4/(Eingabe!$B$4+$B40)*E40 -> 7.223773974e-13 | N40: =$E$2*Eingabe!$B$4/(Eingabe!$B$4+$B40)*F40 -> 0.09094192624 | O40: =$E$2*Eingabe!$B$4/(Eingabe!$B$4+$B40)*G40 -> 1.144891019e-28 | P40: =$E$2*Eingabe!$B$4/(Eingabe!$B$4+$B40)*H40 -> 1.441332398e-55
A41: =Berechnung!M40 -> 3.2 | B41: =Berechnung!N40 -> 9.968452134 | C41: 0.0006309573445 | D41: 1.584893192e-11 | E41: 6.309573445e-12 | F41: 1 | G41: 1.584893192e-27 | H41: 2.511886431e-54 | I41: 6.309573445e-13 | J41: 0.1 | K41: 1.584893192e-28 | L41: 2.511886431e-55 | M41: =$E$2*Eingabe!$B$4/(Eingabe!$B$4+$B41)*E41 -> 5.737621402e-13 | N41: =$E$2*Eingabe!$B$4/(Eingabe!$B$4+$B41)*F41 -> 0.09093517101 | O41: =$E$2*Eingabe!$B$4/(Eingabe!$B$4+$B41)*G41 -> 1.441225335e-28 | P41: =$E$2*Eingabe!$B$4/(Eingabe!$B$4+$B41)*H41 -> 2.284188222e-55
A42: =Berechnung!M41 -> 3.3 | B42: =Berechnung!N41 -> 9.974940639 | C42: 0.0005011872336 | D42: 1.995262315e-11 | E42: 5.011872336e-12 | F42: 1 | G42: 1.995262315e-27 | H42: 3.981071706e-54 | I42: 5.011872336e-13 | J42: 0.1 | K42: 1.995262315e-28 | L42: 3.981071706e-55 | M42: =$E$2*Eingabe!$B$4/(Eingabe!$B$4+$B42)*E42 -> 4.557285784e-13 | N42: =$E$2*Eingabe!$B$4/(Eingabe!$B$4+$B42)*F42 -> 0.09092980584 | O42: =$E$2*Eingabe!$B$4/(Eingabe!$B$4+$B42)*G42 -> 1.814288149e-28 | P42: =$E$2*Eingabe!$B$4/(Eingabe!$B$4+$B42)*H42 -> 3.619980772e-55
A43: =Berechnung!M42 -> 3.4 | B43: =Berechnung!N42 -> 9.980094643 | C43: 0.0003981071706 | D43: 2.511886432e-11 | E43: 3.981071706e-12 | F43: 1 | G43: 2.511886431e-27 | H43: 6.309573445e-54 | I43: 3.981071706e-13 | J43: 0.1 | K43: 2.511886431e-28 | L43: 6.309573445e-55 | M43: =$E$2*Eingabe!$B$4/(Eingabe!$B$4+$B43)*E43 -> 3.619811129e-13 | N43: =$E$2*Eingabe!$B$4/(Eingabe!$B$4+$B43)*F43 -> 0.09092554459 | O43: =$E$2*Eingabe!$B$4/(Eingabe!$B$4+$B43)*G43 -> 2.283946417e-28 | P43: =$E$2*Eingabe!$B$4/(Eingabe!$B$4+$B43)*H43 -> 5.737014016e-55
A44: =Berechnung!M43 -> 3.5 | B44: =Berechnung!N43 -> 9.984188613 | C44: 0.000316227766 | D44: 3.16227766e-11 | E44: 3.16227766e-12 | F44: 1 | G44: 3.16227766e-27 | H44: 1e-53 | I44: 3.16227766e-13 | J44: 0.1 | K44: 3.16227766e-28 | L44: 1e-54 | M44: =$E$2*Eingabe!$B$4/(Eingabe!$B$4+$B44)*E44 -> 2.875211155e-13 | N44: =$E$2*Eingabe!$B$4/(Eingabe!$B$4+$B44)*F44 -> 0.09092216005 | O44: =$E$2*Eingabe!$B$4/(Eingabe!$B$4+$B44)*G44 -> 2.875211155e-28 | P44: =$E$2*Eingabe!$B$4/(Eingabe!$B$4+$B44)*H44 -> 9.092216005e-55
A45: =Berechnung!M44 -> 3.6 | B45: =Berechnung!N44 -> 9.98744057 | C45: 0.0002511886432 | D45: 3.981071706e-11 | E45: 2.511886432e-12 | F45: 1 | G45: 3.981071706e-27 | H45: 1.584893192e-53 | I45: 2.511886432e-13 | J45: 0.1 | K45: 3.981071706e-28 | L45: 1.584893192e-54 | M45: =$E$2*Eingabe!$B$4/(Eingabe!$B$4+$B45)*E45 -> 2.283793875e-13 | N45: =$E$2*Eingabe!$B$4/(Eingabe!$B$4+$B45)*F45 -> 0.09091947179 | O45: =$E$2*Eingabe!$B$4/(Eingabe!$B$4+$B45)*G45 -> 3.619569366e-28 | P45: =$E$2*Eingabe!$B$4/(Eingabe!$B$4+$B45)*H45 -> 1.440976519e-54
A46: =Berechnung!M45 -> 3.7 | B46: =Berechnung!N45 -> 9.990023691 | C46: 0.0001995262315 | D46: 5.011872336e-11 | E46: 1.995262315e-12 | F46: 1 | G46: 5.011872336e-27 | H46: 2.511886432e-53 | I46: 1.995262315e-13 | J46: 0.1 | K46: 5.011872336e-28 | L46: 2.511886432e-54 | M46: =$E$2*Eingabe!$B$4/(Eingabe!$B$4+$B46)*E46 -> 1.814039354e-13 | N46: =$E$2*Eingabe!$B$4/(Eingabe!$B$4+$B46)*F46 -> 0.09091733654 | O46: =$E$2*Eingabe!$B$4/(Eingabe!$B$4+$B46)*G46 -> 4.556660839e-28 | P46: =$E$2*Eingabe!$B$4/(Eingabe!$B$4+$B46)*H46 -> 2.28374024e-54
A47: =Berechnung!M46 -> 3.8 | B47: =Berechnung!N46 -> 9.992075537 | C47: 0.0001584893192 | D47: 6.309573445e-11 | E47: 1.584893192e-12 | F47: 1 | G47: 6.309573445e-27 | H47: 3.981071706e-53 | I47: 1.584893192e-13 | J47: 0.1 | K47: 6.309573445e-28 | L47: 3.981071706e-54 | M47: =$E$2*Eingabe!$B$4/(Eingabe!$B$4+$B47)*E47 -> 1.440915798e-13 | N47: =$E$2*Eingabe!$B$4/(Eingabe!$B$4+$B47)*F47 -> 0.09091564052 | O47: =$E$2*Eingabe!$B$4/(Eingabe!$B$4+$B47)*G47 -> 5.736389112e-28 | P47: =$E$2*Eingabe!$B$4/(Eingabe!$B$4+$B47)*H47 -> 3.619416841e-54
A48: =Berechnung!M47 -> 3.9 | B48: =Berechnung!N47 -> 9.993705377 | C48: 0.0001258925412 | D48: 7.943282347e-11 | E48: 1.258925412e-12 | F48: 1 | G48: 7.943282347e-27 | H48: 6.309573445e-53 | I48: 1.258925412e-13 | J48: 0.1 | K48: 7.943282347e-28 | L48: 6.309573445e-54 | M48: =$E$2*Eingabe!$B$4/(Eingabe!$B$4+$B48)*E48 -> 1.144543142e-13 | N48: =$E$2*Eingabe!$B$4/(Eingabe!$B$4+$B48)*F48 -> 0.09091429337 | O48: =$E$2*Eingabe!$B$4/(Eingabe!$B$4+$B48)*G48 -> 7.221579017e-28 | P48: =$E$2*Eingabe!$B$4/(Eingabe!$B$4+$B48)*H48 -> 5.736304112e-54
A49: =Berechnung!M48 -> 4 | B49: =Berechnung!N48 -> 9.995000005 | C49: 0.0001 | D49: 1e-10 | E49: =ALPHA(E$8,$A49,$E$3:$E$5) -> 1e-12 | F49: 1 | G49: 1e-26 | H49: 1e-52 | I49: 1e-13 | J49: 0.1 | K49: 1e-27 | L49: 1e-53 | M49: =$E$2*Eingabe!$B$4/(Eingabe!$B$4+$B49)*E49 -> 9.091322332e-14 | N49: =$E$2*Eingabe!$B$4/(Eingabe!$B$4+$B49)*F49 -> 0.09091322332 | O49: =$E$2*Eingabe!$B$4/(Eingabe!$B$4+$B49)*G49 -> 9.091322332e-28 | P49: =$E$2*Eingabe!$B$4/(Eingabe!$B$4+$B49)*H49 -> 9.091322332e-54
A50: =Berechnung!M49 -> 4.1 | B50: =Berechnung!N49 -> 9.996028365 | C50: 7.943282347e-05 | D50: 1.258925412e-10 | E50: 7.943282347e-13 | F50: 1 | G50: 1.258925412e-26 | H50: 1.584893192e-52 | I50: 7.943282347e-14 | J50: 0.1 | K50: 1.258925412e-27 | L50: 1.584893192e-53 | M50: =$E$2*Eingabe!$B$4/(Eingabe!$B$4+$B50)*E50 -> 7.221426505e-14 | N50: =$E$2*Eingabe!$B$4/(Eingabe!$B$4+$B50)*F50 -> 0.09091237337 | O50: =$E$2*Eingabe!$B$4/(Eingabe!$B$4+$B50)*G50 -> 1.144518971e-27 | P50: =$E$2*Eingabe!$B$4/(Eingabe!$B$4+$B50)*H50 -> 1.440864017e-53
A51: =Berechnung!M50 -> 4.2 | B51: =Berechnung!N50 -> 9.996845221 | C51: 6.309573445e-05 | D51: 1.584893192e-10 | E51: 6.309573445e-13 | F51: 1 | G51: 1.584893192e-26 | H51: 2.511886432e-52 | I51: 6.309573445e-14 | J51: 0.1 | K51: 1.584893192e-27 | L51: 2.511886432e-53 | M51: =$E$2*Eingabe!$B$4/(Eingabe!$B$4+$B51)*E51 -> 5.73614037e-14 | N51: =$E$2*Eingabe!$B$4/(Eingabe!$B$4+$B51)*F51 -> 0.09091169824 | O51: =$E$2*Eingabe!$B$4/(Eingabe!$B$4+$B51)*G51 -> 1.440853317e-27 | P51: =$E$2*Eingabe!$B$4/(Eingabe!$B$4+$B51)*H51 -> 2.283598613e-53
A52: =Berechnung!M51 -> 4.3 | B52: =Berechnung!N51 -> 9.997494074 | C52: 5.011872336e-05 | D52: 1.995262315e-10 | E52: 5.011872336e-13 | F52: 1 | G52: 1.995262315e-26 | H52: 3.981071706e-52 | I52: 5.011872336e-14 | J52: 0.1 | K52: 1.995262315e-27 | L52: 3.981071706e-53 | M52: =$E$2*Eingabe!$B$4/(Eingabe!$B$4+$B52)*E52 -> 4.556351377e-14 | N52: =$E$2*Eingabe!$B$4/(Eingabe!$B$4+$B52)*F52 -> 0.09091116197 | O52: =$E$2*Eingabe!$B$4/(Eingabe!$B$4+$B52)*G52 -> 1.813916155e-27 | P52: =$E$2*Eingabe!$B$4/(Eingabe!$B$4+$B52)*H52 -> 3.619238546e-53
A53: =Berechnung!M52 -> 4.4 | B53: =Berechnung!N52 -> 9.998009477 | C53: 3.981071706e-05 | D53: 2.511886432e-10 | E53: 3.981071706e-13 | F53: 1 | G53: 2.511886432e-26 | H53: 6.309573445e-52 | I53: 3.981071706e-14 | J53: 0.1 | K53: 2.511886432e-27 | L53: 6.309573445e-53 | M53: =$E$2*Eingabe!$B$4/(Eingabe!$B$4+$B53)*E53 -> 3.619221588e-14 | N53: =$E$2*Eingabe!$B$4/(Eingabe!$B$4+$B53)*F53 -> 0.090910736 | O53: =$E$2*Eingabe!$B$4/(Eingabe!$B$4+$B53)*G53 -> 2.283574442e-27 | P53: =$E$2*Eingabe!$B$4/(Eingabe!$B$4+$B53)*H53 -> 5.736079657e-53
A54: =Berechnung!M53 -> 4.5 | B54: =Berechnung!N53 -> 9.998418877 | C54: 3.16227766e-05 | D54: 3.16227766e-10 | E54: 3.16227766e-13 | F54: 1 | G54: 3.16227766e-26 | H54: 1e-51 | I54: 3.16227766e-14 | J54: 0.1 | K54: 3.16227766e-27 | L54: 1e-52 | M54: =$E$2*Eingabe!$B$4/(Eingabe!$B$4+$B54)*E54 -> 2.874839195e-14 | N54: =$E$2*Eingabe!$B$4/(Eingabe!$B$4+$B54)*F54 -> 0.09091039764 | O54: =$E$2*Eingabe!$B$4/(Eingabe!$B$4+$B54)*G54 -> 2.874839195e-27 | P54: =$E$2*Eingabe!$B$4/(Eingabe!$B$4+$B54)*H54 -> 9.091039764e-53
A55: =Berechnung!M54 -> 4.6 | B55: =Berechnung!N54 -> 9.998744077 | C55: 2.511886432e-05 | D55: 3.981071706e-10 | E55: 2.511886432e-13 | F55: 1 | G55: 3.981071706e-26 | H55: 1.584893192e-51 | I55: 2.511886432e-14 | J55: 0.1 | K55: 3.981071706e-27 | L55: 1.584893192e-52 | M55: =$E$2*Eingabe!$B$4/(Eingabe!$B$4+$B55)*E55 -> 2.283559192e-14 | N55: =$E$2*Eingabe!$B$4/(Eingabe!$B$4+$B55)*F55 -> 0.09091012887 | O55: =$E$2*Eingabe!$B$4/(Eingabe!$B$4+$B55)*G55 -> 3.619197418e-27 | P55: =$E$2*Eingabe!$B$4/(Eingabe!$B$4+$B55)*H55 -> 1.440828444e-52
A56: =Berechnung!M55 -> 4.7 | B56: =Berechnung!N55 -> 9.999002394 | C56: 1.995262315e-05 | D56: 5.011872336e-10 | E56: 1.995262315e-13 | F56: 1 | G56: 5.011872336e-26 | H56: 2.511886432e-51 | I56: 1.995262315e-14 | J56: 0.1 | K56: 5.011872336e-27 | L56: 2.511886432e-52 | M56: =$E$2*Eingabe!$B$4/(Eingabe!$B$4+$B56)*E56 -> 1.813891282e-14 | N56: =$E$2*Eingabe!$B$4/(Eingabe!$B$4+$B56)*F56 -> 0.09090991538 | O56: =$E$2*Eingabe!$B$4/(Eingabe!$B$4+$B56)*G56 -> 4.5562889e-27 | P56: =$E$2*Eingabe!$B$4/(Eingabe!$B$4+$B56)*H56 -> 2.283553829e-52
A57: =Berechnung!M56 -> 4.8 | B57: =Berechnung!N56 -> 9.999207585 | C57: 1.584893192e-05 | D57: 6.309573445e-10 | E57: 1.584893192e-13 | F57: 1 | G57: 6.309573445e-26 | H57: 3.981071706e-51 | I57: 1.584893192e-14 | J57: 0.1 | K57: 6.309573445e-27 | L57: 3.981071706e-52 | M57: =$E$2*Eingabe!$B$4/(Eingabe!$B$4+$B57)*E57 -> 1.440822373e-14 | N57: =$E$2*Eingabe!$B$4/(Eingabe!$B$4+$B57)*F57 -> 0.0909097458 | O57: =$E$2*Eingabe!$B$4/(Eingabe!$B$4+$B57)*G57 -> 5.73601718e-27 | P57: =$E$2*Eingabe!$B$4/(Eingabe!$B$4+$B57)*H57 -> 3.619182168e-52
A58: =Berechnung!M57 -> 4.9 | B58: =Berechnung!N57 -> 9.999370577 | C58: 1.258925412e-05 | D58: 7.943282347e-10 | E58: 1.258925412e-13 | F58: 1 | G58: 7.943282347e-26 | H58: 6.309573445e-51 | I58: 1.258925412e-14 | J58: 0.1 | K58: 7.943282347e-27 | L58: 6.309573445e-52 | M58: =$E$2*Eingabe!$B$4/(Eingabe!$B$4+$B58)*E58 -> 1.144484196e-14 | N58: =$E$2*Eingabe!$B$4/(Eingabe!$B$4+$B58)*F58 -> 0.0909096111 | O58: =$E$2*Eingabe!$B$4/(Eingabe!$B$4+$B58)*G58 -> 7.22120709e-27 | P58: =$E$2*Eingabe!$B$4/(Eingabe!$B$4+$B58)*H58 -> 5.736008681e-52
A59: =Berechnung!M58 -> 5 | B59: =Berechnung!N58 -> 9.99950005 | C59: 1e-05 | D59: 1e-09 | E59: 1e-13 | F59: 1 | G59: 1e-25 | H59: 1e-50 | I59: 1e-14 | J59: 0.1 | K59: 1e-26 | L59: 1e-51 | M59: =$E$2*Eingabe!$B$4/(Eingabe!$B$4+$B59)*E59 -> 9.090950409e-15 | N59: =$E$2*Eingabe!$B$4/(Eingabe!$B$4+$B59)*F59 -> 0.09090950409 | O59: =$E$2*Eingabe!$B$4/(Eingabe!$B$4+$B59)*G59 -> 9.090950409e-27 | P59: =$E$2*Eingabe!$B$4/(Eingabe!$B$4+$B59)*H59 -> 9.090950409e-52
A60: =Berechnung!M59 -> 5.1 | B60: =Berechnung!N59 -> 9.999602899 | C60: 7.943282347e-06 | D60: 1.258925412e-09 | E60: 7.943282347e-14 | F60: 1 | G60: 1.258925412e-25 | H60: 1.584893192e-50 | I60: 7.943282347e-15 | J60: 0.1 | K60: 1.258925412e-26 | L60: 1.584893192e-51 | M60: =$E$2*Eingabe!$B$4/(Eingabe!$B$4+$B60)*E60 -> 7.221191839e-15 | N60: =$E$2*Eingabe!$B$4/(Eingabe!$B$4+$B60)*F60 -> 0.09090941909 | O60: =$E$2*Eingabe!$B$4/(Eingabe!$B$4+$B60)*G60 -> 1.144481779e-26 | P60: =$E$2*Eingabe!$B$4/(Eingabe!$B$4+$B60)*H60 -> 1.440817195e-51
A61: =Berechnung!M60 -> 5.2 | B61: =Berechnung!N60 -> 9.999684601 | C61: 6.309573445e-06 | D61: 1.584893192e-09 | E61: 6.309573445e-14 | F61: 1 | G61: 1.584893192e-25 | H61: 2.511886432e-50 | I61: 6.309573445e-15 | J61: 0.1 | K61: 1.584893192e-26 | L61: 2.511886432e-51 | M61: =$E$2*Eingabe!$B$4/(Eingabe!$B$4+$B61)*E61 -> 5.735992306e-15 | N61: =$E$2*Eingabe!$B$4/(Eingabe!$B$4+$B61)*F61 -> 0.09090935157 | O61: =$E$2*Eingabe!$B$4/(Eingabe!$B$4+$B61)*G61 -> 1.440816124e-26 | P61: =$E$2*Eingabe!$B$4/(Eingabe!$B$4+$B61)*H61 -> 2.283539667e-51
A62: =Berechnung!M61 -> 5.3 | B62: =Berechnung!N61 -> 9.999749506 | C62: 5.011872336e-06 | D62: 1.995262315e-09 | E62: 5.011872336e-14 | F62: 1 | G62: 1.995262315e-25 | H62: 3.981071706e-50 | I62: 5.011872336e-15 | J62: 0.1 | K62: 1.995262315e-26 | L62: 3.981071706e-51 | M62: =$E$2*Eingabe!$B$4/(Eingabe!$B$4+$B62)*E62 -> 4.556257954e-15 | N62: =$E$2*Eingabe!$B$4/(Eingabe!$B$4+$B62)*F62 -> 0.09090929793 | O62: =$E$2*Eingabe!$B$4/(Eingabe!$B$4+$B62)*G62 -> 1.813878962e-26 | P62: =$E$2*Eingabe!$B$4/(Eingabe!$B$4+$B62)*H62 -> 3.619164338e-51
A63: =Berechnung!M62 -> 5.4 | B63: =Berechnung!N62 -> 9.999801072 | C63: 3.981071706e-06 | D63: 2.511886432e-09 | E63: 3.981071706e-14 | F63: 1 | G63: 2.511886432e-25 | H63: 6.309573445e-50 | I63: 3.981071706e-15 | J63: 0.1 | K63: 2.511886432e-26 | L63: 6.309573445e-51 | M63: =$E$2*Eingabe!$B$4/(Eingabe!$B$4+$B63)*E63 -> 3.619162641e-15 | N63: =$E$2*Eingabe!$B$4/(Eingabe!$B$4+$B63)*F63 -> 0.09090925531 | O63: =$E$2*Eingabe!$B$4/(Eingabe!$B$4+$B63)*G63 -> 2.283537249e-26 | P63: =$E$2*Eingabe!$B$4/(Eingabe!$B$4+$B63)*H63 -> 5.735986232e-51
A64: =Berechnung!M63 -> 5.5 | B64: =Berechnung!N63 -> 9.999842044 | C64: 3.16227766e-06 | D64: 3.16227766e-09 | E64: 3.16227766e-14 | F64: 1 | G64: 3.16227766e-25 | H64: 1e-49 | I64: 3.16227766e-15 | J64: 0.1 | K64: 3.16227766e-26 | L64: 1e-50 | M64: =$E$2*Eingabe!$B$4/(Eingabe!$B$4+$B64)*E64 -> 2.874802001e-15 | N64: =$E$2*Eingabe!$B$4/(Eingabe!$B$4+$B64)*F64 -> 0.09090922145 | O64: =$E$2*Eingabe!$B$4/(Eingabe!$B$4+$B64)*G64 -> 2.874802001e-26 | P64: =$E$2*Eingabe!$B$4/(Eingabe!$B$4+$B64)*H64 -> 9.090922145e-51
A65: =Berechnung!M64 -> 5.6 | B65: =Berechnung!N64 -> 9.999874605 | C65: 2.511886432e-06 | D65: 3.981071706e-09 | E65: 2.511886432e-14 | F65: 1 | G65: 3.981071706e-25 | H65: 1.584893192e-49 | I65: 2.511886432e-15 | J65: 0.1 | K65: 3.981071706e-26 | L65: 1.584893192e-50 | M65: =$E$2*Eingabe!$B$4/(Eingabe!$B$4+$B65)*E65 -> 2.283535723e-15 | N65: =$E$2*Eingabe!$B$4/(Eingabe!$B$4+$B65)*F65 -> 0.09090919454 | O65: =$E$2*Eingabe!$B$4/(Eingabe!$B$4+$B65)*G65 -> 3.619160222e-26 | P65: =$E$2*Eingabe!$B$4/(Eingabe!$B$4+$B65)*H65 -> 1.440813636e-50
A66: =Berechnung!M65 -> 5.7 | B66: =Berechnung!N65 -> 9.999900487 | C66: 1.995262315e-06 | D66: 5.011872336e-09 | E66: 1.995262315e-14 | F66: 1 | G66: 5.011872336e-25 | H66: 2.511886432e-49 | I66: 1.995262315e-15 | J66: 0.1 | K66: 5.011872336e-26 | L66: 2.511886432e-50 | M66: =$E$2*Eingabe!$B$4/(Eingabe!$B$4+$B66)*E66 -> 1.813876473e-15 | N66: =$E$2*Eingabe!$B$4/(Eingabe!$B$4+$B66)*F66 -> 0.09090917315 | O66: =$E$2*Eingabe!$B$4/(Eingabe!$B$4+$B66)*G66 -> 4.5562517e-26 | P66: =$E$2*Eingabe!$B$4/(Eingabe!$B$4+$B66)*H66 -> 2.283535185e-50
A67: =Berechnung!M66 -> 5.8 | B67: =Berechnung!N66 -> 9.999921071 | C67: 1.584893192e-06 | D67: 6.309573445e-09 | E67: 1.584893192e-14 | F67: 1 | G67: 6.309573445e-25 | H67: 3.981071706e-49 | I67: 1.584893192e-15 | J67: 0.1 | K67: 6.309573445e-26 | L67: 3.981071706e-50 | M67: =$E$2*Eingabe!$B$4/(Eingabe!$B$4+$B67)*E67 -> 1.440813027e-15 | N67: =$E$2*Eingabe!$B$4/(Eingabe!$B$4+$B67)*F67 -> 0.09090915614 | O67: =$E$2*Eingabe!$B$4/(Eingabe!$B$4+$B67)*G67 -> 5.735979975e-26 | P67: =$E$2*Eingabe!$B$4/(Eingabe!$B$4+$B67)*H67 -> 3.619158693e-50
A68: =Berechnung!M67 -> 5.9 | B68: =Berechnung!N67 -> 9.999937451 | C68: 1.258925412e-06 | D68: 7.943282347e-09 | E68: 1.258925412e-14 | F68: 1 | G68: 7.943282347e-25 | H68: 6.309573445e-49 | I68: 1.258925412e-15 | J68: 0.1 | K68: 7.943282347e-26 | L68: 6.309573445e-50 | M68: =$E$2*Eingabe!$B$4/(Eingabe!$B$4+$B68)*E68 -> 1.144478298e-15 | N68: =$E$2*Eingabe!$B$4/(Eingabe!$B$4+$B68)*F68 -> 0.0909091426 | O68: =$E$2*Eingabe!$B$4/(Eingabe!$B$4+$B68)*G68 -> 7.221169876e-26 | P68: =$E$2*Eingabe!$B$4/(Eingabe!$B$4+$B68)*H68 -> 5.735979121e-50
A69: =Berechnung!M68 -> 6 | B69: =Berechnung!N68 -> 9.9999505 | C69: 1e-06 | D69: 1e-08 | E69: =ALPHA(E$8,$A69,$E$3:$E$5) -> 1e-14 | F69: 1 | G69: 1e-24 | H69: 1e-48 | I69: 1e-15 | J69: 0.1 | K69: 1e-25 | L69: 1e-49 | M69: =$E$2*Eingabe!$B$4/(Eingabe!$B$4+$B69)*E69 -> 9.090913182e-16 | N69: =$E$2*Eingabe!$B$4/(Eingabe!$B$4+$B69)*F69 -> 0.09090913182 | O69: =$E$2*Eingabe!$B$4/(Eingabe!$B$4+$B69)*G69 -> 9.090913182e-26 | P69: =$E$2*Eingabe!$B$4/(Eingabe!$B$4+$B69)*H69 -> 9.090913182e-50
A70: =Berechnung!M69 -> 6.1 | B70: =Berechnung!N69 -> 9.999960913 | C70: 7.943282347e-07 | D70: 1.258925412e-08 | E70: 7.943282347e-15 | F70: 1 | G70: 1.258925412e-24 | H70: 1.584893192e-48 | I70: 7.943282347e-16 | J70: 0.1 | K70: 1.258925412e-25 | L70: 1.584893192e-49 | M70: =$E$2*Eingabe!$B$4/(Eingabe!$B$4+$B70)*E70 -> 7.221168336e-16 | N70: =$E$2*Eingabe!$B$4/(Eingabe!$B$4+$B70)*F70 -> 0.09090912321 | O70: =$E$2*Eingabe!$B$4/(Eingabe!$B$4+$B70)*G70 -> 1.144478054e-25 | P70: =$E$2*Eingabe!$B$4/(Eingabe!$B$4+$B70)*H70 -> 1.440812505e-49
A71: =Berechnung!M70 -> 6.2 | B71: =Berechnung!N70 -> 9.999969245 | C71: 6.309573445e-07 | D71: 1.584893192e-08 | E71: 6.309573445e-15 | F71: 1 | G71: 1.584893192e-24 | H71: 2.511886432e-48 | I71: 6.309573445e-16 | J71: 0.1 | K71: 1.584893192e-25 | L71: 2.511886432e-49 | M71: =$E$2*Eingabe!$B$4/(Eingabe!$B$4+$B71)*E71 -> 5.735977463e-16 | N71: =$E$2*Eingabe!$B$4/(Eingabe!$B$4+$B71)*F71 -> 0.09090911633 | O71: =$E$2*Eingabe!$B$4/(Eingabe!$B$4+$B71)*G71 -> 1.440812396e-25 | P71: =$E$2*Eingabe!$B$4/(Eingabe!$B$4+$B71)*H71 -> 2.283533758e-49
A72: =Berechnung!M71 -> 6.3 | B72: =Berechnung!N71 -> 9.999975938 | C72: 5.011872336e-07 | D72: 1.995262315e-08 | E72: 5.011872336e-15 | F72: 1 | G72: 1.995262315e-24 | H72: 3.981071706e-48 | I72: 5.011872336e-16 | J72: 0.1 | K72: 1.995262315e-25 | L72: 3.981071706e-49 | M72: =$E$2*Eingabe!$B$4/(Eingabe!$B$4+$B72)*E72 -> 4.556248575e-16 | N72: =$E$2*Eingabe!$B$4/(Eingabe!$B$4+$B72)*F72 -> 0.09090911079 | O72: =$E$2*Eingabe!$B$4/(Eingabe!$B$4+$B72)*G72 -> 1.813875229e-25 | P72: =$E$2*Eingabe!$B$4/(Eingabe!$B$4+$B72)*H72 -> 3.619156888e-49
A73: =Berechnung!M72 -> 6.4 | B73: =Berechnung!N72 -> 9.999981351 | C73: 3.981071706e-07 | D73: 2.511886432e-08 | E73: 3.981071706e-15 | F73: 1 | G73: 2.511886432e-24 | H73: 6.309573445e-48 | I73: 3.981071706e-16 | J73: 0.1 | K73: 2.511886432e-25 | L73: 6.309573445e-49 | M73: =$E$2*Eingabe!$B$4/(Eingabe!$B$4+$B73)*E73 -> 3.61915671e-16 | N73: =$E$2*Eingabe!$B$4/(Eingabe!$B$4+$B73)*F73 -> 0.09090910632 | O73: =$E$2*Eingabe!$B$4/(Eingabe!$B$4+$B73)*G73 -> 2.283533507e-25 | P73: =$E$2*Eingabe!$B$4/(Eingabe!$B$4+$B73)*H73 -> 5.735976831e-49
A74: =Berechnung!M73 -> 6.5 | B74: =Berechnung!N73 -> 9.99998577 | C74: =10^-A74 -> 3.16227766e-07 | D74: =10^-(14-A74) -> 3.16227766e-08 | E74: 3.16227766e-15 | F74: 1 | G74: 3.16227766e-24 | H74: 1e-47 | I74: =$E$2*E74 -> 3.16227766e-16 | J74: =$E$2*F74 -> 0.1 | K74: =$E$2*G74 -> 3.16227766e-25 | L74: =$E$2*H74 -> 1e-48 | M74: =$E$2*Eingabe!$B$4/(Eingabe!$B$4+$B74)*E74 -> 2.874798245e-16 | N74: =$E$2*Eingabe!$B$4/(Eingabe!$B$4+$B74)*F74 -> 0.09090910267 | O74: =$E$2*Eingabe!$B$4/(Eingabe!$B$4+$B74)*G74 -> 2.874798245e-25 | P74: =$E$2*Eingabe!$B$4/(Eingabe!$B$4+$B74)*H74 -> 9.090910267e-49
A75: =Berechnung!M74 -> 6.6 | B75: =Berechnung!N74 -> 9.999989431 | C75: 2.511886432e-07 | D75: 3.981071706e-08 | E75: 2.511886432e-15 | F75: 1 | G75: 3.981071706e-24 | H75: 1.584893192e-47 | I75: 2.511886432e-16 | J75: 0.1 | K75: 3.981071706e-25 | L75: 1.584893192e-48 | M75: =$E$2*Eingabe!$B$4/(Eingabe!$B$4+$B75)*E75 -> 2.283533339e-16 | N75: =$E$2*Eingabe!$B$4/(Eingabe!$B$4+$B75)*F75 -> 0.09090909964 | O75: =$E$2*Eingabe!$B$4/(Eingabe!$B$4+$B75)*G75 -> 3.619156444e-25 | P75: =$E$2*Eingabe!$B$4/(Eingabe!$B$4+$B75)*H75 -> 1.440812132e-48
A76: =Berechnung!M75 -> 6.7 | B76: =Berechnung!N75 -> 9.99999253 | C76: 1.995262315e-07 | D76: 5.011872336e-08 | E76: 1.995262315e-15 | F76: 1 | G76: 5.011872336e-24 | H76: 2.511886432e-47 | I76: 1.995262315e-16 | J76: 0.1 | K76: 5.011872336e-25 | L76: 2.511886432e-48 | M76: =$E$2*Eingabe!$B$4/(Eingabe!$B$4+$B76)*E76 -> 1.813874955e-16 | N76: =$E$2*Eingabe!$B$4/(Eingabe!$B$4+$B76)*F76 -> 0.09090909708 | O76: =$E$2*Eingabe!$B$4/(Eingabe!$B$4+$B76)*G76 -> 4.556247888e-25 | P76: =$E$2*Eingabe!$B$4/(Eingabe!$B$4+$B76)*H76 -> 2.283533275e-48
A77: =Berechnung!M76 -> 6.8 | B77: =Berechnung!N76 -> 9.99999523 | C77: 1.584893192e-07 | D77: 6.309573445e-08 | E77: 1.584893192e-15 | F77: 1 | G77: 6.309573445e-24 | H77: 3.981071706e-47 | I77: 1.584893192e-16 | J77: 0.1 | K77: 6.309573445e-25 | L77: 3.981071706e-48 | M77: =$E$2*Eingabe!$B$4/(Eingabe!$B$4+$B77)*E77 -> 1.440812056e-16 | N77: =$E$2*Eingabe!$B$4/(Eingabe!$B$4+$B77)*F77 -> 0.09090909485 | O77: =$E$2*Eingabe!$B$4/(Eingabe!$B$4+$B77)*G77 -> 5.735976108e-25 | P77: =$E$2*Eingabe!$B$4/(Eingabe!$B$4+$B77)*H77 -> 3.619156253e-48
A78: =Berechnung!M77 -> 6.9 | B78: =Berechnung!N77 -> 9.999997677 | C78: 1.258925412e-07 | D78: 7.943282347e-08 | E78: 1.258925412e-15 | F78: 1 | G78: 7.943282347e-24 | H78: 6.309573445e-47 | I78: 1.258925412e-16 | J78: 0.1 | K78: 7.943282347e-25 | L78: 6.309573445e-48 | M78: =$E$2*Eingabe!$B$4/(Eingabe!$B$4+$B78)*E78 -> 1.144477671e-16 | N78: =$E$2*Eingabe!$B$4/(Eingabe!$B$4+$B78)*F78 -> 0.09090909283 | O78: =$E$2*Eingabe!$B$4/(Eingabe!$B$4+$B78)*G78 -> 7.221165923e-25 | P78: =$E$2*Eingabe!$B$4/(Eingabe!$B$4+$B78)*H78 -> 5.73597598e-48
A79: =Berechnung!M78 -> 7 | B79: =Berechnung!N78 -> 10 | C79: 1e-07 | D79: 1e-07 | E79: 1e-15 | F79: 1 | G79: 1e-23 | H79: 1e-46 | I79: 1e-16 | J79: 0.1 | K79: 1e-24 | L79: 1e-47 | M79: =$E$2*Eingabe!$B$4/(Eingabe!$B$4+$B79)*E79 -> 9.090909091e-17 | N79: =$E$2*Eingabe!$B$4/(Eingabe!$B$4+$B79)*F79 -> 0.09090909091 | O79: =$E$2*Eingabe!$B$4/(Eingabe!$B$4+$B79)*G79 -> 9.090909091e-25 | P79: =$E$2*Eingabe!$B$4/(Eingabe!$B$4+$B79)*H79 -> 9.090909091e-48
A80: =Berechnung!M79 -> 7.1 | B80: =Berechnung!N79 -> 10.00000232 | C80: 7.943282347e-08 | D80: 1.258925412e-07 | E80: 7.943282347e-16 | F80: 1 | G80: 1.258925412e-23 | H80: 1.584893192e-46 | I80: 7.943282347e-17 | J80: 0.1 | K80: 1.258925412e-24 | L80: 1.584893192e-47 | M80: =$E$2*Eingabe!$B$4/(Eingabe!$B$4+$B80)*E80 -> 7.221165618e-17 | N80: =$E$2*Eingabe!$B$4/(Eingabe!$B$4+$B80)*F80 -> 0.09090908899 | O80: =$E$2*Eingabe!$B$4/(Eingabe!$B$4+$B80)*G80 -> 1.144477623e-24 | P80: =$E$2*Eingabe!$B$4/(Eingabe!$B$4+$B80)*H80 -> 1.440811963e-47
A81: =Berechnung!M80 -> 7.2 | B81: =Berechnung!N80 -> 10.00000477 | C81: 6.309573445e-08 | D81: 1.584893192e-07 | E81: 6.309573445e-16 | F81: 1 | G81: 1.584893192e-23 | H81: 2.511886432e-46 | I81: 6.309573445e-17 | J81: 0.1 | K81: 1.584893192e-24 | L81: 2.511886432e-47 | M81: =$E$2*Eingabe!$B$4/(Eingabe!$B$4+$B81)*E81 -> 5.73597561e-17 | N81: =$E$2*Eingabe!$B$4/(Eingabe!$B$4+$B81)*F81 -> 0.09090908697 | O81: =$E$2*Eingabe!$B$4/(Eingabe!$B$4+$B81)*G81 -> 1.440811931e-24 | P81: =$E$2*Eingabe!$B$4/(Eingabe!$B$4+$B81)*H81 -> 2.283533021e-47
A82: =Berechnung!M81 -> 7.3 | B82: =Berechnung!N81 -> 10.00000747 | C82: 5.011872336e-08 | D82: 1.995262315e-07 | E82: 5.011872336e-16 | F82: 1 | G82: 1.995262315e-23 | H82: 3.981071706e-46 | I82: 5.011872336e-17 | J82: 0.1 | K82: 1.995262315e-24 | L82: 3.981071706e-47 | M82: =$E$2*Eingabe!$B$4/(Eingabe!$B$4+$B82)*E82 -> 4.556247269e-17 | N82: =$E$2*Eingabe!$B$4/(Eingabe!$B$4+$B82)*F82 -> 0.09090908474 | O82: =$E$2*Eingabe!$B$4/(Eingabe!$B$4+$B82)*G82 -> 1.813874709e-24 | P82: =$E$2*Eingabe!$B$4/(Eingabe!$B$4+$B82)*H82 -> 3.61915585e-47
A83: =Berechnung!M82 -> 7.4 | B83: =Berechnung!N82 -> 10.00001057 | C83: 3.981071706e-08 | D83: 2.511886432e-07 | E83: 3.981071706e-16 | F83: 1 | G83: 2.511886432e-23 | H83: 6.309573445e-46 | I83: 3.981071706e-17 | J83: 0.1 | K83: 2.511886432e-24 | L83: 6.309573445e-47 | M83: =$E$2*Eingabe!$B$4/(Eingabe!$B$4+$B83)*E83 -> 3.619155748e-17 | N83: =$E$2*Eingabe!$B$4/(Eingabe!$B$4+$B83)*F83 -> 0.09090908217 | O83: =$E$2*Eingabe!$B$4/(Eingabe!$B$4+$B83)*G83 -> 2.2835329e-24 | P83: =$E$2*Eingabe!$B$4/(Eingabe!$B$4+$B83)*H83 -> 5.735975308e-47
A84: =Berechnung!M83 -> 7.5 | B84: =Berechnung!N83 -> 10.00001423 | C84: 3.16227766e-08 | D84: 3.16227766e-07 | E84: 3.16227766e-16 | F84: 1 | G84: 3.16227766e-23 | H84: 1e-45 | I84: 3.16227766e-17 | J84: 0.1 | K84: 3.16227766e-24 | L84: 1e-46 | M84: =$E$2*Eingabe!$B$4/(Eingabe!$B$4+$B84)*E84 -> 2.874797501e-17 | N84: =$E$2*Eingabe!$B$4/(Eingabe!$B$4+$B84)*F84 -> 0.09090907915 | O84: =$E$2*Eingabe!$B$4/(Eingabe!$B$4+$B84)*G84 -> 2.874797501e-24 | P84: =$E$2*Eingabe!$B$4/(Eingabe!$B$4+$B84)*H84 -> 9.090907915e-47
A85: =Berechnung!M84 -> 7.6 | B85: =Berechnung!N84 -> 10.00001865 | C85: 2.511886432e-08 | D85: 3.981071706e-07 | E85: 2.511886432e-16 | F85: 1 | G85: 3.981071706e-23 | H85: 1.584893192e-45 | I85: 2.511886432e-17 | J85: 0.1 | K85: 3.981071706e-24 | L85: 1.584893192e-46 | M85: =$E$2*Eingabe!$B$4/(Eingabe!$B$4+$B85)*E85 -> 2.283532732e-17 | N85: =$E$2*Eingabe!$B$4/(Eingabe!$B$4+$B85)*F85 -> 0.0909090755 | O85: =$E$2*Eingabe!$B$4/(Eingabe!$B$4+$B85)*G85 -> 3.619155482e-24 | P85: =$E$2*Eingabe!$B$4/(Eingabe!$B$4+$B85)*H85 -> 1.440811749e-46
A86: =Berechnung!M85 -> 7.7 | B86: =Berechnung!N85 -> 10.00002406 | C86: 1.995262315e-08 | D86: 5.011872336e-07 | E86: 1.995262315e-16 | F86: 1 | G86: 5.011872336e-23 | H86: 2.511886432e-45 | I86: 1.995262315e-17 | J86: 0.1 | K86: 5.011872336e-24 | L86: 2.511886432e-46 | M86: =$E$2*Eingabe!$B$4/(Eingabe!$B$4+$B86)*E86 -> 1.813874435e-17 | N86: =$E$2*Eingabe!$B$4/(Eingabe!$B$4+$B86)*F86 -> 0.09090907102 | O86: =$E$2*Eingabe!$B$4/(Eingabe!$B$4+$B86)*G86 -> 4.556246582e-24 | P86: =$E$2*Eingabe!$B$4/(Eingabe!$B$4+$B86)*H86 -> 2.28353262e-46
A87: =Berechnung!M86 -> 7.8 | B87: =Berechnung!N86 -> 10.00003076 | C87: 1.584893192e-08 | D87: 6.309573445e-07 | E87: 1.584893192e-16 | F87: 1 | G87: 6.309573445e-23 | H87: 3.981071706e-45 | I87: 1.584893192e-17 | J87: 0.1 | K87: 6.309573445e-24 | L87: 3.981071706e-46 | M87: =$E$2*Eingabe!$B$4/(Eingabe!$B$4+$B87)*E87 -> 1.44081159e-17 | N87: =$E$2*Eingabe!$B$4/(Eingabe!$B$4+$B87)*F87 -> 0.09090906549 | O87: =$E$2*Eingabe!$B$4/(Eingabe!$B$4+$B87)*G87 -> 5.735974255e-24 | P87: =$E$2*Eingabe!$B$4/(Eingabe!$B$4+$B87)*H87 -> 3.619155084e-46
A88: =Berechnung!M87 -> 7.9 | B88: =Berechnung!N87 -> 10.00003909 | C88: 1.258925412e-08 | D88: 7.943282347e-07 | E88: 1.258925412e-16 | F88: 1 | G88: 7.943282347e-23 | H88: 6.309573445e-45 | I88: 1.258925412e-17 | J88: 0.1 | K88: 7.943282347e-24 | L88: 6.309573445e-46 | M88: =$E$2*Eingabe!$B$4/(Eingabe!$B$4+$B88)*E88 -> 1.14447724e-17 | N88: =$E$2*Eingabe!$B$4/(Eingabe!$B$4+$B88)*F88 -> 0.09090905861 | O88: =$E$2*Eingabe!$B$4/(Eingabe!$B$4+$B88)*G88 -> 7.221163204e-24 | P88: =$E$2*Eingabe!$B$4/(Eingabe!$B$4+$B88)*H88 -> 5.735973821e-46
A89: =Berechnung!M88 -> 8 | B89: =Berechnung!N88 -> 10.0000495 | C89: 1e-08 | D89: 1e-06 | E89: =ALPHA(E$8,$A89,$E$3:$E$5) -> 1e-16 | F89: 1 | G89: 1e-22 | H89: 1e-44 | I89: 1e-17 | J89: 0.1 | K89: 1e-23 | L89: 1e-45 | M89: =$E$2*Eingabe!$B$4/(Eingabe!$B$4+$B89)*E89 -> 9.090905e-18 | N89: =$E$2*Eingabe!$B$4/(Eingabe!$B$4+$B89)*F89 -> 0.09090905 | O89: =$E$2*Eingabe!$B$4/(Eingabe!$B$4+$B89)*G89 -> 9.090905e-24 | P89: =$E$2*Eingabe!$B$4/(Eingabe!$B$4+$B89)*H89 -> 9.090905e-46
A90: =Berechnung!M89 -> 8.1 | B90: =Berechnung!N89 -> 10.00006255 | C90: 7.943282347e-09 | D90: 1.258925412e-06 | E90: 7.943282347e-17 | F90: 1 | G90: 1.258925412e-22 | H90: 1.584893192e-44 | I90: 7.943282347e-18 | J90: 0.1 | K90: 1.258925412e-23 | L90: 1.584893192e-45 | M90: =$E$2*Eingabe!$B$4/(Eingabe!$B$4+$B90)*E90 -> 7.221161664e-18 | N90: =$E$2*Eingabe!$B$4/(Eingabe!$B$4+$B90)*F90 -> 0.09090903922 | O90: =$E$2*Eingabe!$B$4/(Eingabe!$B$4+$B90)*G90 -> 1.144476996e-23 | P90: =$E$2*Eingabe!$B$4/(Eingabe!$B$4+$B90)*H90 -> 1.440811174e-45
A91: =Berechnung!M90 -> 8.2 | B91: =Berechnung!N90 -> 10.00007893 | C91: 6.309573445e-09 | D91: 1.584893192e-06 | E91: 6.309573445e-17 | F91: 1 | G91: 1.584893192e-22 | H91: 2.511886432e-44 | I91: 6.309573445e-18 | J91: 0.1 | K91: 1.584893192e-23 | L91: 2.511886432e-45 | M91: =$E$2*Eingabe!$B$4/(Eingabe!$B$4+$B91)*E91 -> 5.735971743e-18 | N91: =$E$2*Eingabe!$B$4/(Eingabe!$B$4+$B91)*F91 -> 0.09090902568 | O91: =$E$2*Eingabe!$B$4/(Eingabe!$B$4+$B91)*G91 -> 1.440810959e-23 | P91: =$E$2*Eingabe!$B$4/(Eingabe!$B$4+$B91)*H91 -> 2.283531481e-45
A92: =Berechnung!M91 -> 8.3 | B92: =Berechnung!N91 -> 10.00009951 | C92: 5.011872336e-09 | D92: 1.995262315e-06 | E92: 5.011872336e-17 | F92: 1 | G92: 1.995262315e-22 | H92: 3.981071706e-44 | I92: 5.011872336e-18 | J92: 0.1 | K92: 1.995262315e-23 | L92: 3.981071706e-45 | M92: =$E$2*Eingabe!$B$4/(Eingabe!$B$4+$B92)*E92 -> 4.556243457e-18 | N92: =$E$2*Eingabe!$B$4/(Eingabe!$B$4+$B92)*F92 -> 0.09090900867 | O92: =$E$2*Eingabe!$B$4/(Eingabe!$B$4+$B92)*G92 -> 1.813873191e-23 | P92: =$E$2*Eingabe!$B$4/(Eingabe!$B$4+$B92)*H92 -> 3.619152822e-45
A93: =Berechnung!M92 -> 8.4 | B93: =Berechnung!N92 -> 10.0001254 | C93: 3.981071706e-09 | D93: 2.511886432e-06 | E93: 3.981071706e-17 | F93: 1 | G93: 2.511886432e-22 | H93: 6.309573445e-44 | I93: 3.981071706e-18 | J93: 0.1 | K93: 2.511886432e-23 | L93: 6.309573445e-45 | M93: =$E$2*Eingabe!$B$4/(Eingabe!$B$4+$B93)*E93 -> 3.61915197e-18 | N93: =$E$2*Eingabe!$B$4/(Eingabe!$B$4+$B93)*F93 -> 0.09090898728 | O93: =$E$2*Eingabe!$B$4/(Eingabe!$B$4+$B93)*G93 -> 2.283530516e-23 | P93: =$E$2*Eingabe!$B$4/(Eingabe!$B$4+$B93)*H93 -> 5.73596932e-45
A94: =Berechnung!M93 -> 8.5 | B94: =Berechnung!N93 -> 10.00015796 | C94: 3.16227766e-09 | D94: 3.16227766e-06 | E94: 3.16227766e-17 | F94: 1 | G94: 3.16227766e-22 | H94: 1e-43 | I94: 3.16227766e-18 | J94: 0.1 | K94: 3.16227766e-23 | L94: 1e-44 | M94: =$E$2*Eingabe!$B$4/(Eingabe!$B$4+$B94)*E94 -> 2.874793745e-18 | N94: =$E$2*Eingabe!$B$4/(Eingabe!$B$4+$B94)*F94 -> 0.09090896037 | O94: =$E$2*Eingabe!$B$4/(Eingabe!$B$4+$B94)*G94 -> 2.874793745e-23 | P94: =$E$2*Eingabe!$B$4/(Eingabe!$B$4+$B94)*H94 -> 9.090896037e-45
A95: =Berechnung!M94 -> 8.6 | B95: =Berechnung!N94 -> 10.00019893 | C95: 2.511886432e-09 | D95: 3.981071706e-06 | E95: 2.511886432e-17 | F95: 1 | G95: 3.981071706e-22 | H95: 1.584893192e-43 | I95: 2.511886432e-18 | J95: 0.1 | K95: 3.981071706e-23 | L95: 1.584893192e-44 | M95: =$E$2*Eingabe!$B$4/(Eingabe!$B$4+$B95)*E95 -> 2.28352899e-18 | N95: =$E$2*Eingabe!$B$4/(Eingabe!$B$4+$B95)*F95 -> 0.09090892651 | O95: =$E$2*Eingabe!$B$4/(Eingabe!$B$4+$B95)*G95 -> 3.619149551e-23 | P95: =$E$2*Eingabe!$B$4/(Eingabe!$B$4+$B95)*H95 -> 1.440809388e-44
A96: =Berechnung!M95 -> 8.7 | B96: =Berechnung!N95 -> 10.00025049 | C96: 1.995262315e-09 | D96: 5.011872336e-06 | E96: 1.995262315e-17 | F96: 1 | G96: 5.011872336e-22 | H96: 2.511886432e-43 | I96: 1.995262315e-18 | J96: 0.1 | K96: 5.011872336e-23 | L96: 2.511886432e-44 | M96: =$E$2*Eingabe!$B$4/(Eingabe!$B$4+$B96)*E96 -> 1.813870701e-18 | N96: =$E$2*Eingabe!$B$4/(Eingabe!$B$4+$B96)*F96 -> 0.09090888389 | O96: =$E$2*Eingabe!$B$4/(Eingabe!$B$4+$B96)*G96 -> 4.556237203e-23 | P96: =$E$2*Eingabe!$B$4/(Eingabe!$B$4+$B96)*H96 -> 2.283527919e-44
A97: =Berechnung!M96 -> 8.8 | B97: =Berechnung!N96 -> 10.0003154 | C97: 1.584893192e-09 | D97: 6.309573445e-06 | E97: 1.584893192e-17 | F97: 1 | G97: 6.309573445e-22 | H97: 3.981071706e-43 | I97: 1.584893192e-18 | J97: 0.1 | K97: 6.309573445e-23 | L97: 3.981071706e-44 | M97: =$E$2*Eingabe!$B$4/(Eingabe!$B$4+$B97)*E97 -> 1.440807862e-18 | N97: =$E$2*Eingabe!$B$4/(Eingabe!$B$4+$B97)*F97 -> 0.09090883025 | O97: =$E$2*Eingabe!$B$4/(Eingabe!$B$4+$B97)*G97 -> 5.735959412e-23 | P97: =$E$2*Eingabe!$B$4/(Eingabe!$B$4+$B97)*H97 -> 3.619145719e-44
A98: =Berechnung!M97 -> 8.9 | B98: =Berechnung!N97 -> 10.0003971 | C98: 1.258925412e-09 | D98: 7.943282347e-06 | E98: 1.258925412e-17 | F98: 1 | G98: 7.943282347e-22 | H98: 6.309573445e-43 | I98: 1.258925412e-18 | J98: 0.1 | K98: 7.943282347e-23 | L98: 6.309573445e-44 | M98: =$E$2*Eingabe!$B$4/(Eingabe!$B$4+$B98)*E98 -> 1.144473516e-18 | N98: =$E$2*Eingabe!$B$4/(Eingabe!$B$4+$B98)*F98 -> 0.09090876273 | O98: =$E$2*Eingabe!$B$4/(Eingabe!$B$4+$B98)*G98 -> 7.221139702e-23 | P98: =$E$2*Eingabe!$B$4/(Eingabe!$B$4+$B98)*H98 -> 5.735955152e-44
A99: =Berechnung!M98 -> 9 | B99: =Berechnung!N98 -> 10.00049995 | C99: 1e-09 | D99: 1e-05 | E99: 1e-17 | F99: 1 | G99: 1e-21 | H99: 1e-42 | I99: 1e-18 | J99: 0.1 | K99: 1e-22 | L99: 1e-43 | M99: =$E$2*Eingabe!$B$4/(Eingabe!$B$4+$B99)*E99 -> 9.090867773e-19 | N99: =$E$2*Eingabe!$B$4/(Eingabe!$B$4+$B99)*F99 -> 0.09090867773 | O99: =$E$2*Eingabe!$B$4/(Eingabe!$B$4+$B99)*G99 -> 9.090867773e-23 | P99: =$E$2*Eingabe!$B$4/(Eingabe!$B$4+$B99)*H99 -> 9.090867773e-44
A100: =Berechnung!M99 -> 9.1 | B100: =Berechnung!N99 -> 10.00062942 | C100: 7.943282347e-10 | D100: 1.258925412e-05 | E100: 7.943282347e-18 | F100: 1 | G100: 1.258925412e-21 | H100: 1.584893192e-42 | I100: 7.943282347e-19 | J100: 0.1 | K100: 1.258925412e-22 | L100: 1.584893192e-43 | M100: =$E$2*Eingabe!$B$4/(Eingabe!$B$4+$B100)*E100 -> 7.221124451e-19 | N100: =$E$2*Eingabe!$B$4/(Eingabe!$B$4+$B100)*F100 -> 0.09090857073 | O100: =$E$2*Eingabe!$B$4/(Eingabe!$B$4+$B100)*G100 -> 1.144471098e-22 | P100: =$E$2*Eingabe!$B$4/(Eingabe!$B$4+$B100)*H100 -> 1.440803749e-43
A101: =Berechnung!M100 -> 9.2 | B101: =Berechnung!N100 -> 10.00079242 | C101: 6.309573445e-10 | D101: 1.584893192e-05 | E101: 6.309573445e-18 | F101: 1 | G101: 1.584893192e-21 | H101: 2.511886432e-42 | I101: 6.309573445e-19 | J101: 0.1 | K101: 1.584893192e-22 | L101: 2.511886432e-43 | M101: =$E$2*Eingabe!$B$4/(Eingabe!$B$4+$B101)*E101 -> 5.735934539e-19 | N101: =$E$2*Eingabe!$B$4/(Eingabe!$B$4+$B101)*F101 -> 0.09090843603 | O101: =$E$2*Eingabe!$B$4/(Eingabe!$B$4+$B101)*G101 -> 1.440801614e-22 | P101: =$E$2*Eingabe!$B$4/(Eingabe!$B$4+$B101)*H101 -> 2.28351667e-43
A102: =Berechnung!M101 -> 9.3 | B102: =Berechnung!N101 -> 10.00099761 | C102: 5.011872336e-10 | D102: 1.995262315e-05 | E102: 5.011872336e-18 | F102: 1 | G102: 1.995262315e-21 | H102: 3.981071706e-42 | I102: 5.011872336e-19 | J102: 0.1 | K102: 1.995262315e-22 | L102: 3.981071706e-43 | M102: =$E$2*Eingabe!$B$4/(Eingabe!$B$4+$B102)*E102 -> 4.556206258e-19 | N102: =$E$2*Eingabe!$B$4/(Eingabe!$B$4+$B102)*F102 -> 0.09090826645 | O102: =$E$2*Eingabe!$B$4/(Eingabe!$B$4+$B102)*G102 -> 1.813858382e-22 | P102: =$E$2*Eingabe!$B$4/(Eingabe!$B$4+$B102)*H102 -> 3.619123274e-43
A103: =Berechnung!M102 -> 9.4 | B103: =Berechnung!N102 -> 10.00125592 | C103: 3.981071706e-10 | D103: 2.511886432e-05 | E103: 3.981071706e-18 | F103: 1 | G103: 2.511886432e-21 | H103: 6.309573445e-42 | I103: 3.981071706e-19 | J103: 0.1 | K103: 2.511886432e-22 | L103: 6.309573445e-43 | M103: =$E$2*Eingabe!$B$4/(Eingabe!$B$4+$B103)*E103 -> 3.619114775e-19 | N103: =$E$2*Eingabe!$B$4/(Eingabe!$B$4+$B103)*F103 -> 0.09090805297 | O103: =$E$2*Eingabe!$B$4/(Eingabe!$B$4+$B103)*G103 -> 2.283507048e-22 | P103: =$E$2*Eingabe!$B$4/(Eingabe!$B$4+$B103)*H103 -> 5.735910369e-43
A104: =Berechnung!M103 -> 9.5 | B104: =Berechnung!N103 -> 10.00158112 | C104: 3.16227766e-10 | D104: 3.16227766e-05 | E104: 3.16227766e-18 | F104: 1 | G104: 3.16227766e-21 | H104: 1e-41 | I104: 3.16227766e-19 | J104: 0.1 | K104: 3.16227766e-22 | L104: 1e-42 | M104: =$E$2*Eingabe!$B$4/(Eingabe!$B$4+$B104)*E104 -> 2.874756552e-19 | N104: =$E$2*Eingabe!$B$4/(Eingabe!$B$4+$B104)*F104 -> 0.09090778421 | O104: =$E$2*Eingabe!$B$4/(Eingabe!$B$4+$B104)*G104 -> 2.874756552e-22 | P104: =$E$2*Eingabe!$B$4/(Eingabe!$B$4+$B104)*H104 -> 9.090778421e-43
A105: =Berechnung!M104 -> 9.6 | B105: =Berechnung!N104 -> 10.00199052 | C105: 2.511886432e-10 | D105: 3.981071706e-05 | E105: 2.511886432e-18 | F105: 1 | G105: 3.981071706e-21 | H105: 1.584893192e-41 | I105: 2.511886432e-19 | J105: 0.1 | K105: 3.981071706e-22 | L105: 1.584893192e-42 | M105: =$E$2*Eingabe!$B$4/(Eingabe!$B$4+$B105)*E105 -> 2.283491798e-19 | N105: =$E$2*Eingabe!$B$4/(Eingabe!$B$4+$B105)*F105 -> 0.09090744588 | O105: =$E$2*Eingabe!$B$4/(Eingabe!$B$4+$B105)*G105 -> 3.619090606e-22 | P105: =$E$2*Eingabe!$B$4/(Eingabe!$B$4+$B105)*H105 -> 1.440785921e-42
A106: =Berechnung!M105 -> 9.7 | B106: =Berechnung!N105 -> 10.00250593 | C106: 1.995262315e-10 | D106: 5.011872336e-05 | E106: 1.995262315e-18 | F106: 1 | G106: 5.011872336e-21 | H106: 2.511886432e-41 | I106: 1.995262315e-19 | J106: 0.1 | K106: 5.011872336e-22 | L106: 2.511886432e-42 | M106: =$E$2*Eingabe!$B$4/(Eingabe!$B$4+$B106)*E106 -> 1.813833511e-19 | N106: =$E$2*Eingabe!$B$4/(Eingabe!$B$4+$B106)*F106 -> 0.09090701994 | O106: =$E$2*Eingabe!$B$4/(Eingabe!$B$4+$B106)*G106 -> 4.556143784e-22 | P106: =$E$2*Eingabe!$B$4/(Eingabe!$B$4+$B106)*H106 -> 2.283481099e-42
A107: =Berechnung!M106 -> 9.8 | B107: =Berechnung!N106 -> 10.00315478 | C107: 1.584893192e-10 | D107: 6.309573445e-05 | E107: 1.584893192e-18 | F107: 1 | G107: 6.309573445e-21 | H107: 3.981071706e-41 | I107: 1.584893192e-19 | J107: 0.1 | K107: 6.309573445e-22 | L107: 3.981071706e-42 | M107: =$E$2*Eingabe!$B$4/(Eingabe!$B$4+$B107)*E107 -> 1.440770672e-19 | N107: =$E$2*Eingabe!$B$4/(Eingabe!$B$4+$B107)*F107 -> 0.09090648373 | O107: =$E$2*Eingabe!$B$4/(Eingabe!$B$4+$B107)*G107 -> 5.735811357e-22 | P107: =$E$2*Eingabe!$B$4/(Eingabe!$B$4+$B107)*H107 -> 3.619052302e-42
A108: =Berechnung!M107 -> 9.9 | B108: =Berechnung!N107 -> 10.00397164 | C108: 1.258925412e-10 | D108: 7.943282347e-05 | E108: 1.258925412e-18 | F108: 1 | G108: 7.943282347e-21 | H108: 6.309573445e-41 | I108: 1.258925412e-19 | J108: 0.1 | K108: 7.943282347e-22 | L108: 6.309573445e-42 | M108: =$E$2*Eingabe!$B$4/(Eingabe!$B$4+$B108)*E108 -> 1.144436326e-19 | N108: =$E$2*Eingabe!$B$4/(Eingabe!$B$4+$B108)*F108 -> 0.09090580868 | O108: =$E$2*Eingabe!$B$4/(Eingabe!$B$4+$B108)*G108 -> 7.220905054e-22 | P108: =$E$2*Eingabe!$B$4/(Eingabe!$B$4+$B108)*H108 -> 5.735768765e-42
A109: =Berechnung!M108 -> 10 | B109: =Berechnung!N108 -> 10.005 | C109: 1e-10 | D109: 0.0001 | E109: =ALPHA(E$8,$A109,$E$3:$E$5) -> 1e-18 | F109: 1 | G109: 1e-20 | H109: 1e-40 | I109: 1e-19 | J109: 0.1 | K109: 1e-21 | L109: 1e-41 | M109: =$E$2*Eingabe!$B$4/(Eingabe!$B$4+$B109)*E109 -> 9.090495887e-20 | N109: =$E$2*Eingabe!$B$4/(Eingabe!$B$4+$B109)*F109 -> 0.09090495887 | O109: =$E$2*Eingabe!$B$4/(Eingabe!$B$4+$B109)*G109 -> 9.090495887e-22 | P109: =$E$2*Eingabe!$B$4/(Eingabe!$B$4+$B109)*H109 -> 9.090495887e-42
A110: =Berechnung!M109 -> 10.1 | B110: =Berechnung!N109 -> 10.00629462 | C110: 7.943282347e-11 | D110: 0.0001258925412 | E110: 7.943282347e-19 | F110: 1 | G110: 1.258925412e-20 | H110: 1.584893192e-40 | I110: 7.943282347e-20 | J110: 0.1 | K110: 1.258925412e-21 | L110: 1.584893192e-41 | M110: =$E$2*Eingabe!$B$4/(Eingabe!$B$4+$B110)*E110 -> 7.220752571e-20 | N110: =$E$2*Eingabe!$B$4/(Eingabe!$B$4+$B110)*F110 -> 0.09090388904 | O110: =$E$2*Eingabe!$B$4/(Eingabe!$B$4+$B110)*G110 -> 1.144412159e-21 | P110: =$E$2*Eingabe!$B$4/(Eingabe!$B$4+$B110)*H110 -> 1.440729549e-41
A111: =Berechnung!M110 -> 10.2 | B111: =Berechnung!N110 -> 10.00792446 | C111: 6.309573445e-11 | D111: 0.0001584893192 | E111: 6.309573445e-19 | F111: 1 | G111: 1.584893192e-20 | H111: 2.511886432e-40 | I111: 6.309573445e-20 | J111: 0.1 | K111: 1.584893192e-21 | L111: 2.511886432e-41 | M111: =$E$2*Eingabe!$B$4/(Eingabe!$B$4+$B111)*E111 -> 5.735562666e-20 | N111: =$E$2*Eingabe!$B$4/(Eingabe!$B$4+$B111)*F111 -> 0.09090254224 | O111: =$E$2*Eingabe!$B$4/(Eingabe!$B$4+$B111)*G111 -> 1.440708204e-21 | P111: =$E$2*Eingabe!$B$4/(Eingabe!$B$4+$B111)*H111 -> 2.283368624e-41
A112: =Berechnung!M111 -> 10.3 | B112: =Berechnung!N111 -> 10.00997631 | C112: 5.011872336e-11 | D112: 0.0001995262315 | E112: 5.011872336e-19 | F112: 1 | G112: 1.995262315e-20 | H112: 3.981071706e-40 | I112: 5.011872336e-20 | J112: 0.1 | K112: 1.995262315e-21 | L112: 3.981071706e-41 | M112: =$E$2*Eingabe!$B$4/(Eingabe!$B$4+$B112)*E112 -> 4.555834393e-20 | N112: =$E$2*Eingabe!$B$4/(Eingabe!$B$4+$B112)*F112 -> 0.09090084677 | O112: =$E$2*Eingabe!$B$4/(Eingabe!$B$4+$B112)*G112 -> 1.81371034e-21 | P112: =$E$2*Eingabe!$B$4/(Eingabe!$B$4+$B112)*H112 -> 3.618827891e-41
A113: =Berechnung!M112 -> 10.4 | B113: =Berechnung!N112 -> 10.01255943 | C113: 3.981071706e-11 | D113: 0.0002511886432 | E113: 3.981071706e-19 | F113: 1 | G113: 2.511886432e-20 | H113: 6.309573445e-40 | I113: 3.981071706e-20 | J113: 0.1 | K113: 2.511886432e-21 | L113: 6.309573445e-41 | M113: =$E$2*Eingabe!$B$4/(Eingabe!$B$4+$B113)*E113 -> 3.61874292e-20 | N113: =$E$2*Eingabe!$B$4/(Eingabe!$B$4+$B113)*F113 -> 0.0908987124 | O113: =$E$2*Eingabe!$B$4/(Eingabe!$B$4+$B113)*G113 -> 2.283272423e-21 | P113: =$E$2*Eingabe!$B$4/(Eingabe!$B$4+$B113)*H113 -> 5.735321019e-41
A114: =Berechnung!M113 -> 10.5 | B114: =Berechnung!N113 -> 10.01581139 | C114: 3.16227766e-11 | D114: 0.000316227766 | E114: 3.16227766e-19 | F114: 1 | G114: 3.16227766e-20 | H114: 1e-39 | I114: 3.16227766e-20 | J114: 0.1 | K114: 3.16227766e-21 | L114: 1e-40 | M114: =$E$2*Eingabe!$B$4/(Eingabe!$B$4+$B114)*E114 -> 2.874384709e-20 | N114: =$E$2*Eingabe!$B$4/(Eingabe!$B$4+$B114)*F114 -> 0.09089602552 | O114: =$E$2*Eingabe!$B$4/(Eingabe!$B$4+$B114)*G114 -> 2.874384709e-21 | P114: =$E$2*Eingabe!$B$4/(Eingabe!$B$4+$B114)*H114 -> 9.089602552e-41
A115: =Berechnung!M114 -> 10.6 | B115: =Berechnung!N114 -> 10.01990536 | C115: 2.511886432e-11 | D115: 0.0003981071706 | E115: 2.511886432e-19 | F115: 1 | G115: 3.981071706e-20 | H115: 1.584893192e-39 | I115: 2.511886432e-20 | J115: 0.1 | K115: 3.981071706e-21 | L115: 1.584893192e-40 | M115: =$E$2*Eingabe!$B$4/(Eingabe!$B$4+$B115)*E115 -> 2.283119971e-20 | N115: =$E$2*Eingabe!$B$4/(Eingabe!$B$4+$B115)*F115 -> 0.09089264317 | O115: =$E$2*Eingabe!$B$4/(Eingabe!$B$4+$B115)*G115 -> 3.6185013e-21 | P115: =$E$2*Eingabe!$B$4/(Eingabe!$B$4+$B115)*H115 -> 1.440551314e-40
A116: =Berechnung!M115 -> 10.7 | B116: =Berechnung!N115 -> 10.02505937 | C116: 1.995262315e-11 | D116: 0.0005011872336 | E116: 1.995262315e-19 | F116: 1 | G116: 5.011872336e-20 | H116: 2.511886432e-39 | I116: 1.995262315e-20 | J116: 0.1 | K116: 5.011872336e-21 | L116: 2.511886432e-40 | M116: =$E$2*Eingabe!$B$4/(Eingabe!$B$4+$B116)*E116 -> 1.813461703e-20 | N116: =$E$2*Eingabe!$B$4/(Eingabe!$B$4+$B116)*F116 -> 0.09088838541 | O116: =$E$2*Eingabe!$B$4/(Eingabe!$B$4+$B116)*G116 -> 4.555209845e-21 | P116: =$E$2*Eingabe!$B$4/(Eingabe!$B$4+$B116)*H116 -> 2.283013021e-40
A117: =Berechnung!M116 -> 10.8 | B117: =Berechnung!N116 -> 10.03154787 | C117: 1.584893192e-11 | D117: 0.0006309573445 | E117: 1.584893192e-19 | F117: 1 | G117: 6.309573445e-20 | H117: 3.981071706e-39 | I117: 1.584893192e-20 | J117: 0.1 | K117: 6.309573445e-21 | L117: 3.981071706e-40 | M117: =$E$2*Eingabe!$B$4/(Eingabe!$B$4+$B117)*E117 -> 1.440398888e-20 | N117: =$E$2*Eingabe!$B$4/(Eingabe!$B$4+$B117)*F117 -> 0.09088302576 | O117: =$E$2*Eingabe!$B$4/(Eingabe!$B$4+$B117)*G117 -> 5.734331259e-21 | P117: =$E$2*Eingabe!$B$4/(Eingabe!$B$4+$B117)*H117 -> 3.618118424e-40
A118: =Berechnung!M117 -> 10.9 | B118: =Berechnung!N117 -> 10.03971642 | C118: 1.258925412e-11 | D118: 0.0007943282347 | E118: 1.258925412e-19 | F118: 1 | G118: 7.943282347e-20 | H118: 6.309573445e-39 | I118: 1.258925412e-20 | J118: 0.1 | K118: 7.943282347e-21 | L118: 6.309573445e-40 | M118: =$E$2*Eingabe!$B$4/(Eingabe!$B$4+$B118)*E118 -> 1.144064573e-20 | N118: =$E$2*Eingabe!$B$4/(Eingabe!$B$4+$B118)*F118 -> 0.09087627927 | O118: =$E$2*Eingabe!$B$4/(Eingabe!$B$4+$B118)*G118 -> 7.218559449e-21 | P118: =$E$2*Eingabe!$B$4/(Eingabe!$B$4+$B118)*H118 -> 5.733905584e-40
A119: =Berechnung!M118 -> 11 | B119: =Berechnung!N118 -> 10.05000001 | C119: 1e-11 | D119: 0.001 | E119: 1e-19 | F119: 1 | G119: 1e-19 | H119: 1e-38 | I119: 1e-20 | J119: 0.1 | K119: 1e-20 | L119: 1e-39 | M119: =$E$2*Eingabe!$B$4/(Eingabe!$B$4+$B119)*E119 -> 9.086778736e-21 | N119: =$E$2*Eingabe!$B$4/(Eingabe!$B$4+$B119)*F119 -> 0.09086778736 | O119: =$E$2*Eingabe!$B$4/(Eingabe!$B$4+$B119)*G119 -> 9.086778736e-21 | P119: =$E$2*Eingabe!$B$4/(Eingabe!$B$4+$B119)*H119 -> 9.086778736e-40
A120: =Berechnung!M119 -> 11.1 | B120: =Berechnung!N119 -> 10.06294628 | C120: 7.943282347e-12 | D120: 0.001258925412 | E120: 7.943282347e-20 | F120: 1 | G120: 1.258925412e-19 | H120: 1.584893192e-38 | I120: 7.943282347e-21 | J120: 0.1 | K120: 1.258925412e-20 | L120: 1.584893192e-39 | M120: =$E$2*Eingabe!$B$4/(Eingabe!$B$4+$B120)*E120 -> 7.217035901e-21 | N120: =$E$2*Eingabe!$B$4/(Eingabe!$B$4+$B120)*F120 -> 0.09085709894 | O120: =$E$2*Eingabe!$B$4/(Eingabe!$B$4+$B120)*G120 -> 1.143823107e-20 | P120: =$E$2*Eingabe!$B$4/(Eingabe!$B$4+$B120)*H120 -> 1.439987976e-39
A121: =Berechnung!M120 -> 11.2 | B121: =Berechnung!N120 -> 10.07924468 | C121: 6.309573445e-12 | D121: 0.001584893192 | E121: 6.309573445e-20 | F121: 1 | G121: 1.584893192e-19 | H121: 2.511886432e-38 | I121: 6.309573445e-21 | J121: 0.1 | K121: 1.584893192e-20 | L121: 2.511886432e-39 | M121: =$E$2*Eingabe!$B$4/(Eingabe!$B$4+$B121)*E121 -> 5.731846601e-21 | N121: =$E$2*Eingabe!$B$4/(Eingabe!$B$4+$B121)*F121 -> 0.09084364659 | O121: =$E$2*Eingabe!$B$4/(Eingabe!$B$4+$B121)*G121 -> 1.439774771e-20 | P121: =$E$2*Eingabe!$B$4/(Eingabe!$B$4+$B121)*H121 -> 2.281889233e-39
A122: =Berechnung!M121 -> 11.3 | B122: =Berechnung!N121 -> 10.09976314 | C122: 5.011872336e-12 | D122: 0.001995262315 | E122: 5.011872336e-20 | F122: 1 | G122: 1.995262315e-19 | H122: 3.981071706e-38 | I122: 5.011872336e-21 | J122: 0.1 | K122: 1.995262315e-20 | L122: 3.981071706e-39 | M122: =$E$2*Eingabe!$B$4/(Eingabe!$B$4+$B122)*E122 -> 4.55211909e-21 | N122: =$E$2*Eingabe!$B$4/(Eingabe!$B$4+$B122)*F122 -> 0.09082671674 | O122: =$E$2*Eingabe!$B$4/(Eingabe!$B$4+$B122)*G122 -> 1.812231251e-20 | P122: =$E$2*Eingabe!$B$4/(Eingabe!$B$4+$B122)*H122 -> 3.615876721e-39
A123: =Berechnung!M122 -> 11.4 | B123: =Berechnung!N122 -> 10.12559435 | C123: 3.981071706e-12 | D123: 0.002511886432 | E123: 3.981071706e-20 | F123: 1 | G123: 2.511886432e-19 | H123: 6.309573445e-38 | I123: 3.981071706e-21 | J123: 0.1 | K123: 2.511886432e-20 | L123: 6.309573445e-39 | M123: =$E$2*Eingabe!$B$4/(Eingabe!$B$4+$B123)*E123 -> 3.615028576e-21 | N123: =$E$2*Eingabe!$B$4/(Eingabe!$B$4+$B123)*F123 -> 0.09080541231 | O123: =$E$2*Eingabe!$B$4/(Eingabe!$B$4+$B123)*G123 -> 2.280928831e-20 | P123: =$E$2*Eingabe!$B$4/(Eingabe!$B$4+$B123)*H123 -> 5.729434181e-39
A124: =Berechnung!M123 -> 11.5 | B124: =Berechnung!N123 -> 10.15811391 | C124: 3.16227766e-12 | D124: 0.00316227766 | E124: 3.16227766e-20 | F124: 1 | G124: 3.16227766e-19 | H124: 1e-37 | I124: 3.16227766e-21 | J124: 0.1 | K124: 3.16227766e-20 | L124: 1e-38 | M124: =$E$2*Eingabe!$B$4/(Eingabe!$B$4+$B124)*E124 -> 2.870671572e-21 | N124: =$E$2*Eingabe!$B$4/(Eingabe!$B$4+$B124)*F124 -> 0.09077860581 | O124: =$E$2*Eingabe!$B$4/(Eingabe!$B$4+$B124)*G124 -> 2.870671572e-20 | P124: =$E$2*Eingabe!$B$4/(Eingabe!$B$4+$B124)*H124 -> 9.077860581e-39
A125: =Berechnung!M124 -> 11.6 | B125: =Berechnung!N124 -> 10.19905363 | C125: 2.511886432e-12 | D125: 0.003981071706 | E125: 2.511886432e-20 | F125: 1 | G125: 3.981071706e-19 | H125: 1.584893192e-37 | I125: 2.511886432e-21 | J125: 0.1 | K125: 3.981071706e-20 | L125: 1.584893192e-38 | M125: =$E$2*Eingabe!$B$4/(Eingabe!$B$4+$B125)*E125 -> 2.279408351e-21 | N125: =$E$2*Eingabe!$B$4/(Eingabe!$B$4+$B125)*F125 -> 0.09074488093 | O125: =$E$2*Eingabe!$B$4/(Eingabe!$B$4+$B125)*G125 -> 3.612618779e-20 | P125: =$E$2*Eingabe!$B$4/(Eingabe!$B$4+$B125)*H125 -> 1.43820944e-38
A126: =Berechnung!M125 -> 11.7 | B126: =Berechnung!N125 -> 10.25059367 | C126: 1.995262315e-12 | D126: 0.005011872336 | E126: 1.995262315e-20 | F126: 1 | G126: 5.011872336e-19 | H126: 2.511886432e-37 | I126: 1.995262315e-21 | J126: 0.1 | K126: 5.011872336e-20 | L126: 2.511886432e-38 | M126: =$E$2*Eingabe!$B$4/(Eingabe!$B$4+$B126)*E126 -> 1.809751992e-21 | N126: =$E$2*Eingabe!$B$4/(Eingabe!$B$4+$B126)*F126 -> 0.09070245944 | O126: =$E$2*Eingabe!$B$4/(Eingabe!$B$4+$B126)*G126 -> 4.545891473e-20 | P126: =$E$2*Eingabe!$B$4/(Eingabe!$B$4+$B126)*H126 -> 2.278342772e-38
A127: =Berechnung!M126 -> 11.8 | B127: =Berechnung!N126 -> 10.31547874 | C127: 1.584893192e-12 | D127: 0.006309573445 | E127: 1.584893192e-20 | F127: 1 | G127: 6.309573445e-19 | H127: 3.981071706e-37 | I127: 1.584893192e-21 | J127: 0.1 | K127: 6.309573445e-20 | L127: 3.981071706e-38 | M127: =$E$2*Eingabe!$B$4/(Eingabe!$B$4+$B127)*E127 -> 1.436691578e-21 | N127: =$E$2*Eingabe!$B$4/(Eingabe!$B$4+$B127)*F127 -> 0.0906491103 | O127: =$E$2*Eingabe!$B$4/(Eingabe!$B$4+$B127)*G127 -> 5.719572192e-20 | P127: =$E$2*Eingabe!$B$4/(Eingabe!$B$4+$B127)*H127 -> 3.608806082e-38
A128: =Berechnung!M127 -> 11.9 | B128: =Berechnung!N127 -> 10.3971642 | C128: 1.258925412e-12 | D128: 0.007943282347 | E128: 1.258925412e-20 | F128: 1 | G128: 7.943282347e-19 | H128: 6.309573445e-37 | I128: 1.258925412e-21 | J128: 0.1 | K128: 7.943282347e-20 | L128: 6.309573445e-38 | M128: =$E$2*Eingabe!$B$4/(Eingabe!$B$4+$B128)*E128 -> 1.140360281e-21 | N128: =$E$2*Eingabe!$B$4/(Eingabe!$B$4+$B128)*F128 -> 0.09058203689 | O128: =$E$2*Eingabe!$B$4/(Eingabe!$B$4+$B128)*G128 -> 7.195186946e-20 | P128: =$E$2*Eingabe!$B$4/(Eingabe!$B$4+$B128)*H128 -> 5.715340145e-38
A129: =Berechnung!M128 -> 12 | B129: =Berechnung!N128 -> 10.5000001 | C129: 1e-12 | D129: 0.01 | E129: =ALPHA(E$8,$A129,$E$3:$E$5) -> 1e-20 | F129: 1 | G129: 1e-18 | H129: 1e-36 | I129: 1e-21 | J129: 0.1 | K129: 1e-19 | L129: 1e-37 | M129: =$E$2*Eingabe!$B$4/(Eingabe!$B$4+$B129)*E129 -> 9.049773747e-22 | N129: =$E$2*Eingabe!$B$4/(Eingabe!$B$4+$B129)*F129 -> 0.09049773747 | O129: =$E$2*Eingabe!$B$4/(Eingabe!$B$4+$B129)*G129 -> 9.049773747e-20 | P129: =$E$2*Eingabe!$B$4/(Eingabe!$B$4+$B129)*H129 -> 9.049773747e-38
A130: =Berechnung!M129 -> 12.1 | B130: =Berechnung!N129 -> 10.62946284 | C130: 7.943282347e-13 | D130: 0.01258925412 | E130: 7.943282347e-21 | F130: 1 | G130: 1.258925412e-18 | H130: 1.584893192e-36 | I130: 7.943282347e-22 | J130: 0.1 | K130: 1.258925412e-19 | L130: 1.584893192e-37 | M130: =$E$2*Eingabe!$B$4/(Eingabe!$B$4+$B130)*E130 -> 7.180078564e-22 | N130: =$E$2*Eingabe!$B$4/(Eingabe!$B$4+$B130)*F130 -> 0.09039183363 | O130: =$E$2*Eingabe!$B$4/(Eingabe!$B$4+$B130)*G130 -> 1.137965764e-19 | P130: =$E$2*Eingabe!$B$4/(Eingabe!$B$4+$B130)*H130 -> 1.432614018e-37
A131: =Berechnung!M130 -> 12.2 | B131: =Berechnung!N130 -> 10.79244677 | C131: 6.309573445e-13 | D131: 0.01584893192 | E131: 6.309573445e-21 | F131: 1 | G131: 1.584893192e-18 | H131: 2.511886432e-36 | I131: 6.309573445e-22 | J131: 0.1 | K131: 1.584893192e-19 | L131: 2.511886432e-37 | M131: =$E$2*Eingabe!$B$4/(Eingabe!$B$4+$B131)*E131 -> 5.694949095e-22 | N131: =$E$2*Eingabe!$B$4/(Eingabe!$B$4+$B131)*F131 -> 0.09025886053 | O131: =$E$2*Eingabe!$B$4/(Eingabe!$B$4+$B131)*G131 -> 1.430506536e-19 | P131: =$E$2*Eingabe!$B$4/(Eingabe!$B$4+$B131)*H131 -> 2.267200071e-37
A132: =Berechnung!M131 -> 12.3 | B132: =Berechnung!N131 -> 10.99763138 | C132: 5.011872336e-13 | D132: 0.01995262315 | E132: 5.011872336e-21 | F132: 1 | G132: 1.995262315e-18 | H132: 3.981071706e-36 | I132: 5.011872336e-22 | J132: 0.1 | K132: 1.995262315e-19 | L132: 3.981071706e-37 | M132: =$E$2*Eingabe!$B$4/(Eingabe!$B$4+$B132)*E132 -> 4.515296655e-22 | N132: =$E$2*Eingabe!$B$4/(Eingabe!$B$4+$B132)*F132 -> 0.09009201256 | O132: =$E$2*Eingabe!$B$4/(Eingabe!$B$4+$B132)*G132 -> 1.797571975e-19 | P132: =$E$2*Eingabe!$B$4/(Eingabe!$B$4+$B132)*H132 -> 3.586627621e-37
A133: =Berechnung!M132 -> 12.4 | B133: =Berechnung!N132 -> 11.2559435 | C133: 3.981071706e-13 | D133: 0.02511886432 | E133: 3.981071706e-21 | F133: 1 | G133: 2.511886432e-18 | H133: 6.309573445e-36 | I133: 3.981071706e-22 | J133: 0.1 | K133: 2.511886432e-19 | L133: 6.309573445e-37 | M133: =$E$2*Eingabe!$B$4/(Eingabe!$B$4+$B133)*E133 -> 3.578300251e-22 | N133: =$E$2*Eingabe!$B$4/(Eingabe!$B$4+$B133)*F133 -> 0.08988283849 | O133: =$E$2*Eingabe!$B$4/(Eingabe!$B$4+$B133)*G133 -> 2.257754824e-19 | P133: =$E$2*Eingabe!$B$4/(Eingabe!$B$4+$B133)*H133 -> 5.671223709e-37
A134: =Berechnung!M133 -> 12.5 | B134: =Berechnung!N133 -> 11.5811392 | C134: 3.16227766e-13 | D134: 0.0316227766 | E134: 3.16227766e-21 | F134: 1 | G134: 3.16227766e-18 | H134: 1e-35 | I134: 3.16227766e-22 | J134: 0.1 | K134: 3.16227766e-19 | L134: 1e-36 | M134: =$E$2*Eingabe!$B$4/(Eingabe!$B$4+$B134)*E134 -> 2.834061099e-22 | N134: =$E$2*Eingabe!$B$4/(Eingabe!$B$4+$B134)*F134 -> 0.08962088102 | O134: =$E$2*Eingabe!$B$4/(Eingabe!$B$4+$B134)*G134 -> 2.834061099e-19 | P134: =$E$2*Eingabe!$B$4/(Eingabe!$B$4+$B134)*H134 -> 8.962088102e-37
A135: =Berechnung!M134 -> 12.6 | B135: =Berechnung!N134 -> 11.99053633 | C135: 2.511886432e-13 | D135: 0.03981071706 | E135: 2.511886432e-21 | F135: 1 | G135: 3.981071706e-18 | H135: 1.584893192e-35 | I135: 2.511886432e-22 | J135: 0.1 | K135: 3.981071706e-19 | L135: 1.584893192e-36 | M135: =$E$2*Eingabe!$B$4/(Eingabe!$B$4+$B135)*E135 -> 2.242945265e-22 | N135: =$E$2*Eingabe!$B$4/(Eingabe!$B$4+$B135)*F135 -> 0.0892932593 | O135: =$E$2*Eingabe!$B$4/(Eingabe!$B$4+$B135)*G135 -> 3.554828681e-19 | P135: =$E$2*Eingabe!$B$4/(Eingabe!$B$4+$B135)*H135 -> 1.415202788e-36
A136: =Berechnung!M135 -> 12.7 | B136: =Berechnung!N135 -> 12.50593679 | C136: 1.995262315e-13 | D136: 0.05011872336 | E136: 1.995262315e-21 | F136: 1 | G136: 5.011872336e-18 | H136: 2.511886432e-35 | I136: 1.995262315e-22 | J136: 0.1 | K136: 5.011872336e-19 | L136: 2.511886432e-36 | M136: =$E$2*Eingabe!$B$4/(Eingabe!$B$4+$B136)*E136 -> 1.773472913e-22 | N136: =$E$2*Eingabe!$B$4/(Eingabe!$B$4+$B136)*F136 -> 0.08888419834 | O136: =$E$2*Eingabe!$B$4/(Eingabe!$B$4+$B136)*G136 -> 4.454762548e-19 | P136: =$E$2*Eingabe!$B$4/(Eingabe!$B$4+$B136)*H136 -> 2.232670118e-36
A137: =Berechnung!M136 -> 12.8 | B137: =Berechnung!N136 -> 13.15478755 | C137: 1.584893192e-13 | D137: 0.06309573445 | E137: 1.584893192e-21 | F137: 1 | G137: 6.309573445e-18 | H137: 3.981071706e-35 | I137: 1.584893192e-22 | J137: 0.1 | K137: 6.309573445e-19 | L137: 3.981071706e-36 | M137: =$E$2*Eingabe!$B$4/(Eingabe!$B$4+$B137)*E137 -> 1.400641746e-22 | N137: =$E$2*Eingabe!$B$4/(Eingabe!$B$4+$B137)*F137 -> 0.08837451968 | O137: =$E$2*Eingabe!$B$4/(Eingabe!$B$4+$B137)*G137 -> 5.576055226e-19 | P137: =$E$2*Eingabe!$B$4/(Eingabe!$B$4+$B137)*H137 -> 3.518252998e-36
A138: =Berechnung!M137 -> 12.9 | B138: =Berechnung!N137 -> 13.97164228 | C138: =10^-A138 -> 1.258925412e-13 | D138: =10^-(14-A138) -> 0.07943282347 | E138: 1.258925412e-21 | F138: 1 | G138: 7.943282347e-18 | H138: 6.309573445e-35 | I138: =$E$2*E138 -> 1.258925412e-22 | J138: =$E$2*F138 -> 0.1 | K138: =$E$2*G138 -> 7.943282347e-19 | L138: =$E$2*H138 -> 6.309573445e-36 | M138: =$E$2*Eingabe!$B$4/(Eingabe!$B$4+$B138)*E138 -> 1.104595307e-22 | N138: =$E$2*Eingabe!$B$4/(Eingabe!$B$4+$B138)*F138 -> 0.08774112402 | O138: =$E$2*Eingabe!$B$4/(Eingabe!$B$4+$B138)*G138 -> 6.969525215e-19 | P138: =$E$2*Eingabe!$B$4/(Eingabe!$B$4+$B138)*H138 -> 5.536090661e-36
A139: =Berechnung!M138 -> 13 | B139: =Berechnung!N138 -> 15.0000015 | C139: 1e-13 | D139: 0.1 | E139: 1e-21 | F139: 1 | G139: 1e-17 | H139: 1e-34 | I139: 1e-22 | J139: 0.1 | K139: 1e-18 | L139: 1e-35 | M139: =$E$2*Eingabe!$B$4/(Eingabe!$B$4+$B139)*E139 -> 8.69565206e-23 | N139: =$E$2*Eingabe!$B$4/(Eingabe!$B$4+$B139)*F139 -> 0.0869565206 | O139: =$E$2*Eingabe!$B$4/(Eingabe!$B$4+$B139)*G139 -> 8.69565206e-19 | P139: =$E$2*Eingabe!$B$4/(Eingabe!$B$4+$B139)*H139 -> 8.69565206e-36
A140: =Berechnung!M139 -> 13.1 | B140: =Berechnung!N139 -> 16.29462911 | C140: 7.943282347e-14 | D140: 0.1258925412 | E140: 7.943282347e-22 | F140: 1 | G140: 1.258925412e-17 | H140: 1.584893192e-34 | I140: 7.943282347e-23 | J140: 0.1 | K140: 1.258925412e-18 | L140: 1.584893192e-35 | M140: =$E$2*Eingabe!$B$4/(Eingabe!$B$4+$B140)*E140 -> 6.830308853e-23 | N140: =$E$2*Eingabe!$B$4/(Eingabe!$B$4+$B140)*F140 -> 0.08598849385 | O140: =$E$2*Eingabe!$B$4/(Eingabe!$B$4+$B140)*G140 -> 1.082531e-18 | P140: =$E$2*Eingabe!$B$4/(Eingabe!$B$4+$B140)*H140 -> 1.362825785e-35
A141: =Berechnung!M140 -> 13.2 | B141: =Berechnung!N140 -> 17.9244688 | C141: 6.309573445e-14 | D141: 0.1584893192 | E141: 6.309573445e-22 | F141: 1 | G141: 1.584893192e-17 | H141: 2.511886432e-34 | I141: 6.309573445e-23 | J141: 0.1 | K141: 1.584893192e-18 | L141: 2.511886432e-35 | M141: =$E$2*Eingabe!$B$4/(Eingabe!$B$4+$B141)*E141 -> 5.350520981e-23 | N141: =$E$2*Eingabe!$B$4/(Eingabe!$B$4+$B141)*F141 -> 0.08480004279 | O141: =$E$2*Eingabe!$B$4/(Eingabe!$B$4+$B141)*G141 -> 1.343990105e-18 | P141: =$E$2*Eingabe!$B$4/(Eingabe!$B$4+$B141)*H141 -> 2.130080769e-35
A142: =Berechnung!M141 -> 13.3 | B142: =Berechnung!N141 -> 19.97631556 | C142: 5.011872336e-14 | D142: 0.1995262315 | E142: 5.011872336e-22 | F142: 1 | G142: 1.995262315e-17 | H142: 3.981071706e-34 | I142: 5.011872336e-23 | J142: 0.1 | K142: 1.995262315e-18 | L142: 3.981071706e-35 | M142: =$E$2*Eingabe!$B$4/(Eingabe!$B$4+$B142)*E142 -> 4.177384772e-23 | N142: =$E$2*Eingabe!$B$4/(Eingabe!$B$4+$B142)*F142 -> 0.08334978411 | O142: =$E$2*Eingabe!$B$4/(Eingabe!$B$4+$B142)*G142 -> 1.663046832e-18 | P142: =$E$2*Eingabe!$B$4/(Eingabe!$B$4+$B142)*H142 -> 3.318214672e-35
A143: =Berechnung!M142 -> 13.4 | B143: =Berechnung!N142 -> 22.55943782 | C143: 3.981071706e-14 | D143: 0.2511886432 | E143: 3.981071706e-22 | F143: 1 | G143: 2.511886432e-17 | H143: 6.309573445e-34 | I143: 3.981071706e-23 | J143: 0.1 | K143: 2.511886432e-18 | L143: 6.309573445e-35 | M143: =$E$2*Eingabe!$B$4/(Eingabe!$B$4+$B143)*E143 -> 3.248278367e-23 | N143: =$E$2*Eingabe!$B$4/(Eingabe!$B$4+$B143)*F143 -> 0.08159306356 | O143: =$E$2*Eingabe!$B$4/(Eingabe!$B$4+$B143)*G143 -> 2.049525093e-18 | P143: =$E$2*Eingabe!$B$4/(Eingabe!$B$4+$B143)*H143 -> 5.148174271e-35
A144: =Berechnung!M143 -> 13.5 | B144: =Berechnung!N143 -> 25.81139646 | C144: 3.16227766e-14 | D144: 0.316227766 | E144: 3.16227766e-22 | F144: 1 | G144: 3.16227766e-17 | H144: 1e-33 | I144: 3.16227766e-23 | J144: 0.1 | K144: 3.16227766e-18 | L144: 1e-34 | M144: =$E$2*Eingabe!$B$4/(Eingabe!$B$4+$B144)*E144 -> 2.513506526e-23 | N144: =$E$2*Eingabe!$B$4/(Eingabe!$B$4+$B144)*F144 -> 0.07948405535 | O144: =$E$2*Eingabe!$B$4/(Eingabe!$B$4+$B144)*G144 -> 2.513506526e-18 | P144: =$E$2*Eingabe!$B$4/(Eingabe!$B$4+$B144)*H144 -> 7.948405535e-35
A145: =Berechnung!M144 -> 13.6 | B145: =Berechnung!N144 -> 29.90537043 | C145: 2.511886432e-14 | D145: 0.3981071706 | E145: 2.511886432e-22 | F145: 1 | G145: 3.981071706e-17 | H145: 1.584893192e-33 | I145: 2.511886432e-23 | J145: 0.1 | K145: 3.981071706e-18 | L145: 1.584893192e-34 | M145: =$E$2*Eingabe!$B$4/(Eingabe!$B$4+$B145)*E145 -> 1.933627858e-23 | N145: =$E$2*Eingabe!$B$4/(Eingabe!$B$4+$B145)*F145 -> 0.07697911154 | O145: =$E$2*Eingabe!$B$4/(Eingabe!$B$4+$B145)*G145 -> 3.064593629e-18 | P145: =$E$2*Eingabe!$B$4/(Eingabe!$B$4+$B145)*H145 -> 1.220036698e-34
A146: =Berechnung!M145 -> 13.7 | B146: =Berechnung!N145 -> 35.05937925 | C146: 1.995262315e-14 | D146: 0.5011872336 | E146: 1.995262315e-22 | F146: 1 | G146: 5.011872336e-17 | H146: 2.511886432e-33 | I146: 1.995262315e-23 | J146: 0.1 | K146: 5.011872336e-18 | L146: 2.511886432e-34 | M146: =$E$2*Eingabe!$B$4/(Eingabe!$B$4+$B146)*E146 -> 1.47732229e-23 | N146: =$E$2*Eingabe!$B$4/(Eingabe!$B$4+$B146)*F146 -> 0.07404150719 | O146: =$E$2*Eingabe!$B$4/(Eingabe!$B$4+$B146)*G146 -> 3.710865816e-18 | P146: =$E$2*Eingabe!$B$4/(Eingabe!$B$4+$B146)*H146 -> 1.859838573e-34
A147: =Berechnung!M146 -> 13.8 | B147: =Berechnung!N146 -> 41.54789344 | C147: 1.584893192e-14 | D147: 0.6309573445 | E147: 1.584893192e-22 | F147: 1 | G147: 6.309573445e-17 | H147: 3.981071706e-33 | I147: 1.584893192e-23 | J147: 0.1 | K147: 6.309573445e-18 | L147: 3.981071706e-34 | M147: =$E$2*Eingabe!$B$4/(Eingabe!$B$4+$B147)*E147 -> 1.119686881e-23 | N147: =$E$2*Eingabe!$B$4/(Eingabe!$B$4+$B147)*F147 -> 0.07064746608 | O147: =$E$2*Eingabe!$B$4/(Eingabe!$B$4+$B147)*G147 -> 4.457553759e-18 | P147: =$E$2*Eingabe!$B$4/(Eingabe!$B$4+$B147)*H147 -> 2.812526283e-34
A148: =Berechnung!M147 -> 13.9 | B148: =Berechnung!N147 -> 49.71645123 | C148: 1.258925412e-14 | D148: 0.7943282347 | E148: 1.258925412e-22 | F148: 1 | G148: 7.943282347e-17 | H148: 6.309573445e-33 | I148: 1.258925412e-23 | J148: 0.1 | K148: 7.943282347e-18 | L148: 6.309573445e-34 | M148: =$E$2*Eingabe!$B$4/(Eingabe!$B$4+$B148)*E148 -> 8.408731315e-24 | N148: =$E$2*Eingabe!$B$4/(Eingabe!$B$4+$B148)*F148 -> 0.06679292702 | O148: =$E$2*Eingabe!$B$4/(Eingabe!$B$4+$B148)*G148 -> 5.305550781e-18 | P148: =$E$2*Eingabe!$B$4/(Eingabe!$B$4+$B148)*H148 -> 4.214348786e-34
A149: =Berechnung!M148 -> 14 | B149: =Berechnung!N148 -> 60.00006 | C149: 1e-14 | D149: 1 | E149: 1e-22 | F149: 1 | G149: 1e-16 | H149: 1e-32 | I149: 1e-23 | J149: 0.1 | K149: 1e-17 | L149: 1e-33 | M149: =$E$2*Eingabe!$B$4/(Eingabe!$B$4+$B149)*E149 -> 6.249997656e-24 | N149: =$E$2*Eingabe!$B$4/(Eingabe!$B$4+$B149)*F149 -> 0.06249997656 | O149: =$E$2*Eingabe!$B$4/(Eingabe!$B$4+$B149)*G149 -> 6.249997656e-18 | P149: =$E$2*Eingabe!$B$4/(Eingabe!$B$4+$B149)*H149 -> 6.249997656e-34

Sheet Berechnung
F1: Säure1 | G1: Säure1 | I1: Titrans | N1: Aktuelle Kurve | O1: Klone
A2: Vp | B2: =Eingabe!B4 -> 100 | C2: L | E2: c | F2: =Eingabe!B7 -> 0.1 | G2: =Eingabe!B13 -> 0.1 | I2: =Eingabe!B19 -> 2
A3: delta_pH | B3: 0.1 | E3: pKS1 | F3: =Eingabe!B8 -> -8 | G3: =Eingabe!B14 -> -8 | H3: pKS1 | I3: -20 | L3: Anpassung | M3: 1
E4: pKS2 | F4: 30 | G4: 30 | H4: pKS2 | I4: -20 | L4: Art der Titration | M4: 0
A5: Berücksichtigung Verdünnung | E5: pKS3 | F5: 30 | G5: 30 | H5: pKS3 | I5: =Eingabe!B20 -> 20
A6: mit | B6: ohne | F6: Abgegebene Protonen mol/L | I6: Aufgenommene Protonen mol/L
A7: Vt | B7: Vt | C7: pH | D7: H | E7: OH | F7: Säure1 | G7: Säure2 | H7: total | M7: pH | N7: vt | O7: pH | P7: vt | Q7: pH | R7: vt | S7: pH | T7: vt | U7: pH | V7: vt | W7: pH | X7: vt | Y7: pH | Z7: vt
A8: =(H8-D8+E8)*$B$2/(+D8-E8+I8) -> -26.66666673 | B8: =$B$2*(H8-D8+E8)/I8 -> -40.0000001 | C8: 0 | D8: =10^-(C8) -> 1 | E8: =10^-(14-C8) -> 1e-14 | F8: =F$2*(3*ALPHA(0,$C8,F$3:F$5)+2*ALPHA(1,$C8,F$3:F$5)+ALPHA(2,$C8,F$3:F$5)) -> 0.099999999 | G8: 0.099999999 | H8: =SUM(F8:G8) -> 0.199999998 | I8: =I$2*(3*ALPHA(3,$C8,I$3:I$5)+2*ALPHA(2,$C8,I$3:I$5)+ALPHA(1,$C8,I$3:I$5)) -> 2 | M8: =C8*M$3+M$4 -> 0 | N8: =B8 -> -40.0000001
A9: =(H9-D9+E9)*$B$2/(+D9-E9+I9) -> -21.26909176 | B9: =$B$2*(H9-D9+E9)/I9 -> -29.71641182 | C9: =C8+B$3 -> 0.1 | D9: =10^-(C9) -> 0.7943282347 | E9: =10^-(14-C9) -> 1.258925412e-14 | F9: 0.09999999921 | G9: 0.09999999921 | H9: =SUM(F9:G9) -> 0.1999999984 | I9: 2 | M9: =C9*M$3+M$4 -> 0.1 | N9: -29.71641182
A10: -16.3802483 | B10: -21.54786729 | C10: 0.2 | D10: 0.6309573445 | E10: 1.584893192e-14 | F10: 0.09999999937 | G10: 0.09999999937 | H10: 0.1999999987 | I10: 2 | M10: 0.2 | N10: -21.54786729
A11: -12.04177083 | B11: -15.05936173 | C11: 0.3 | D11: 0.5011872336 | E11: 1.995262315e-14 | F11: 0.0999999995 | G11: 0.0999999995 | H11: 0.199999999 | I11: 2 | M11: 0.3 | N11: -15.05936173
A12: -8.260980734 | B12: -9.905358567 | C12: 0.4 | D12: 0.3981071706 | E12: 2.511886432e-14 | F12: 0.0999999996 | G12: 0.0999999996 | H12: 0.1999999992 | I12: 2 | M12: 0.4 | N12: -9.905358567
A13: -5.017976572 | B13: -5.811388332 | C13: 0.5 | D13: 0.316227766 | E13: 3.16227766e-14 | F13: 0.09999999968 | G13: 0.09999999968 | H13: 0.1999999994 | I13: 2 | M13: 0.5 | N13: -5.811388332
A14: -2.273849586 | B14: -2.559432183 | C14: 0.6 | D14: 0.2511886432 | E14: 3.981071706e-14 | F14: 0.09999999975 | G14: 0.09999999975 | H14: 0.1999999995 | I14: 2 | M14: 0.6 | N14: -2.559432183
A15: 0.02153955235 | B15: 0.02368840521 | C15: 0.7 | D15: 0.1995262315 | E15: 5.011872336e-14 | F15: 0.0999999998 | G15: 0.0999999998 | H15: 0.1999999996 | I15: 2 | M15: 0.7 | N15: 0.02368840521
A16: 1.923135781 | B16: 2.075534022 | C16: 0.8 | D16: 0.1584893192 | E16: 6.309573445e-14 | F16: 0.09999999984 | G16: 0.09999999984 | H16: 0.1999999997 | I16: 2 | M16: 0.8 | N16: 2.075534022
A17: 3.48594565 | B17: 3.705372928 | C17: 0.9 | D17: 0.1258925412 | E17: 7.943282347e-14 | F17: 0.09999999987 | G17: 0.09999999987 | H17: 0.1999999997 | I17: 2 | M17: 0.9 | N17: 3.705372928
A18: 4.761904752 | B18: 4.99999999 | C18: 1 | D18: 0.1 | E18: 1e-13 | F18: 0.0999999999 | G18: 0.0999999999 | H18: 0.1999999998 | I18: 2 | M18: 1 | N18: 4.99999999
A19: 5.79807989 | B19: 6.028358818 | C19: 1.1 | D19: 0.07943282347 | E19: 1.258925412e-13 | F19: 0.09999999992 | G19: 0.09999999992 | H19: 0.1999999998 | I19: 2 | M19: 1.1 | N19: 6.028358818
A20: 6.635865856 | B20: 6.845213271 | C20: 1.2 | D20: 0.06309573445 | E20: 1.584893192e-13 | F20: 0.09999999994 | G20: 0.09999999994 | H20: 0.1999999999 | I20: 2 | M20: 1.2 | N20: 6.845213271
A21: 7.310858382 | B21: 7.494063827 | C21: 1.3 | D21: 0.05011872336 | E21: 1.995262315e-13 | F21: 0.09999999995 | G21: 0.09999999995 | H21: 0.1999999999 | I21: 2 | M21: 1.3 | N21: 7.494063827
A22: 7.853144487 | B22: 8.009464143 | C22: 1.4 | D22: 0.03981071706 | E22: 2.511886432e-13 | F22: 0.09999999996 | G22: 0.09999999996 | H22: 0.1999999999 | I22: 2 | M22: 1.4 | N22: 8.009464143
A23: 8.287819239 | B23: 8.418861167 | C23: 1.5 | D23: 0.0316227766 | E23: 3.16227766e-13 | F23: 0.09999999997 | G23: 0.09999999997 | H23: 0.1999999999 | I23: 2 | M23: 1.5 | N23: 8.418861167
A24: 8.635598567 | B24: 8.744056782 | C24: 1.6 | D24: 0.02511886432 | E24: 3.981071706e-13 | F24: 0.09999999997 | G24: 0.09999999997 | H24: 0.1999999999 | I24: 2 | M24: 1.6 | N24: 8.744056782
A25: 8.913445531 | B25: 9.002368841 | C25: 1.7 | D25: 0.01995262315 | E25: 5.011872336e-13 | F25: 0.09999999998 | G25: 0.09999999998 | H25: 0.2 | I25: 2 | M25: 1.7 | N25: 9.002368841
A26: 9.135162121 | B26: 9.207553402 | C26: 1.8 | D26: 0.01584893192 | E26: 6.309573445e-13 | F26: 0.09999999998 | G26: 0.09999999998 | H26: 0.2 | I26: 2 | M26: 1.8 | N26: 9.207553402
A27: 9.311922215 | B27: 9.370537293 | C27: 1.9 | D27: 0.01258925412 | E27: 7.943282347e-13 | F27: 0.09999999999 | G27: 0.09999999999 | H27: 0.2 | I27: 2 | M27: 1.9 | N27: 9.370537293
A28: 9.452736317 | B28: 9.499999999 | C28: 2 | D28: 0.01 | E28: 1e-12 | F28: =F$2*(3*ALPHA(0,$C28,F$3:F$5)+2*ALPHA(1,$C28,F$3:F$5)+ALPHA(2,$C28,F$3:F$5)) -> 0.09999999999 | G28: 0.09999999999 | H28: 0.2 | I28: 2 | M28: 2 | N28: 9.499999999
A29: 9.564847739 | B29: 9.602835882 | C29: 2.1 | D29: 0.007943282347 | E29: 1.258925412e-12 | F29: 0.09999999999 | G29: 0.09999999999 | H29: 0.2 | I29: 2 | M29: 2.1 | N29: 9.602835882
A30: 9.654064812 | B30: 9.684521327 | C30: 2.2 | D30: 0.006309573445 | E30: 1.584893192e-12 | F30: 0.09999999999 | G30: 0.09999999999 | H30: 0.2 | I30: 2 | M30: 2.2 | N30: 9.684521327
A31: 9.725036063 | B31: 9.749406383 | C31: 2.3 | D31: 0.005011872336 | E31: 1.995262315e-12 | F31: 0.09999999999 | G31: 0.09999999999 | H31: 0.2 | I31: 2 | M31: 2.3 | N31: 9.749406383
A32: 9.781476036 | B32: 9.800946414 | C32: 2.4 | D32: 0.003981071706 | E32: 2.511886432e-12 | F32: 0.1 | G32: 0.1 | H32: 0.2 | I32: 2 | M32: 2.4 | N32: 9.800946414
A33: 9.826349294 | B33: 9.841886117 | C33: 2.5 | D33: 0.00316227766 | E33: 3.16227766e-12 | F33: 0.1 | G33: 0.1 | H33: 0.2 | I33: 2 | M33: 2.5 | N33: 9.841886117
A34: 9.862019542 | B34: 9.874405678 | C34: 2.6 | D34: 0.002511886432 | E34: 3.981071706e-12 | F34: 0.1 | G34: 0.1 | H34: 0.2 | I34: 2 | M34: 2.6 | N34: 9.874405678
A35: 9.890369943 | B35: 9.900236884 | C35: 2.7 | D35: 0.001995262315 | E35: 5.011872336e-12 | F35: 0.1 | G35: 0.1 | H35: 0.2 | I35: 2 | M35: 2.7 | N35: 9.900236884
A36: 9.912899897 | B36: 9.920755341 | C36: 2.8 | D36: 0.001584893192 | E36: 6.309573445e-12 | F36: 0.1 | G36: 0.1 | H36: 0.2 | I36: 2 | M36: 2.8 | N36: 9.920755341
A37: 9.93080266 | B37: 9.93705373 | C37: 2.9 | D37: 0.001258925412 | E37: 7.943282347e-12 | F37: 0.1 | G37: 0.1 | H37: 0.2 | I37: 2 | M37: 2.9 | N37: 9.93705373
A38: 9.945027487 | B38: 9.95 | C38: 3 | D38: 0.001 | E38: 1e-11 | F38: 0.1 | G38: 0.1 | H38: 0.2 | I38: 2 | M38: 3 | N38: 9.95
A39: 9.956329292 | B39: 9.960283589 | C39: 3.1 | D39: 0.0007943282347 | E39: 1.258925412e-11 | F39: 0.1 | G39: 0.1 | H39: 0.2 | I39: 2 | M39: 3.1 | N39: 9.960283589
A40: 9.965308291 | B40: 9.968452134 | C40: 3.2 | D40: 0.0006309573445 | E40: 1.584893192e-11 | F40: 0.1 | G40: 0.1 | H40: 0.2 | I40: =I$2*(3*ALPHA(3,$C40,I$3:I$5)+2*ALPHA(2,$C40,I$3:I$5)+ALPHA(1,$C40,I$3:I$5)) -> 2 | M40: 3.2 | N40: =B40 -> 9.968452134
A41: 9.972441609 | B41: 9.974940639 | C41: =C40+B$3 -> 3.3 | D41: 0.0005011872336 | E41: 1.995262315e-11 | F41: 0.1 | G41: 0.1 | H41: 0.2 | I41: 2 | M41: 3.3 | N41: 9.974940639
A42: 9.978108465 | B42: 9.980094643 | C42: 3.4 | D42: 0.0003981071706 | E42: 2.511886432e-11 | F42: 0.1 | G42: 0.1 | H42: 0.2 | I42: 2 | M42: 3.4 | N42: 9.980094643
A43: 9.982610224 | B43: 9.984188613 | C43: 3.5 | D43: 0.000316227766 | E43: 3.16227766e-11 | F43: 0.1 | G43: 0.1 | H43: 0.2 | I43: 2 | M43: 3.5 | N43: 9.984188613
A44: 9.986186362 | B44: 9.98744057 | C44: 3.6 | D44: 0.0002511886432 | E44: 3.981071706e-11 | F44: 0.1 | G44: 0.1 | H44: 0.2 | I44: 2 | M44: 3.6 | N44: 9.98744057
A45: 9.989027155 | B45: 9.990023691 | C45: 3.7 | D45: 0.0001995262315 | E45: 5.011872336e-11 | F45: 0.1 | G45: 0.1 | H45: 0.2 | I45: 2 | M45: 3.7 | N45: 9.990023691
A46: 9.991283782 | B46: 9.992075537 | C46: 3.8 | D46: 0.0001584893192 | E46: 6.309573445e-11 | F46: 0.1 | G46: 0.1 | H46: 0.2 | I46: 2 | M46: 3.8 | N46: 9.992075537
A47: 9.99307635 | B47: 9.993705377 | C47: 3.9 | D47: 0.0001258925412 | E47: 7.943282347e-11 | F47: 0.1 | G47: 0.1 | H47: 0.2 | I47: 2 | M47: 3.9 | N47: 9.993705377
A48: 9.99450028 | B48: 9.995000005 | C48: 4 | D48: 0.0001 | E48: 1e-10 | F48: =F$2*(3*ALPHA(0,$C48,F$3:F$5)+2*ALPHA(1,$C48,F$3:F$5)+ALPHA(2,$C48,F$3:F$5)) -> 0.1 | G48: 0.1 | H48: 0.2 | I48: 2 | M48: 4 | N48: 9.995000005
A49: 9.995631375 | B49: 9.996028365 | C49: 4.1 | D49: 7.943282347e-05 | E49: 1.258925412e-10 | F49: 0.1 | G49: 0.1 | H49: 0.2 | I49: 2 | M49: 4.1 | N49: 9.996028365
A50: 9.996529853 | B50: 9.996845221 | C50: 4.2 | D50: 6.309573445e-05 | E50: 1.584893192e-10 | F50: 0.1 | G50: 0.1 | H50: 0.2 | I50: 2 | M50: 4.2 | N50: 9.996845221
A51: 9.99724355 | B51: 9.997494074 | C51: 4.3 | D51: 5.011872336e-05 | E51: 1.995262315e-10 | F51: 0.1 | G51: 0.1 | H51: 0.2 | I51: 2 | M51: 4.3 | N51: 9.997494074
A52: 9.997810468 | B52: 9.998009477 | C52: 4.4 | D52: 3.981071706e-05 | E52: 2.511886432e-10 | F52: 0.1 | G52: 0.1 | H52: 0.2 | I52: 2 | M52: 4.4 | N52: 9.998009477
A53: 9.998260792 | B53: 9.998418877 | C53: 4.5 | D53: 3.16227766e-05 | E53: 3.16227766e-10 | F53: 0.1 | G53: 0.1 | H53: 0.2 | I53: 2 | M53: 4.5 | N53: 9.998418877
A54: 9.998618502 | B54: 9.998744077 | C54: 4.6 | D54: 2.511886432e-05 | E54: 3.981071706e-10 | F54: 0.1 | G54: 0.1 | H54: 0.2 | I54: 2 | M54: 4.6 | N54: 9.998744077
A55: 9.998902644 | B55: 9.999002394 | C55: 4.7 | D55: 1.995262315e-05 | E55: 5.011872336e-10 | F55: 0.1 | G55: 0.1 | H55: 0.2 | I55: 2 | M55: 4.7 | N55: 9.999002394
A56: 9.99912835 | B56: 9.999207585 | C56: 4.8 | D56: 1.584893192e-05 | E56: 6.309573445e-10 | F56: 0.1 | G56: 0.1 | H56: 0.2 | I56: 2 | M56: 4.8 | N56: 9.999207585
A57: 9.999307639 | B57: 9.999370577 | C57: 4.9 | D57: 1.258925412e-05 | E57: 7.943282347e-10 | F57: 0.1 | G57: 0.1 | H57: 0.2 | I57: 2 | M57: 4.9 | N57: 9.999370577
A58: 9.999450058 | B58: 9.99950005 | C58: 5 | D58: 1e-05 | E58: 1e-09 | F58: 0.1 | G58: 0.1 | H58: 0.2 | I58: 2 | M58: 5 | N58: 9.99950005
A59: 9.99956319 | B59: 9.999602899 | C59: 5.1 | D59: 7.943282347e-06 | E59: 1.258925412e-09 | F59: 0.1 | G59: 0.1 | H59: 0.2 | I59: 2 | M59: 5.1 | N59: 9.999602899
A60: 9.999653062 | B60: 9.999684601 | C60: 5.2 | D60: 6.309573445e-06 | E60: 1.584893192e-09 | F60: 0.1 | G60: 0.1 | H60: 0.2 | I60: 2 | M60: 5.2 | N60: 9.999684601
A61: 9.999724457 | B61: 9.999749506 | C61: 5.3 | D61: 5.011872336e-06 | E61: 1.995262315e-09 | F61: 0.1 | G61: 0.1 | H61: 0.2 | I61: 2 | M61: 5.3 | N61: 9.999749506
A62: 9.99978118 | B62: 9.999801072 | C62: 5.4 | D62: 3.981071706e-06 | E62: 2.511886432e-09 | F62: 0.1 | G62: 0.1 | H62: 0.2 | I62: 2 | M62: 5.4 | N62: 9.999801072
A63: 9.999826249 | B63: 9.999842044 | C63: 5.5 | D63: 3.16227766e-06 | E63: 3.16227766e-09 | F63: 0.1 | G63: 0.1 | H63: 0.2 | I63: 2 | M63: 5.5 | N63: 9.999842044
A64: 9.999862065 | B64: 9.999874605 | C64: 5.6 | D64: 2.511886432e-06 | E64: 3.981071706e-09 | F64: 0.1 | G64: 0.1 | H64: 0.2 | I64: 2 | M64: 5.6 | N64: 9.999874605
A65: 9.999890536 | B65: 9.999900487 | C65: 5.7 | D65: 1.995262315e-06 | E65: 5.011872336e-09 | F65: 0.1 | G65: 0.1 | H65: 0.2 | I65: 2 | M65: 5.7 | N65: 9.999900487
A66: 9.999913178 | B66: 9.999921071 | C66: 5.8 | D66: 1.584893192e-06 | E66: 6.309573445e-09 | F66: 0.1 | G66: 0.1 | H66: 0.2 | I66: 2 | M66: 5.8 | N66: 9.999921071
A67: 9.999931196 | B67: 9.999937451 | C67: 5.9 | D67: 1.258925412e-06 | E67: 7.943282347e-09 | F67: 0.1 | G67: 0.1 | H67: 0.2 | I67: 2 | M67: 5.9 | N67: 9.999937451
A68: 9.99994555 | B68: 9.9999505 | C68: 6 | D68: 1e-06 | E68: 1e-08 | F68: =F$2*(3*ALPHA(0,$C68,F$3:F$5)+2*ALPHA(1,$C68,F$3:F$5)+ALPHA(2,$C68,F$3:F$5)) -> 0.1 | G68: 0.1 | H68: 0.2 | I68: 2 | M68: 6 | N68: 9.9999505
A69: 9.999957004 | B69: 9.999960913 | C69: 6.1 | D69: 7.943282347e-07 | E69: 1.258925412e-08 | F69: 0.1 | G69: 0.1 | H69: 0.2 | I69: 2 | M69: 6.1 | N69: 9.999960913
A70: 9.999966169 | B70: 9.999969245 | C70: 6.2 | D70: 6.309573445e-07 | E70: 1.584893192e-08 | F70: 0.1 | G70: 0.1 | H70: 0.2 | I70: 2 | M70: 6.2 | N70: 9.999969245
A71: 9.999973532 | B71: 9.999975938 | C71: 6.3 | D71: 5.011872336e-07 | E71: 1.995262315e-08 | F71: 0.1 | G71: 0.1 | H71: 0.2 | I71: 2 | M71: 6.3 | N71: 9.999975938
A72: 9.999979486 | B72: 9.999981351 | C72: 6.4 | D72: 3.981071706e-07 | E72: 2.511886432e-08 | F72: 0.1 | G72: 0.1 | H72: 0.2 | I72: =I$2*(3*ALPHA(3,$C72,I$3:I$5)+2*ALPHA(2,$C72,I$3:I$5)+ALPHA(1,$C72,I$3:I$5)) -> 2 | M72: 6.4 | N72: =B72 -> 9.999981351
A73: =(H73-D73+E73)*$B$2/(+D73-E73+I73) -> 9.999984347 | B73: =$B$2*(H73-D73+E73)/I73 -> 9.99998577 | C73: =C72+B$3 -> 6.5 | D73: =10^-(C73) -> 3.16227766e-07 | E73: =10^-(14-C73) -> 3.16227766e-08 | F73: 0.1 | G73: 0.1 | H73: =SUM(F73:G73) -> 0.2 | I73: 2 | M73: =C73*M$3+M$4 -> 6.5 | N73: 9.99998577
A74: 9.999988374 | B74: 9.999989431 | C74: 6.6 | D74: 2.511886432e-07 | E74: 3.981071706e-08 | F74: 0.1 | G74: 0.1 | H74: 0.2 | I74: 2 | M74: 6.6 | N74: 9.999989431
A75: 9.999991783 | B75: 9.99999253 | C75: 6.7 | D75: 1.995262315e-07 | E75: 5.011872336e-08 | F75: 0.1 | G75: 0.1 | H75: 0.2 | I75: 2 | M75: 6.7 | N75: 9.99999253
A76: 9.999994753 | B76: 9.99999523 | C76: 6.8 | D76: 1.584893192e-07 | E76: 6.309573445e-08 | F76: 0.1 | G76: 0.1 | H76: 0.2 | I76: 2 | M76: 6.8 | N76: 9.99999523
A77: 9.999997445 | B77: 9.999997677 | C77: 6.9 | D77: 1.258925412e-07 | E77: 7.943282347e-08 | F77: 0.1 | G77: 0.1 | H77: 0.2 | I77: 2 | M77: 6.9 | N77: 9.999997677
A78: 10 | B78: 10 | C78: 7 | D78: 1e-07 | E78: 1e-07 | F78: 0.1 | G78: 0.1 | H78: 0.2 | I78: 2 | M78: 7 | N78: 10
A79: 10.00000256 | B79: =$B$2*(H79-D79+E79)/I79 -> 10.00000232 | C79: =C78+B$3 -> 7.1 | D79: =10^-(C79) -> 7.943282347e-08 | E79: =10^-(14-C79) -> 1.258925412e-07 | F79: 0.1 | G79: 0.1 | H79: =SUM(F79:G79) -> 0.2 | I79: 2 | M79: 7.1 | N79: 10.00000232
A80: 10.00000525 | B80: 10.00000477 | C80: 7.2 | D80: 6.309573445e-08 | E80: 1.584893192e-07 | F80: 0.1 | G80: 0.1 | H80: 0.2 | I80: 2 | M80: 7.2 | N80: 10.00000477
A81: 10.00000822 | B81: 10.00000747 | C81: 7.3 | D81: 5.011872336e-08 | E81: 1.995262315e-07 | F81: 0.1 | G81: 0.1 | H81: 0.2 | I81: 2 | M81: 7.3 | N81: 10.00000747
A82: 10.00001163 | B82: 10.00001057 | C82: 7.4 | D82: 3.981071706e-08 | E82: 2.511886432e-07 | F82: 0.1 | G82: 0.1 | H82: 0.2 | I82: 2 | M82: 7.4 | N82: 10.00001057
A83: 10.00001565 | B83: 10.00001423 | C83: 7.5 | D83: 3.16227766e-08 | E83: 3.16227766e-07 | F83: 0.1 | G83: 0.1 | H83: 0.2 | I83: 2 | M83: 7.5 | N83: 10.00001423
A84: 10.00002051 | B84: 10.00001865 | C84: 7.6 | D84: 2.511886432e-08 | E84: 3.981071706e-07 | F84: 0.1 | G84: 0.1 | H84: 0.2 | I84: 2 | M84: 7.6 | N84: 10.00001865
A85: 10.00002647 | B85: 10.00002406 | C85: 7.7 | D85: 1.995262315e-08 | E85: 5.011872336e-07 | F85: 0.1 | G85: 0.1 | H85: 0.2 | I85: 2 | M85: 7.7 | N85: 10.00002406
A86: 10.00003383 | B86: 10.00003076 | C86: 7.8 | D86: 1.584893192e-08 | E86: 6.309573445e-07 | F86: 0.1 | G86: 0.1 | H86: 0.2 | I86: 2 | M86: 7.8 | N86: 10.00003076
A87: 10.000043 | B87: 10.00003909 | C87: 7.9 | D87: 1.258925412e-08 | E87: 7.943282347e-07 | F87: 0.1 | G87: 0.1 | H87: 0.2 | I87: 2 | M87: 7.9 | N87: 10.00003909
A88: 10.00005445 | B88: 10.0000495 | C88: 8 | D88: 1e-08 | E88: 1e-06 | F88: =F$2*(3*ALPHA(0,$C88,F$3:F$5)+2*ALPHA(1,$C88,F$3:F$5)+ALPHA(2,$C88,F$3:F$5)) -> 0.1 | G88: 0.1 | H88: 0.2 | I88: 2 | M88: 8 | N88: 10.0000495
A89: 10.0000688 | B89: 10.00006255 | C89: 8.1 | D89: 7.943282347e-09 | E89: 1.258925412e-06 | F89: 0.1 | G89: 0.1 | H89: 0.2 | I89: 2 | M89: 8.1 | N89: 10.00006255
A90: 10.00008682 | B90: 10.00007893 | C90: 8.2 | D90: 6.309573445e-09 | E90: 1.584893192e-06 | F90: 0.1 | G90: 0.1 | H90: 0.2 | I90: 2 | M90: 8.2 | N90: 10.00007893
A91: 10.00010946 | B91: 10.00009951 | C91: 8.3 | D91: 5.011872336e-09 | E91: 1.995262315e-06 | F91: 0.1 | G91: 0.1 | H91: 0.2 | I91: 2 | M91: 8.3 | N91: 10.00009951
A92: 10.00013793 | B92: 10.0001254 | C92: 8.4 | D92: 3.981071706e-09 | E92: 2.511886432e-06 | F92: 0.1 | G92: 0.1 | H92: 0.2 | I92: 2 | M92: 8.4 | N92: 10.0001254
A93: 10.00017375 | B93: 10.00015796 | C93: 8.5 | D93: 3.16227766e-09 | E93: 3.16227766e-06 | F93: 0.1 | G93: 0.1 | H93: 0.2 | I93: 2 | M93: 8.5 | N93: 10.00015796
A94: 10.00021882 | B94: 10.00019893 | C94: 8.6 | D94: 2.511886432e-09 | E94: 3.981071706e-06 | F94: 0.1 | G94: 0.1 | H94: 0.2 | I94: 2 | M94: 8.6 | N94: 10.00019893
A95: 10.00027554 | B95: 10.00025049 | C95: 8.7 | D95: 1.995262315e-09 | E95: 5.011872336e-06 | F95: 0.1 | G95: 0.1 | H95: 0.2 | I95: 2 | M95: 8.7 | N95: 10.00025049
A96: 10.00034694 | B96: 10.0003154 | C96: 8.8 | D96: 1.584893192e-09 | E96: 6.309573445e-06 | F96: 0.1 | G96: 0.1 | H96: 0.2 | I96: 2 | M96: 8.8 | N96: 10.0003154
A97: 10.00043681 | B97: 10.0003971 | C97: 8.9 | D97: 1.258925412e-09 | E97: 7.943282347e-06 | F97: 0.1 | G97: 0.1 | H97: 0.2 | I97: 2 | M97: 8.9 | N97: 10.0003971
A98: 10.00054995 | B98: 10.00049995 | C98: 9 | D98: 1e-09 | E98: 1e-05 | F98: 0.1 | G98: 0.1 | H98: 0.2 | I98: 2 | M98: 9 | N98: 10.00049995
A99: 10.00069237 | B99: 10.00062942 | C99: 9.1 | D99: 7.943282347e-10 | E99: 1.258925412e-05 | F99: 0.1 | G99: 0.1 | H99: 0.2 | I99: 2 | M99: 9.1 | N99: 10.00062942
A100: 10.00087166 | B100: 10.00079242 | C100: 9.2 | D100: 6.309573445e-10 | E100: 1.584893192e-05 | F100: 0.1 | G100: 0.1 | H100: 0.2 | I100: 2 | M100: 9.2 | N100: 10.00079242
A101: 10.00109738 | B101: 10.00099761 | C101: 9.3 | D101: 5.011872336e-10 | E101: 1.995262315e-05 | F101: 0.1 | G101: 0.1 | H101: 0.2 | I101: 2 | M101: 9.3 | N101: 10.00099761
A102: 10.00138153 | B102: 10.00125592 | C102: 9.4 | D102: 3.981071706e-10 | E102: 2.511886432e-05 | F102: 0.1 | G102: 0.1 | H102: 0.2 | I102: 2 | M102: 9.4 | N102: 10.00125592
A103: 10.00173926 | B103: 10.00158112 | C103: 9.5 | D103: 3.16227766e-10 | E103: 3.16227766e-05 | F103: 0.1 | G103: 0.1 | H103: 0.2 | I103: 2 | M103: 9.5 | N103: 10.00158112
A104: 10.00218962 | B104: 10.00199052 | C104: 9.6 | D104: 2.511886432e-10 | E104: 3.981071706e-05 | F104: 0.1 | G104: 0.1 | H104: 0.2 | I104: =I$2*(3*ALPHA(3,$C104,I$3:I$5)+2*ALPHA(2,$C104,I$3:I$5)+ALPHA(1,$C104,I$3:I$5)) -> 2 | M104: 9.6 | N104: =B104 -> 10.00199052
A105: 10.00275659 | B105: 10.00250593 | C105: 9.7 | D105: 1.995262315e-10 | E105: 5.011872336e-05 | F105: 0.1 | G105: 0.1 | H105: 0.2 | I105: 2 | M105: 9.7 | N105: 10.00250593
A106: 10.00347037 | B106: 10.00315478 | C106: 9.8 | D106: 1.584893192e-10 | E106: 6.309573445e-05 | F106: 0.1 | G106: 0.1 | H106: 0.2 | I106: 2 | M106: 9.8 | N106: 10.00315478
A107: 10.00436897 | B107: =$B$2*(H107-D107+E107)/I107 -> 10.00397164 | C107: =C106+B$3 -> 9.9 | D107: =10^-(C107) -> 1.258925412e-10 | E107: =10^-(14-C107) -> 7.943282347e-05 | F107: 0.1 | G107: 0.1 | H107: =SUM(F107:G107) -> 0.2 | I107: 2 | M107: 9.9 | N107: 10.00397164
A108: 10.00550027 | B108: 10.005 | C108: 10 | D108: 1e-10 | E108: 0.0001 | F108: =F$2*(3*ALPHA(0,$C108,F$3:F$5)+2*ALPHA(1,$C108,F$3:F$5)+ALPHA(2,$C108,F$3:F$5)) -> 0.1 | G108: 0.1 | H108: 0.2 | I108: 2 | M108: 10 | N108: 10.005
A109: 10.00692452 | B109: 10.00629462 | C109: 10.1 | D109: 7.943282347e-11 | E109: 0.0001258925412 | F109: 0.1 | G109: 0.1 | H109: 0.2 | I109: 2 | M109: 10.1 | N109: 10.00629462
A110: 10.0087176 | B110: 10.00792446 | C110: 10.2 | D110: 6.309573445e-11 | E110: 0.0001584893192 | F110: 0.1 | G110: 0.1 | H110: 0.2 | I110: 2 | M110: 10.2 | N110: 10.00792446
A111: 10.01097504 | B111: 10.00997631 | C111: 10.3 | D111: 5.011872336e-11 | E111: 0.0001995262315 | F111: 0.1 | G111: 0.1 | H111: 0.2 | I111: 2 | M111: 10.3 | N111: 10.00997631
A112: 10.01381711 | B112: 10.01255943 | C112: 10.4 | D112: 3.981071706e-11 | E112: 0.0002511886432 | F112: 0.1 | G112: 0.1 | H112: 0.2 | I112: 1.999999999 | M112: 10.4 | N112: 10.01255943
A113: 10.01739528 | B113: 10.01581139 | C113: 10.5 | D113: 3.16227766e-11 | E113: 0.000316227766 | F113: 0.1 | G113: 0.1 | H113: 0.2 | I113: 1.999999999 | M113: 10.5 | N113: 10.01581139
A114: 10.02190026 | B114: 10.01990536 | C114: 10.6 | D114: 2.511886432e-11 | E114: 0.0003981071706 | F114: 0.1 | G114: 0.1 | H114: 0.2 | I114: 1.999999999 | M114: 10.6 | N114: 10.01990536
A115: 10.02757221 | B115: 10.02505937 | C115: 10.7 | D115: 1.995262315e-11 | E115: 0.0005011872336 | F115: 0.1 | G115: 0.1 | H115: 0.2 | I115: 1.999999999 | M115: 10.7 | N115: 10.02505937
A116: 10.03471361 | B116: 10.03154787 | C116: 10.8 | D116: 1.584893192e-11 | E116: 0.0006309573445 | F116: 0.1 | G116: 0.1 | H116: 0.2 | I116: 1.999999999 | M116: 10.8 | N116: 10.03154787
A117: 10.04370542 | B117: 10.03971642 | C117: 10.9 | D117: 1.258925412e-11 | E117: 0.0007943282347 | F117: 0.1 | G117: 0.1 | H117: 0.2 | I117: 1.999999998 | M117: 10.9 | N117: 10.03971642
A118: 10.05502752 | B118: 10.05000001 | C118: 11 | D118: 1e-11 | E118: 0.001 | F118: 0.1 | G118: 0.1 | H118: 0.2 | I118: 1.999999998 | M118: 11 | N118: 10.05000001
A119: 10.06928452 | B119: 10.06294628 | C119: 11.1 | D119: 7.943282347e-12 | E119: 0.001258925412 | F119: 0.1 | G119: 0.1 | H119: 0.2 | I119: 1.999999997 | M119: 11.1 | N119: 10.06294628
A120: 10.08723827 | B120: 10.07924468 | C120: 11.2 | D120: 6.309573445e-12 | E120: 0.001584893192 | F120: 0.1 | G120: 0.1 | H120: 0.2 | I120: 1.999999997 | M120: 11.2 | N120: 10.07924468
A121: 10.10984904 | B121: 10.09976314 | C121: 11.3 | D121: 5.011872336e-12 | E121: 0.001995262315 | F121: 0.1 | G121: 0.1 | H121: 0.2 | I121: 1.999999996 | M121: 11.3 | N121: 10.09976314
A122: 10.13832751 | B122: 10.12559435 | C122: 11.4 | D122: 3.981071706e-12 | E122: 0.002511886432 | F122: 0.1 | G122: 0.1 | H122: 0.2 | I122: 1.999999995 | M122: 11.4 | N122: 10.12559435
A123: 10.17420074 | B123: 10.15811391 | C123: 11.5 | D123: 3.16227766e-12 | E123: 0.00316227766 | F123: 0.1 | G123: 0.1 | H123: 0.2 | I123: 1.999999994 | M123: 11.5 | N123: 10.15811391
A124: 10.2193957 | B124: 10.19905363 | C124: 11.6 | D124: 2.511886432e-12 | E124: 0.003981071706 | F124: 0.1 | G124: 0.1 | H124: 0.2 | I124: 1.999999992 | M124: 11.6 | N124: 10.19905363
A125: 10.27634553 | B125: 10.25059367 | C125: 11.7 | D125: 1.995262315e-12 | E125: 0.005011872336 | F125: 0.1 | G125: 0.1 | H125: 0.2 | I125: 1.99999999 | M125: 11.7 | N125: 10.25059367
A126: 10.34812486 | B126: 10.31547874 | C126: 11.8 | D126: 1.584893192e-12 | E126: 0.006309573445 | F126: 0.1 | G126: 0.1 | H126: 0.2 | I126: 1.999999987 | M126: 11.8 | N126: 10.31547874
A127: 10.43862266 | B127: 10.3971642 | C127: 11.9 | D127: 1.258925412e-12 | E127: 0.007943282347 | F127: 0.1 | G127: 0.1 | H127: 0.2 | I127: 1.999999984 | M127: 11.9 | N127: 10.3971642
A128: 10.55276393 | B128: 10.5000001 | C128: 12 | D128: 1e-12 | E128: 0.01 | F128: =F$2*(3*ALPHA(0,$C128,F$3:F$5)+2*ALPHA(1,$C128,F$3:F$5)+ALPHA(2,$C128,F$3:F$5)) -> 0.1 | G128: 0.1 | H128: 0.2 | I128: 1.99999998 | M128: 12 | N128: 10.5000001
A129: 10.69679518 | B129: 10.62946284 | C129: 12.1 | D129: 7.943282347e-13 | E129: 0.01258925412 | F129: 0.1 | G129: 0.1 | H129: 0.2 | I129: 1.999999975 | M129: 12.1 | N129: 10.62946284
A130: 10.87865429 | B130: 10.79244677 | C130: 12.2 | D130: 6.309573445e-13 | E130: 0.01584893192 | F130: 0.1 | G130: 0.1 | H130: 0.2 | I130: 1.999999968 | M130: 12.2 | N130: 10.79244677
A131: 11.10845276 | B131: 10.99763138 | C131: 12.3 | D131: 5.011872336e-13 | E131: 0.01995262315 | F131: 0.1 | G131: 0.1 | H131: 0.2 | I131: 1.99999996 | M131: 12.3 | N131: 10.99763138
A132: 11.39910985 | B132: 11.2559435 | C132: 12.4 | D132: 3.981071706e-13 | E132: 0.02511886432 | F132: 0.1 | G132: 0.1 | H132: 0.2 | I132: 1.99999995 | M132: 12.4 | N132: 11.2559435
A133: 11.76719489 | B133: 11.5811392 | C133: 12.5 | D133: 3.16227766e-13 | E133: 0.0316227766 | F133: 0.1 | G133: 0.1 | H133: 0.2 | I133: 1.999999937 | M133: 12.5 | N133: 11.5811392
A134: 12.23405968 | B134: 11.99053633 | C134: 12.6 | D134: 2.511886432e-13 | E134: 0.03981071706 | F134: 0.1 | G134: 0.1 | H134: 0.2 | I134: 1.99999992 | M134: 12.6 | N134: 11.99053633
A135: 12.82738284 | B135: 12.50593679 | C135: 12.7 | D135: 1.995262315e-13 | E135: 0.05011872336 | F135: 0.1 | G135: 0.1 | H135: 0.2 | I135: 1.9999999 | M135: 12.7 | N135: 12.50593679
A136: 13.58331211 | B136: 13.15478755 | C136: 12.8 | D136: 1.584893192e-13 | E136: 0.06309573445 | F136: 0.1 | G136: 0.1 | H136: 0.2 | I136: =I$2*(3*ALPHA(3,$C136,I$3:I$5)+2*ALPHA(2,$C136,I$3:I$5)+ALPHA(1,$C136,I$3:I$5)) -> 1.999999874 | M136: 12.8 | N136: =B136 -> 13.15478755
A137: =(H137-D137+E137)*$B$2/(+D137-E137+I137) -> 14.54949611 | B137: 13.97164228 | C137: 12.9 | D137: 1.258925412e-13 | E137: 0.07943282347 | F137: 0.1 | G137: 0.1 | H137: 0.2 | I137: 1.999999841 | M137: =C137*M$3+M$4 -> 12.9 | N137: 13.97164228
A138: 15.78947535 | B138: 15.0000015 | C138: 13 | D138: 1e-13 | E138: 0.1 | F138: 0.1 | G138: 0.1 | H138: 0.2 | I138: 1.9999998 | M138: 13 | N138: 15.0000015
A139: 17.38921551 | B139: 16.29462911 | C139: 13.1 | D139: 7.943282347e-14 | E139: 0.1258925412 | F139: 0.1 | G139: 0.1 | H139: 0.2 | I139: 1.999999748 | M139: 13.1 | N139: 16.29462911
A140: 19.46713558 | B140: 17.9244688 | C140: 13.2 | D140: 6.309573445e-14 | E140: 0.1584893192 | F140: 0.1 | G140: 0.1 | H140: 0.2 | I140: 1.999999683 | M140: 13.2 | N140: 17.9244688
A141: 22.19006614 | B141: 19.97631556 | C141: 13.3 | D141: 5.011872336e-14 | E141: 0.1995262315 | F141: 0.1 | G141: 0.1 | H141: 0.2 | I141: 1.999999601 | M141: 13.3 | N141: 19.97631556
A142: 25.79973941 | B142: 22.55943782 | C142: 13.4 | D142: 3.981071706e-14 | E142: 0.2511886432 | F142: 0.1 | G142: 0.1 | H142: 0.2 | I142: 1.999999498 | M142: 13.4 | N142: 22.55943782
A143: 30.6590137 | B143: 25.81139646 | C143: 13.5 | D143: 3.16227766e-14 | E143: 0.316227766 | F143: 0.1 | G143: 0.1 | H143: 0.2 | I143: 1.999999368 | M143: 13.5 | N143: 25.81139646
A144: 37.33754574 | B144: 29.90537043 | C144: 13.6 | D144: 2.511886432e-14 | E144: 0.3981071706 | F144: 0.1 | G144: 0.1 | H144: 0.2 | I144: 1.999999204 | M144: 13.6 | N144: 29.90537043
A145: 46.78287497 | B145: 35.05937925 | C145: 13.7 | D145: 1.995262315e-14 | E145: 0.5011872336 | F145: 0.1 | G145: 0.1 | H145: 0.2 | I145: 1.999998998 | M145: 13.7 | N145: 35.05937925
A146: 60.69629073 | B146: 41.54789344 | C146: 13.8 | D146: 1.584893192e-14 | E146: 0.6309573445 | F146: 0.1 | G146: 0.1 | H146: 0.2 | I146: 1.999998738 | M146: 13.8 | N146: 41.54789344
A147: 82.47099862 | B147: 49.71645123 | C147: 13.9 | D147: 1.258925412e-14 | E147: 0.7943282347 | F147: 0.1 | G147: 0.1 | H147: 0.2 | I147: 1.999998411 | M147: 13.9 | N147: 49.71645123
A148: 120.00024 | B148: 60.00006 | C148: 14 | D148: 1e-14 | E148: 1 | F148: 0.1 | G148: 0.1 | H148: 0.2 | I148: 1.999998 | M148: 14 | N148: 60.00006

Sheet Herleitung
A1: Herleitung Formel
A2: Definitionen
A3: Anfangskonzentrationen
A4: ct | C4: Titrans, also OH-
A5: c0 | B5: =HA+A | C5: Säure Startkonzentration
A6: V0, Vt | B6: Probenvolumen, Titransvolumen bis zum betrachteten Punkt
A7: Algw-Konzentrationen | C7: molare Mengen (n) im Gleichgewicht
A8: [H] | C8: H
A9: [OH] | C9: OH
A10: [HA] | C10: HA
A11: [A] | C11: A
A13: ct·Vt-OH | B13: Menge an zugegebenen OH-, die insgesamt mit Säuremolekülen wegreagiert sind = (zugegeben) - (noch vorhanden)
A16: [A] und [HA] im Gleichgewicht: Kolonne cBase
A17: pH = pKs + log(A/HA) = pKs + log (A/(c0-A))
A18: 10^(pH-pKs)=(A/c0-A)
A19: cBase = [A]unverdünnt =[ c0·10^(pH-pKs)] / [(1+10^(pH-pKs))] =c0· 1/(1+(1/10^(pH-pKs)))
A20: Bei Verdünnung wird c0 und damit auch HA und A (bei konstantem pH) verdünnt um den Faktor V0/(Vt+V0)
A21: [A] verdünnt = [A] = [A]unverdünnt ·V0/(Vt+V0) = cBase·V0/(Vt+V0)
A23: Protonenbilanz:
A24: (Gesamte Menge aller als Säure zugegebener H+) = (H+, die im Glgw noch an undeprotonierter Säure sind) + (H+ im Gleichgeweicht) + (Menge, die mit OH- wegreagiert ist)
A25: c0 = HA + H + (ct·Vt-OH)
A26: c0 ersetzen und Gleichung umstellen
A27: HA + A = HA + H + (ct·Vt-OH)
A28: A = H + (ct·Vt-OH)
A29: Berechnung der molaren Mengen aus Konzentrationen
A30: Mit Verdünnung: Bei der Titration wird c0 verdünnt um den Faktor V0/(Vt+V0)
A31: [A] (V0+Vt)= [H] (V0+Vt) + (ct·Vt-[OH] (V0+Vt))
A32: cBase·V0/(Vt+V0) (V0+Vt)=cBase· V0 = [H]· (V0+Vt) + (ct·Vt-[OH] (V0+Vt))
A33: (cBase + [OH] - [H]) · V0= (ct - [OH] + [H])·Vt
A34: Vt=(cBase + [OH] - [H]) · V0 / (ct - [OH] + [H])
A35: Näherung unverdünnt: hier setzt man statt [H] (V0+Vt) bzw. [OH] (V0+Vt) nur [H]·V0 bzw. [OH]·V0:
A36: Vt=(cBase + [OH] - [H]) · V0 / (ct )
A38: Mehrpotonige Säure
A39: Fürs Gleichgewicht Anteile ausrechnen:
A40: setzen: Anteil von H3A=1
A41: aus A = HA*10^(pH-pKs)
A42: ergibt sich H2A = H3A*10^(pH-pKS)
A43: -> Anteil von H2A, diesen verwendet man wiederum für Berechnung des Anteils von HA etc
A44: c0/(Summe aller Anteile) * betreffender Anteil = Konzentration der Spezies, ohne Verdünnung
A45: Verdünnung: alle Konzentrationen mal den Verdünnungsfaktor (bei konstantem pH!) V0/(Vt+V0)
A46: Also am Schluss auch wieder Anwendung des Verdünnungsfaktors

Sheet Pufferkurven
A1: Beim Einfüllen der pKS- oder pH-Werte (graue Flächen) werden die Kurven automatisch erzeugt, beim Löschen verschwinden sie wieder. (im Gelben Bereich nichts ändern!!)
B3: Pufferkurven | F3: Linie 1 | H3: Linie 2 | J3: 1%-Linie
B4: pKs | C4: pKs | D4: pKs | E4: pKs | F4: pH | H4: pH
D5: 4 | F5: 7
A6: pH | B6: Schwarz | C6: rot | D6: blau | E6: braun | F6: schwarz | H6: grün
A7: 0 | B7: =IF(B$5<>"",ALPHA(0,$A7,B$5),"") ->  | C7: =IF(C$5<>"",ALPHA(0,$A7,C$5),"") ->  | D7: =IF(D$5<>"",ALPHA(0,$A7,D$5),"") -> 9.9990001e-05
A8: =A7+0.1 -> 0.1 | B8: =IF(B$5<>"",ALPHA(0,$A8,B$5),"") ->  | C8: =IF(C$5<>"",ALPHA(0,$A8,C$5),"") ->  | D8: 0.0001258766942 | F8: =IF(F5<>"",0,"") -> 0 | G8: =IF(F5<>"",F5,"") -> 7 | H8: =IF(H5<>"",0,"") ->  | I8: =IF(H5<>"",H5,"") ->  | J8: 0.01 | K8: 0 | L8: 0.99 | M8: 0
A9: =A8+0.1 -> 0.2 | D9: 0.0001584642044 | F9: =IF(F5<>"",1,"") -> 1 | G9: =IF(F5<>"",F5,"") -> 7 | H9: =IF(H5<>"",1,"") ->  | I9: =IF(H5<>"",H5,"") ->  | J9: 0.01 | K9: 14 | L9: 0.99 | M9: 14
A10: 0.3 | D10: 0.0001994864287
A11: 0.4 | D11: 0.0002511255633
A12: 0.5 | D12: 0.0003161277976
A13: 0.6 | D13: 0.0003979487443
A14: 0.7 | D14: 0.0005009361708
A15: 0.8 | D15: 0.0006305594883
A16: 0.9 | D16: 0.0007936977782
A17: 1 | D17: 0.000999000999
A18: 1.1 | D18: 0.001257342511
A19: 1.2 | D19: 0.001582385281
A20: 1.3 | D20: 0.001991289171
A21: 1.4 | D21: 0.002505592667
A22: 1.5 | D22: 0.003152309183
A23: 1.6 | D23: 0.003965285619
A24: 1.7 | D24: 0.004986878737
A25: 1.8 | D25: 0.006270012341
A26: 1.9 | D26: 0.00788068385
A27: 2 | D27: 0.009900990099
A28: 2.1 | D28: 0.01243273525
A29: 2.2 | D29: 0.01560166224
A30: 2.3 | D30: 0.01956230387
A31: 2.4 | D31: 0.02450336755
A32: 2.5 | D32: 0.03065343003
A33: 2.6 | D33: 0.03828650388
A34: 2.7 | D34: 0.04772672103
A35: 2.8 | D35: 0.0593509431
A36: 2.9 | D36: 0.07358755612
A37: 3 | D37: 0.09090909091
A38: 3.1 | D38: 0.1118157698
A39: 3.2 | D39: 0.1368068886
A40: 3.3 | D40: 0.1663375308
A41: 3.4 | D41: 0.2007600089
A42: 3.5 | D42: 0.2402530734
A43: 3.6 | D43: 0.284747249
A44: 3.7 | D44: 0.3338605754
A45: 3.8 | D45: 0.3868631798
A46: 3.9 | D46: 0.4426883662
A47: 4 | D47: 0.5
A48: 4.1 | D48: 0.5573116338
A49: 4.2 | D49: 0.6131368202
A50: 4.3 | D50: 0.6661394246
A51: 4.4 | D51: 0.715252751
A52: 4.5 | D52: 0.7597469266
A53: 4.6 | D53: 0.7992399911
A54: 4.7 | D54: 0.8336624692
A55: 4.8 | D55: 0.8631931114
A56: 4.9 | D56: 0.8881842302
A57: 5 | D57: 0.9090909091
A58: 5.1 | D58: 0.9264124439
A59: 5.2 | D59: 0.9406490569
A60: 5.3 | D60: 0.952273279
A61: 5.4 | D61: 0.9617134961
A62: 5.5 | D62: 0.96934657
A63: 5.6 | D63: 0.9754966324
A64: 5.7 | D64: 0.9804376961
A65: 5.8 | D65: 0.9843983378
A66: 5.9 | D66: 0.9875672647
A67: 6 | D67: 0.9900990099
A68: 6.1 | D68: 0.9921193161
A69: 6.2 | D69: 0.9937299877
A70: 6.3 | D70: 0.9950131213
A71: 6.4 | D71: 0.9960347144
A72: 6.5 | B72: =IF(B$5<>"",ALPHA(0,$A72,B$5),"") ->  | C72: =IF(C$5<>"",ALPHA(0,$A72,C$5),"") ->  | D72: 0.9968476908
A73: =A72+0.1 -> 6.6 | D73: 0.9974944073
A74: 6.7 | D74: 0.9980087108
A75: 6.8 | D75: 0.9984176147
A76: 6.9 | D76: 0.9987426575
A77: 7 | D77: 0.999000999
A78: 7.1 | D78: 0.9992063022
A79: 7.2 | D79: 0.9993694405
A80: 7.3 | D80: 0.9994990638
A81: 7.4 | D81: 0.9996020513
A82: 7.5 | D82: 0.9996838722
A83: 7.6 | D83: 0.9997488744
A84: 7.7 | D84: 0.9998005136
A85: 7.8 | D85: 0.9998415358
A86: 7.9 | D86: 0.9998741233
A87: 8 | D87: 0.99990001
A88: 8.1 | D88: 0.9999205735
A89: 8.2 | D89: 0.9999369082
A90: 8.3 | D90: 0.9999498838
A91: 8.4 | D91: 0.9999601909
A92: 8.5 | D92: 0.9999683782
A93: 8.6 | D93: 0.9999748818
A94: 8.7 | D94: 0.9999800478
A95: 8.8 | D95: 0.9999841513
A96: 8.9 | D96: 0.9999874109
A97: 9 | D97: 0.9999900001
A98: 9.1 | D98: 0.9999920568
A99: 9.2 | D99: 0.9999936905
A100: 9.3 | D100: 0.9999949882
A101: 9.4 | D101: 0.9999960189
A102: 9.5 | D102: 0.9999968377
A103: 9.6 | D103: 0.9999974881
A104: 9.7 | D104: 0.9999980047
A105: 9.8 | D105: 0.9999984151
A106: 9.9 | D106: 0.9999987411
A107: 10 | D107: 0.999999
A108: 10.1 | D108: 0.9999992057
A109: 10.2 | D109: 0.999999369
A110: 10.3 | D110: 0.9999994988
A111: 10.4 | D111: 0.9999996019
A112: 10.5 | D112: 0.9999996838
A113: 10.6 | D113: 0.9999997488
A114: 10.7 | D114: 0.9999998005
A115: 10.8 | D115: 0.9999998415
A116: 10.9 | D116: 0.9999998741
A117: 11 | D117: 0.9999999
A118: 11.1 | D118: 0.9999999206
A119: 11.2 | D119: 0.9999999369
A120: 11.3 | D120: 0.9999999499
A121: 11.4 | D121: 0.9999999602
A122: 11.5 | D122: 0.9999999684
A123: 11.6 | D123: 0.9999999749
A124: 11.7 | D124: 0.99999998
A125: 11.8 | D125: 0.9999999842
A126: 11.9 | D126: 0.9999999874
A127: 12 | D127: 0.99999999
A128: 12.1 | D128: 0.9999999921
A129: 12.2 | D129: 0.9999999937
A130: 12.3 | D130: 0.999999995
A131: 12.4 | D131: 0.999999996
A132: 12.5 | D132: 0.9999999968
A133: 12.6 | D133: 0.9999999975
A134: 12.7 | D134: 0.999999998
A135: 12.8 | D135: 0.9999999984
A136: 12.9 | B136: =IF(B$5<>"",ALPHA(0,$A136,B$5),"") ->  | C136: =IF(C$5<>"",ALPHA(0,$A136,C$5),"") ->  | D136: 0.9999999987
A137: =A136+0.1 -> 13 | D137: 0.999999999
A138: 13.1 | D138: 0.9999999992
A139: 13.2 | D139: 0.9999999994
A140: 13.3 | D140: 0.9999999995
A141: 13.4 | D141: 0.9999999996
A142: 13.5 | D142: 0.9999999997
A143: 13.6 | D143: 0.9999999997
A144: 13.7 | D144: 0.9999999998
A145: 13.8 | D145: 0.9999999998
A146: 13.9 | D146: 0.9999999999
A147: 14 | D147: 0.9999999999

Sheet Berechnung alt
A1: Titrationskurven Säuren | E1: Berechnung mit H+ als unabhängiger, Vt als abhängiger Variabel
A2: Probenvolumen mL | C2: 100
A3: Titranskonzentration mol/L | C3: 1
C4: 20
D6: Einprotonige Säuren | G6: Mehrprotonige Säuren
D7: müssen nicht nach aufsteigendem pKS geordnet sein | G7: Nach aufsteigenden pKS
D8: Zusätzliche Säuren | G8: Für zweiprotonige Säure: letzten pKs über 14 wählen
D9: zwischen Säure 1 und Säure 3 einfügen
D10: Säure 1 | E10: Säure 3
B11: pKS | D11: 10 | E11: 4 | G11: -3 | H11: 5 | I11: 20
B12: c0 | C12: mol/L | D12: 0.05 | E12: 0.1 | G12: 0 | H12: =[H3A]0
A14: delta pH | S14: Folgeberechnungen
A15: 0.1 | O15: V | P15: V | Q15: pH
G16: Für H3A=1 | O16: ohne Verdünnung | P16: mit Verdünnung | U16: Säure 1 | V16: Säure 1
A17: pH | B17: H3O+ | C17: OH- | D17: cBase | E17: cBase | G17: H2A | H17: HA | I17: A | J17: Anteile total | K17: cBAseTotal | M17: Summe(Basen) | S17: H | T17: OH | U17: HA | V17: A
A18: 0 | B18: =10^-A18 -> 1 | C18: =10^-(14-A18) -> 1e-14 | D18: =1/(1+(10^-($A18-D$11)))*D$12 -> 5e-12 | E18: 9.9990001e-06 | G18: =10^($A18-G$11) -> 1000 | H18: =10^($A18-H$11)*G18 -> 0.01 | I18: 1e-22 | J18: =1+G18+H18+I18 -> 1001.01 | K18: =$G$12/J18*(G18+2*H18+3*I18) -> 0 | M18: =SUM(D18:F18)+K18 -> 9.9990051e-06 | O18: =(M18+C18-B18)*$C$2/$C$3 -> -99.9990001 | P18: =(M18+C18-B18)*$C$2/($C$3-C18+B18) -> -49.99950005 | Q18: =A18 -> 0 | S18: =B18 -> 1 | T18: =C18 -> 1e-14 | U18: =($D$12-D18)*$C$2/($C$2+P18) -> 0.0999990001 | V18: =D18*$C$2/($C$2+P18) -> 9.99990001e-12 | W18: =SUM(U18:V18) -> 0.09999900011
A19: =A18+A$15 -> 0.1 | B19: =10^-A19 -> 0.7943282347 | C19: =10^-(14-A19) -> 1.258925412e-14 | D19: 6.294627058e-12 | E19: 1.258766942e-05 | G19: =10^($A19-G$11) -> 1258.925412 | H19: 0.01584893192 | I19: 1.995262315e-22 | J19: =1+G19+H19+I19 -> 1259.941261 | K19: =$G$12/J19*(G19+2*H19+3*I19) -> 0 | M19: =SUM(D19:F19)+K19 -> 1.258767572e-05 | O19: =(M19+C19-B19)*$C$2/$C$3 -> -79.4315647 | P19: =(M19+C19-B19)*$C$2/($C$3-C19+B19) -> -44.2681351 | Q19: =A19 -> 0.1 | S19: =B19 -> 0.7943282347 | T19: =C19 -> 1.258925412e-14 | U19: 0.08971528242 | V19: =D19*$C$2/($C$2+P19) -> 1.129448489e-11 | W19: =SUM(U19:V19) -> 0.08971528243
A20: =A19+A$15 -> 0.2 | B20: 0.6309573445 | C20: 1.584893192e-14 | D20: 7.924465961e-12 | E20: 1.584642044e-05 | G20: 1584.893192 | H20: 0.02511886432 | I20: 3.981071706e-22 | J20: 1585.918311 | K20: 0 | M20: 1.584642836e-05 | O20: -63.09414981 | P20: -38.68534638 | Q20: 0.2 | S20: 0.6309573445 | T20: 1.584893192e-14 | U20: 0.08154657499 | V20: 1.292426116e-11 | W20: 0.081546575
A21: 0.3 | B21: 0.5011872336 | C21: 1.995262315e-14 | D21: 9.976311573e-12 | E21: 1.994864287e-05 | G21: 1995.262315 | H21: 0.03981071706 | I21: 7.943282347e-22 | J21: 1996.302126 | K21: 0 | M21: 1.994865285e-05 | O21: -50.1167285 | P21: -33.38472868 | Q21: 0.3 | S21: 0.5011872336 | T21: 1.995262315e-14 | U21: 0.07505786436 | V21: 1.497601282e-11 | W21: 0.07505786438
A22: 0.4 | B22: 0.3981071706 | C22: 2.511886432e-14 | D22: 1.255943215e-11 | E22: 2.511255633e-05 | G22: 2511.886432 | H22: 0.06309573445 | I22: 1.584893192e-21 | J22: 2512.949527 | K22: 0 | M22: 2.511256889e-05 | O22: -39.8082058 | P22: -28.47292871 | Q22: 0.4 | S22: 0.3981071706 | T22: 2.511886432e-14 | U22: 0.06990360305 | V22: 1.75589912e-11 | W22: 0.06990360307
A23: 0.5 | B23: 0.316227766 | C23: 3.16227766e-14 | D23: 1.58113883e-11 | E23: 3.161277976e-05 | G23: 3162.27766 | H23: 0.1 | I23: 3.16227766e-21 | J23: 3163.37766 | K23: 0 | M23: 3.161279557e-05 | O23: -31.61961532 | P23: -24.02290556 | Q23: 0.5 | S23: 0.316227766 | T23: 3.16227766e-14 | U23: 0.06580930786 | V23: 2.081073041e-11 | W23: 0.06580930788
A24: 0.6 | B24: 0.2511886432 | C24: 3.981071706e-14 | D24: 1.990535852e-11 | E24: 3.979487443e-05 | G24: 3981.071706 | H24: 0.1584893192 | I24: 6.309573445e-21 | J24: 3982.230195 | K24: 0 | M24: 3.979489434e-05 | O24: -25.11488483 | P24: -20.07282032 | Q24: 0.6 | S24: 0.2511886432 | T24: 3.981071706e-14 | U24: 0.06255694269 | V24: 2.490436745e-11 | W24: 0.06255694271
A25: 0.7 | B25: 0.1995262315 | C25: 5.011872336e-14 | D25: 2.505936167e-11 | E25: 5.009361708e-05 | G25: 5011.872336 | H25: 0.2511886432 | I25: 1.258925412e-20 | J25: 5013.123525 | K25: 0 | M25: 5.009364214e-05 | O25: -19.94761379 | P25: -16.62957696 | Q25: 0.7 | S25: 0.1995262315 | T25: 5.011872336e-14 | U25: 0.05997330726 | V25: 3.005785596e-11 | W25: 0.05997330729
A26: 0.8 | B26: 0.1584893192 | C26: 6.309573445e-14 | D26: 3.15478672e-11 | E26: 6.305594883e-05 | G26: 6309.573445 | H26: 0.3981071706 | I26: 2.511886432e-20 | J26: 6310.971552 | K26: 0 | M26: 6.305598038e-05 | O26: -15.84262633 | P26: -13.67524591 | Q26: 0.8 | S26: 0.1584893192 | T26: 6.309573445e-14 | U26: 0.05792081367 | V26: 3.654556278e-11 | W26: 0.05792081371
A27: 0.9 | B27: 0.1258925412 | C27: 7.943282347e-14 | D27: 3.97164117e-11 | E27: 7.936977782e-05 | G27: 7943.282347 | H27: 0.6309573445 | I27: 5.011872336e-20 | J27: 7944.913305 | K27: 0 | M27: 7.936981753e-05 | O27: -12.58131714 | P27: -11.17452748 | Q27: 0.9 | S27: 0.1258925412 | T27: 7.943282347e-14 | U27: 0.05629015927 | V27: 4.471286285e-11 | W27: 0.05629015932
A28: 1 | B28: 0.1 | C28: 1e-13 | D28: 4.999999995e-11 | E28: 9.99000999e-05 | G28: 10000 | H28: 1 | I28: 1e-19 | J28: 10002 | K28: 0 | M28: 9.99001499e-05 | O28: -9.990009985 | P28: -9.081827259 | Q28: 1 | S28: 0.1 | T28: 1e-13 | U28: 0.05499450599 | V28: 5.499450599e-11 | W28: 0.05499450604
A29: 1.1 | B29: 0.07943282347 | C29: 1.258925412e-13 | D29: 6.294627051e-11 | E29: 0.0001257342511 | G29: 12589.25412 | H29: 1.584893192 | I29: 1.995262315e-19 | J29: 12591.83901 | K29: 0 | M29: 0.0001257343141 | O29: -7.930708916 | P29: -7.347107428 | Q29: 1.1 | S29: 0.07943282347 | T29: 1.258925412e-13 | U29: 0.05396485587 | V29: 6.79377284e-11 | W29: 0.05396485594
A30: 1.2 | B30: 0.06309573445 | C30: 1.584893192e-13 | D30: 7.92446595e-11 | E30: 0.0001582385281 | G30: 15848.93192 | H30: 2.511886432 | I30: 3.981071706e-19 | J30: 15852.44381 | K30: 0 | M30: 0.0001582386073 | O30: -6.293749584 | P30: -5.920209611 | Q30: 1.2 | S30: 0.06309573445 | T30: 1.584893192e-13 | U30: 0.05314637683 | V30: 8.423133084e-11 | W30: 0.05314637691
A31: 1.3 | B31: 0.05011872336 | C31: 1.995262315e-13 | D31: 9.976311555e-11 | E31: 0.0001991289171 | G31: 19952.62315 | H31: 3.981071706 | I31: 7.943282347e-19 | J31: 19957.60422 | K31: 0 | M31: 0.0001991290168 | O31: -4.991959435 | P31: -4.753709579 | Q31: 1.3 | S31: 0.05011872336 | T31: 1.995262315e-13 | U31: 0.05249548269 | V31: 1.047422583e-10 | W31: 0.05249548279
A32: 1.4 | B32: 0.03981071706 | C32: 2.511886432e-13 | D32: 1.255943213e-10 | E32: 0.0002505592667 | G32: 25118.86432 | H32: 6.309573445 | I32: 1.584893192e-18 | J32: 25126.17389 | K32: 0 | M32: 0.0002505593923 | O32: -3.956015766 | P32: -3.804553753 | Q32: 1.4 | S32: 0.03981071706 | T32: 2.511886432e-13 | U32: 0.05197751227 | V32: 1.305616078e-10 | W32: 0.0519775124
A33: 1.5 | B33: 0.0316227766 | C33: 3.16227766e-13 | D33: 1.581138825e-10 | E33: 0.0003152309183 | G33: 31622.7766 | H33: 10 | I33: 3.16227766e-18 | J33: 31633.7766 | K33: 0 | M33: 0.0003152310764 | O33: -3.130754552 | P33: -3.034786187 | Q33: 1.5 | S33: 0.0316227766 | T33: 3.16227766e-13 | U33: 0.05156488381 | V33: 1.630624801e-10 | W33: 0.05156488398
A34: 1.6 | B34: 0.02511886432 | C34: 3.981071706e-13 | D34: 1.990535845e-10 | E34: 0.0003965285619 | G34: 39810.71706 | H34: 15.84893192 | I34: 6.309573445e-18 | J34: 39827.56599 | K34: 0 | M34: 0.000396528761 | O34: -2.472233555 | P34: -2.411655508 | Q34: 1.6 | S34: 0.02511886432 | T34: 3.981071706e-13 | U34: 0.05123562661 | V34: 2.039727034e-10 | W34: 0.05123562682
A35: 1.7 | B35: 0.01995262315 | C35: 5.011872336e-13 | D35: 2.505936156e-10 | E35: 0.0004986878737 | G35: 50118.72336 | H35: 25.11886432 | I35: 1.258925412e-17 | J35: 50144.84223 | K35: 0 | M35: 0.0004986881243 | O35: -1.945393502 | P35: -1.907337124 | Q35: 1.7 | S35: 0.01995262315 | T35: 5.011872336e-13 | U35: 0.05097221167 | V35: 2.554662176e-10 | W35: 0.05097221192
A36: 1.8 | B36: 0.01584893192 | C36: 6.309573445e-13 | D36: 3.154786702e-10 | E36: 0.0006270012341 | G36: 63095.73445 | H36: 39.81071706 | I36: 2.511886432e-17 | J36: 63136.54517 | K36: 0 | M36: 0.0006270015496 | O36: -1.522193037 | P36: -1.498444296 | Q36: 1.8 | S36: 0.01584893192 | T36: 6.309573445e-13 | U36: 0.05076061929 | V36: 3.202778555e-10 | W36: 0.05076061961
A37: 1.9 | B37: 0.01258925412 | C37: 7.943282347e-13 | D37: 3.971641142e-10 | E37: 0.000788068385 | G37: 79432.82347 | H37: 63.09573445 | I37: 5.011872336e-17 | J37: 79496.91921 | K37: 0 | M37: 0.0007880687822 | O37: -1.180118533 | P37: -1.165446432 | Q37: 1.9 | S37: 0.01258925412 | T37: 7.943282347e-13 | U37: 0.05058959422 | V37: =D37*$C$2/($C$2+P37) -> 4.018474308e-10 | W37: =SUM(U37:V37) -> 0.05058959463
A38: 2 | B38: 0.01 | C38: 1e-12 | D38: =1/(1+(10^-($A38-D$11)))*D$12 -> 4.99999995e-10 | E38: 0.0009900990099 | G38: 100000 | H38: =10^($A38-H$11)*G38 -> 100 | I38: 1e-16 | J38: 100101 | K38: 0 | M38: 0.0009900995099 | O38: -0.9009900489 | P38: -0.8920693554 | Q38: 2 | S38: 0.01 | T38: 1e-12 | U38: 0.05045004893 | V38: =D38*$C$2/($C$2+P38) -> 5.045004893e-10 | W38: =SUM(U38:V38) -> 0.05045004943
A39: 2.1 | B39: 0.007943282347 | C39: 1.258925412e-12 | D39: 6.29462698e-10 | E39: 0.001243273525 | G39: 125892.5412 | H39: 158.4893192 | I39: 1.995262315e-16 | J39: 126052.0305 | K39: 0 | M39: 0.001243274155 | O39: -0.6700008191 | P39: -0.6647207545 | Q39: 2.1 | S39: 0.007943282347 | T39: 1.258925412e-12 | U39: 0.0503345838 | V39: 6.336748663e-10 | W39: 0.05033458443
A40: 2.2 | B40: 0.006309573445 | C40: 1.584893192e-12 | D40: 7.924465837e-10 | E40: 0.001560166224 | G40: 158489.3192 | H40: 251.1886432 | I40: 3.981071706e-16 | J40: 158741.5079 | K40: 0 | M40: 0.001560167017 | O40: -0.4749406427 | P40: -0.471962759 | Q40: 2.2 | S40: 0.006309573445 | T40: 1.584893192e-12 | U40: 0.05023709961 | V40: 7.962043718e-10 | W40: 0.05023710041
A41: 2.3 | B41: 0.005011872336 | C41: 1.995262315e-12 | D41: 9.976311376e-10 | E41: 0.001956230387 | G41: 199526.2315 | H41: 398.1071706 | I41: 7.943282347e-16 | J41: 199925.3387 | K41: 0 | M41: 0.001956231385 | O41: -0.3055640949 | P41: -0.3040402839 | Q41: 2.3 | S41: 0.005011872336 | T41: 1.995262315e-12 | U41: 0.05015248275 | V41: 1.000673588e-09 | W41: 0.05015248375
A42: 2.4 | B42: 0.003981071706 | C42: 2.511886432e-12 | D42: 1.255943184e-09 | E42: 0.002450336755 | G42: 251188.6432 | H42: 630.9573445 | I42: 1.584893192e-15 | J42: 251820.6005 | K42: 0 | M42: 0.002450338011 | O42: -0.1530733692 | P42: -0.1524663896 | Q42: 2.4 | S42: 0.003981071706 | T42: 2.511886432e-12 | U42: 0.05007634834 | V42: 1.257860999e-09 | W42: 0.0500763496
A43: 2.5 | B43: 0.00316227766 | C43: 3.16227766e-12 | D43: 1.58113878e-09 | E43: 0.003065343003 | G43: 316227.766 | H43: 1000 | I43: 3.16227766e-15 | J43: 317228.766 | K43: 0 | M43: 0.003065344584 | O43: -0.00969330727 | P43: -0.009662750968 | Q43: 2.5 | S43: 0.00316227766 | T43: 3.16227766e-12 | U43: 0.05000483026 | V43: 1.581291576e-09 | W43: 0.05000483184
A44: 2.6 | B44: 0.002511886432 | C44: 3.981071706e-12 | D44: 1.990535774e-09 | E44: 0.003828650388 | G44: 398107.1706 | H44: 1584.893192 | I44: 6.309573445e-15 | J44: 399693.0637 | K44: 0 | M44: 0.003828652379 | O44: 0.1316765951 | P44: 0.1313466672 | Q44: 2.6 | S44: 0.002511886432 | T44: 3.981071706e-12 | U44: 0.04993441083 | V44: 1.987924701e-09 | W44: 0.04993441281
A45: 2.7 | B45: 0.001995262315 | C45: 5.011872336e-12 | D45: 2.505936043e-09 | E45: 0.004772672103 | G45: 501187.2336 | H45: 2511.886432 | I45: 1.258925412e-14 | J45: 503700.1201 | K45: 0 | M45: 0.004772674609 | O45: 0.2777412299 | P45: 0.2771881668 | Q45: 2.7 | S45: 0.001995262315 | T45: 5.011872336e-12 | U45: 0.04986178652 | V45: 2.499009085e-09 | W45: 0.04986178902
A46: 2.8 | B46: 0.001584893192 | C46: 6.309573445e-12 | D46: 3.154786523e-09 | E46: 0.00593509431 | G46: 630957.3445 | H46: 3981.071706 | I46: 2.511886432e-14 | J46: 634939.4162 | K46: 0 | M46: 0.005935097465 | O46: 0.4350204279 | P46: 0.434332058 | Q46: 2.8 | S46: 0.001584893192 | T46: 6.309573445e-12 | U46: 0.04978376997 | V46: 3.14114353e-09 | W46: 0.04978377311
A47: 2.9 | B47: 0.001258925412 | C47: 7.943282347e-12 | D47: 3.971640858e-09 | E47: 0.007358755612 | G47: 794328.2347 | H47: 6309.573445 | I47: 5.011872336e-14 | J47: 800638.8082 | K47: 0 | M47: 0.007358759583 | O47: 0.609983418 | P47: 0.6092164599 | Q47: 2.9 | S47: 0.001258925412 | T47: 7.943282347e-12 | U47: 0.04969723231 | V47: 3.947591481e-09 | W47: 0.04969723626
A48: 3 | B48: 0.001 | C48: 1e-11 | D48: 4.9999995e-09 | E48: 0.009090909091 | G48: 1000000 | H48: 10000 | I48: 1e-13 | J48: 1010001 | K48: 0 | M48: 0.009090914091 | O48: 0.8090914101 | P48: 0.808283127 | Q48: 3 | S48: 0.001 | T48: 1e-11 | U48: 0.04959909389 | V48: 4.959909389e-09 | W48: 0.04959909885
A49: 3.1 | B49: 0.0007943282347 | C49: 1.258925412e-11 | D49: 6.294626267e-09 | E49: 0.01118157698 | G49: 1258925.412 | H49: 15848.93192 | I49: 1.995262315e-13 | J49: 1274775.344 | K49: 0 | M49: 0.01118158327 | O49: 1.038725505 | P49: 1.037901071 | Q49: 3.1 | S49: 0.0007943282347 | T49: 1.258925412e-11 | U49: 0.0494863741 | V49: 6.229965389e-09 | W49: 0.04948638033
A50: 3.2 | B50: 0.0006309573445 | C50: 1.584893192e-11 | D50: 7.924464706e-09 | E50: 0.01368068886 | G50: 1584893.192 | H50: 25118.86432 | I50: 3.981071706e-13 | J50: 1610013.057 | K50: 0 | M50: 0.01368069678 | O50: 1.304973946 | P50: 1.304151082 | Q50: 3.2 | S50: 0.0006309573445 | T50: 1.584893192e-11 | U50: =($D$12-D50)*$C$2/($C$2+P50) -> 0.04935631121 | V50: 7.822448164e-09 | W50: 0.04935631903
A51: 3.3 | B51: 0.0005011872336 | C51: 1.995262315e-11 | D51: 9.976309584e-09 | E51: 0.01663375308 | G51: 1995262.315 | H51: 39810.71706 | I51: 7.943282347e-13 | J51: 2035074.032 | K51: 0 | M51: 0.01663376306 | O51: 1.613257584 | P51: 1.612449445 | Q51: 3.3 | S51: 0.0005011872336 | T51: 1.995262315e-11 | U51: 0.04920655913 | V51: 9.817999309e-09 | W51: 0.04920656895
A52: 3.4 | B52: 0.0003981071706 | C52: 2.511886432e-11 | D52: 1.2559429e-08 | E52: 0.02007600089 | G52: 2511886.432 | H52: 63095.73445 | I52: 1.584893192e-12 | J52: 2574983.166 | K52: 0 | M52: 0.02007601345 | O52: 1.967790631 | P52: 1.967007551 | Q52: 3.4 | S52: 0.0003981071706 | T52: 2.511886432e-11 | U52: 0.04903545631 | V52: 1.231714974e-08 | W52: 0.04903546863
A53: 3.5 | B53: 0.000316227766 | C53: 3.16227766e-11 | D53: 1.58113833e-08 | E53: 0.02402530734 | G53: 3162277.66 | H53: 100000 | I53: 3.16227766e-12 | J53: 3262278.66 | K53: 0 | M53: 0.02402532315 | O53: 2.370909541 | P53: 2.370160031 | Q53: 3.5 | S53: 0.000316227766 | T53: 3.16227766e-11 | U53: 0.04884234251 | V53: 1.544530486e-08 | W53: 0.04884235795
A54: 3.6 | B54: 0.0002511886432 | C54: 3.981071706e-11 | D54: 1.99053506e-08 | E54: 0.0284747249 | G54: 3981071.706 | H54: 158489.3192 | I54: 6.309573445e-12 | J54: 4139562.025 | K54: 0 | M54: 0.0284747448 | O54: 2.82235562 | P54: 2.821646854 | Q54: 3.6 | S54: 0.0002511886432 | T54: 3.981071706e-11 | U54: 0.04862787324 | V54: 1.935910503e-08 | W54: 0.0486278926
A55: 3.7 | B55: 0.0001995262315 | C55: 5.011872336e-11 | D55: 2.505934912e-08 | E55: 0.03338605754 | G55: 5011872.336 | H55: 251188.6432 | I55: 1.258925412e-11 | J55: 5263061.979 | K55: 0 | M55: 0.0333860826 | O55: 3.318655642 | P55: 3.317993615 | Q55: 3.7 | S55: 0.0001995262315 | T55: 5.011872336e-11 | U55: 0.0483942566 | V55: 2.425458359e-08 | W55: 0.04839428085
A56: 3.8 | B56: 0.0001584893192 | C56: 6.309573445e-11 | D56: 3.154784732e-08 | E56: 0.03868631798 | G56: 6309573.445 | H56: 398107.1706 | I56: 2.511886432e-11 | J56: 6707681.615 | K56: 0 | M56: 0.03868634953 | O56: 3.852786028 | P56: 3.852175499 | Q56: 3.8 | S56: 0.0001584893192 | T56: 6.309573445e-11 | U56: 0.048145326 | V56: 3.037764704e-08 | W56: 0.04814535638
A57: 3.9 | B57: 0.0001258925412 | C57: 7.943282347e-11 | D57: 3.971638019e-08 | E57: 0.04426883662 | G57: 7943282.347 | H57: 630957.3445 | I57: 5.011872336e-11 | J57: 8574240.692 | K57: 0 | M57: 0.04426887634 | O57: 4.414298388 | P57: 4.413742731 | Q57: 3.9 | S57: 0.0001258925412 | T57: 7.943282347e-11 | U57: 0.04788637872 | V57: 3.803750268e-08 | W57: 0.04788641676
A58: 4 | B58: 0.0001 | C58: 1e-10 | D58: =1/(1+(10^-($A58-D$11)))*D$12 -> 4.999995e-08 | E58: 0.05 | G58: 10000000 | H58: =10^($A58-H$11)*G58 -> 1000000 | I58: 1e-10 | J58: 11000001 | K58: 0 | M58: 0.05000005 | O58: 4.99000501 | P58: 4.98950606 | Q58: 4 | S58: 0.0001 | T58: 1e-10 | U58: 0.04762375963 | V58: 4.762375963e-08 | W58: 0.04762380725
A59: 4.1 | B59: 7.943282347e-05 | C59: 1.258925412e-10 | D59: 6.294619135e-08 | E59: 0.05573116338 | G59: 12589254.12 | H59: 1584893.192 | I59: 1.995262315e-10 | J59: 14174148.31 | K59: 0 | M59: 0.05573122632 | O59: 5.565179362 | P59: 5.56473734 | Q59: 4.1 | S59: 7.943282347e-05 | T59: 1.258925412e-10 | U59: 0.04736424143 | V59: 5.962804714e-08 | W59: 0.04736430105
A60: 4.2 | B60: 6.309573445e-05 | C60: 1.584893192e-10 | D60: 7.924453403e-08 | E60: 0.06131368202 | G60: 15848931.92 | H60: 2511886.432 | I60: 3.981071706e-10 | J60: 18360819.36 | K60: 0 | M60: 0.06131376126 | O60: 6.125066568 | P60: 6.124680128 | Q60: 4.2 | S60: 6.309573445e-05 | T60: 1.584893192e-10 | U60: 0.0471143194 | V60: 7.467116408e-08 | W60: 0.04711439407
A61: 4.3 | B61: 5.011872336e-05 | C61: 1.995262315e-10 | D61: 9.97629167e-08 | E61: 0.06661394246 | G61: 19952623.15 | H61: 3981071.706 | I61: 7.943282347e-10 | J61: 23933695.86 | K61: 0 | M61: 0.06661404222 | O61: 6.65639237 | P61: 6.656058778 | Q61: 4.3 | S61: 5.011872336e-05 | T61: 1.995262315e-10 | U61: 0.0468795686 | V61: 9.353703656e-08 | W61: 0.04687966213
A62: 4.4 | B62: 3.981071706e-05 | C62: 2.511886432e-10 | D62: 1.255940061e-07 | E62: 0.0715252751 | G62: 25118864.32 | H62: 6309573.445 | I62: 1.584893192e-09 | J62: 31428438.76 | K62: 0 | M62: 0.0715254007 | O62: 7.148559023 | P62: 7.148274447 | Q62: 4.4 | S62: 3.981071706e-05 | T62: 2.511886432e-10 | U62: 0.04666419003 | V62: 1.172151458e-07 | W62: 0.04666430725
A63: 4.5 | B63: 3.16227766e-05 | C63: 3.16227766e-10 | D63: 1.58113383e-07 | E63: 0.07597469266 | G63: 31622776.6 | H63: 10000000 | I63: 3.16227766e-09 | J63: 41622777.6 | K63: 0 | M63: 0.07597485078 | O63: 7.594322832 | P63: 7.594082688 | Q63: 4.5 | S63: 3.16227766e-05 | T63: 3.16227766e-10 | U63: 0.04647081014 | V63: 1.469536048e-07 | W63: 0.04647095709
A64: 4.6 | B64: 2.511886432e-05 | C64: 3.981071706e-10 | D64: 1.990527928e-07 | E64: 0.07992399911 | G64: 39810717.06 | H64: 15848931.92 | I64: 6.309573445e-09 | J64: 55659649.98 | K64: 0 | M64: 0.07992419816 | O64: 7.98990797 | P64: 7.98970728 | Q64: 4.6 | S64: 2.511886432e-05 | T64: 3.981071706e-10 | U64: 0.04630052457 | V64: 1.843257083e-07 | W64: 0.04630070889
A65: 4.7 | B65: 1.995262315e-05 | C65: 5.011872336e-10 | D65: 2.505923609e-07 | E65: 0.08336624692 | G65: 50118723.36 | H65: 25118864.32 | I65: 1.258925412e-08 | J65: 75237588.68 | K65: 0 | M65: 0.08336649751 | O65: 8.334654539 | P65: 8.334488248 | Q65: 4.7 | S65: 1.995262315e-05 | T65: 5.011872336e-10 | U65: 0.04615312281 | V65: 2.313135594e-07 | W65: 0.04615335412
A66: 4.8 | B66: 1.584893192e-05 | C66: 6.309573445e-10 | D66: 3.154766817e-07 | E66: 0.08631931114 | G66: 63095734.45 | H66: 39810717.06 | I66: 2.511886432e-08 | J66: 102906452.5 | K66: 0 | M66: 0.08631962662 | O66: 8.630377832 | P66: 8.630241057 | Q66: 4.8 | S66: 1.584893192e-05 | T66: 6.309573445e-10 | U66: 0.04602740824 | V66: 2.904133128e-07 | W66: 0.04602769865
A67: 4.9 | B67: 1.258925412e-05 | C67: 7.943282347e-10 | D67: 3.971609626e-07 | E67: 0.08881842302 | G67: 79432823.47 | H67: 63095734.45 | I67: 5.011872336e-08 | J67: 142528558.9 | K67: 0 | M67: 0.08881882018 | O67: 8.880623172 | P67: 8.88051138 | Q67: 4.9 | S67: 1.258925412e-05 | T67: 7.943282347e-10 | U67: 0.04592153564 | V67: 3.647677234e-07 | W67: 0.04592190041
A68: 5 | B68: 1e-05 | C68: 1e-09 | D68: 4.99995e-07 | E68: 0.09090909091 | G68: 100000000 | H68: 100000000 | I68: 1e-07 | J68: 200000001 | K68: 0 | M68: 0.0909095909 | O68: 9.08995919 | P68: 9.089868301 | Q68: 5 | S68: 1e-05 | T68: 1e-09 | U68: 0.04583331228 | V68: 4.583331228e-07 | W68: 0.04583377061
A69: 5.1 | B69: 7.943282347e-06 | C69: 1.258925412e-09 | D69: 6.294547815e-07 | E69: 0.09264124439 | G69: 125892541.2 | H69: 158489319.2 | I69: 1.995262315e-07 | J69: 284381861.4 | K69: 0 | M69: 0.09264187384 | O69: 9.263393182 | P69: 9.263319612 | Q69: 5.1 | S69: 7.943282347e-06 | T69: 1.258925412e-09 | U69: 0.04576043518 | V69: 5.76089747e-07 | W69: 0.04576101127
A70: 5.2 | B70: 6.309573445e-06 | C70: 1.584893192e-09 | D70: 7.92434037e-07 | E70: 0.09406490569 | G70: 158489319.2 | H70: 251188643.2 | I70: 3.981071706e-07 | J70: 409677963.4 | K70: 0 | M70: 0.09406569812 | O70: 9.405939014 | P70: 9.405879681 | Q70: 5.2 | S70: 6.309573445e-06 | T70: 1.584893192e-09 | U70: 0.0457006586 | V70: 7.243066271e-07 | W70: 0.04570138291
A71: 5.3 | B71: 5.011872336e-06 | C71: 1.995262315e-09 | D71: 9.976112525e-07 | E71: 0.0952273279 | G71: 199526231.5 | H71: 398107170.6 | I71: 7.943282347e-07 | J71: 597633403.1 | K71: 0 | M71: 0.09522832551 | O71: 9.522331563 | P71: 9.522283858 | Q71: 5.3 | S71: 5.011872336e-06 | T71: 1.995262315e-09 | U71: 0.04565189898 | V71: 9.108751364e-07 | W71: 0.04565280986
A72: 5.4 | B72: 3.981071706e-06 | C72: 2.511886432e-09 | D72: 1.255911669e-06 | E72: 0.09617134961 | G72: 251188643.2 | H72: 630957344.5 | I72: 1.584893192e-06 | J72: 882145988.6 | K72: 0 | M72: 0.09617260552 | O72: 9.616862696 | P72: 9.616824435 | Q72: 5.4 | S72: 3.981071706e-06 | T72: 2.511886432e-09 | U72: 0.04561229022 | V72: 1.145728929e-06 | W72: 0.04561343595
A73: 5.5 | B73: 3.16227766e-06 | C73: 3.16227766e-09 | D73: 1.581088832e-06 | E73: 0.096934657 | G73: 316227766 | H73: 1000000000 | I73: 3.16227766e-06 | J73: 1316227767 | K73: 0 | M73: 0.09693623809 | O73: 9.693307897 | P73: 9.693277275 | Q73: 5.5 | S73: 3.16227766e-06 | T73: 3.16227766e-09 | U73: 0.04558020341 | V73: 1.44137259e-06 | W73: 0.04558164478
A74: 5.6 | B74: 2.511886432e-06 | C74: 3.981071706e-09 | D74: 1.990456611e-06 | E74: 0.09754966324 | G74: 398107170.6 | H74: 1584893192 | I74: 6.309573445e-06 | J74: 1983000364 | K74: 0 | M74: 0.0975516537 | O74: 9.75491458 | P74: 9.754890115 | Q74: 5.6 | S74: 2.511886432e-06 | T74: 3.981071706e-09 | U74: 0.04555424318 | V74: 1.813547086e-06 | W74: 0.04555605673
A75: 5.7 | B75: 1.995262315e-06 | C75: 5.011872336e-09 | D75: 2.50581058e-06 | E75: 0.09804376961 | G75: 501187233.6 | H75: 2511886432 | I75: 1.258925412e-05 | J75: 3013073666 | K75: 0 | M75: 0.09804627542 | O75: 9.804428517 | P75: 9.804409004 | Q75: 5.7 | S75: 1.995262315e-06 | T75: 5.011872336e-09 | U75: 0.04553323008 | V75: 2.282067362e-06 | W75: 0.04553551215
A76: 5.8 | B76: 1.584893192e-06 | C76: 6.309573445e-09 | D76: 3.154587681e-06 | E76: 0.09843983378 | G76: 630957344.5 | H76: 3981071706 | I76: 2.511886432e-05 | J76: 4612029051 | K76: 0 | M76: 0.09844298836 | O76: 9.844140978 | P76: 9.844125438 | Q76: 5.8 | S76: 1.584893192e-06 | T76: 6.309573445e-09 | U76: 0.04551617596 | V76: =D76*$C$2/($C$2+P76) -> 2.871876551e-06 | W76: =SUM(U76:V76) -> 0.04551904783
A77: 5.9 | B77: 1.258925412e-06 | C77: 7.943282347e-09 | D77: 3.97132572e-06 | E77: 0.09875672647 | G77: 794328234.7 | H77: 6309573445 | I77: 5.011872336e-05 | J77: 7103901681 | K77: 0 | M77: 0.0987606978 | O77: 9.875944682 | P77: 9.875932327 | Q77: 5.9 | S77: 1.258925412e-06 | T77: 7.943282347e-09 | U77: 0.0455022566 | V77: 3.614372716e-06 | W77: 0.04550587098
A78: 6 | B78: 1e-06 | C78: 1e-08 | D78: =1/(1+(10^-($A78-D$11)))*D$12 -> 4.99950005e-06 | E78: 0.09900990099 | G78: 1000000000 | H78: =10^($A78-H$11)*G78 -> 1e+10 | I78: 0.0001 | J78: 1.1e+10 | K78: 0 | M78: 0.09901490049 | O78: 9.901391049 | P78: 9.901381247 | Q78: 6 | S78: 1e-06 | T78: 1e-08 | U78: 0.0454907845 | V78: 4.54907845e-06 | W78: 0.04549533357
A79: 6.1 | B79: 7.943282347e-07 | C79: 1.258925412e-08 | D79: 6.293834712e-06 | E79: 0.09921193161 | G79: 1258925412 | H79: 1.584893192e+10 | I79: 0.0001995262315 | J79: 1.710785734e+10 | K79: 0 | M79: 0.09921822545 | O79: 9.921744371 | P79: 9.921736615 | Q79: 6.1 | S79: 7.943282347e-07 | T79: 1.258925412e-08 | U79: 0.04548118298 | V79: 5.725741701e-06 | W79: 0.04548690872
A80: 6.2 | B80: 6.309573445e-07 | C80: 1.584893192e-08 | D80: 7.923210218e-06 | E80: 0.09937299877 | G80: 1584893192 | H80: 2.511886432e+10 | I80: 0.0003981071706 | J80: 2.670375751e+10 | K80: 0 | M80: 0.09938092198 | O80: 9.938030687 | P80: 9.938024574 | Q80: 6.2 | S80: 6.309573445e-07 | T80: 1.584893192e-08 | U80: 0.04547296259 | V80: 7.206978885e-06 | W80: 0.04548016957
A81: 6.3 | B81: 5.011872336e-07 | C81: 1.995262315e-08 | D81: 9.974321436e-06 | E81: 0.09950131213 | G81: 1995262315 | H81: 3.981071706e+10 | I81: 0.0007943282347 | J81: 4.180597937e+10 | K81: 0 | M81: 0.09951128645 | O81: 9.951080521 | P81: 9.951075733 | Q81: 6.3 | S81: 5.011872336e-07 | T81: 1.995262315e-08 | U81: 0.04546569949 | V81: 9.071599682e-06 | W81: 0.04547477109
A82: 6.4 | B82: 3.981071706e-07 | C82: 2.511886432e-08 | D82: 1.255627816e-05 | E82: 0.09960347144 | G82: 2511886432 | H82: 6.309573445e+10 | I82: 0.001584893192 | J82: 6.560762088e+10 | K82: 0 | M82: 0.09961602772 | O82: 9.961565473 | P82: 9.961561757 | Q82: 6.4 | S82: 3.981071706e-07 | T82: 2.511886432e-08 | U82: =($D$12-D82)*$C$2/($C$2+P82) -> 0.04545901579 | V82: 1.14187885e-05 | W82: 0.04547043458
A83: 6.5 | B83: =10^-A83 -> 3.16227766e-07 | C83: =10^-(14-A83) -> 3.16227766e-08 | D83: 1.580638988e-05 | E83: 0.09968476908 | G83: =10^($A83-G$11) -> 3162277660 | H83: 1e+11 | I83: 0.00316227766 | J83: =1+G83+H83+I83 -> 1.031622777e+11 | K83: =$G$12/J83*(G83+2*H83+3*I83) -> 0 | M83: =SUM(D83:F83)+K83 -> 0.09970057547 | O83: =(M83+C83-B83)*$C$2/$C$3 -> 9.970029087 | P83: =(M83+C83-B83)*$C$2/($C$3-C83+B83) -> 9.970026249 | Q83: =A83 -> 6.5 | S83: =B83 -> 3.16227766e-07 | T83: =C83 -> 3.16227766e-08 | U83: 0.04545256132 | V83: 1.437336192e-05 | W83: 0.04546693468
A84: =A83+A$15 -> 6.6 | B84: 2.511886432e-07 | C84: 3.981071706e-08 | D84: 1.989743722e-05 | E84: 0.09974944073 | G84: 3981071706 | H84: 1.584893192e+11 | I84: 0.006309573445 | J84: 1.62470391e+11 | K84: 0 | M84: 0.09976933817 | O84: 9.976912679 | P84: 9.97691057 | Q84: 6.6 | S84: 2.511886432e-07 | T84: 3.981071706e-08 | U84: 0.04544599617 | V84: 1.809237695e-05 | W84: 0.04546408854
A85: 6.7 | B85: 1.995262315e-07 | C85: 5.011872336e-08 | D85: 2.504680854e-05 | E85: 0.09980087108 | G85: 5011872336 | H85: 2.511886432e+11 | I85: 0.01258925412 | J85: 2.562005155e+11 | K85: 0 | M85: 0.09982591789 | O85: 9.982576848 | P85: 9.982575357 | Q85: 6.7 | S85: 1.995262315e-07 | T85: 5.011872336e-08 | U85: 0.04543897343 | V85: 2.277343339e-05 | W85: 0.04546174686
A86: 6.8 | B86: 1.584893192e-07 | C86: 6.309573445e-08 | D86: 3.152797442e-05 | E86: 0.09984176147 | G86: 6309573445 | H86: 3.981071706e+11 | I86: 0.02511886432 | J86: 4.04416744e+11 | K86: 0 | M86: 0.09987328945 | O86: 9.987319405 | P86: 9.987318453 | Q86: 6.8 | S86: 1.584893192e-07 | T86: 6.309573445e-08 | U86: 0.04543112127 | V86: 2.866509963e-05 | W86: 0.04545978637
A87: 6.9 | B87: 1.258925412e-07 | C87: 7.943282347e-08 | D87: 3.968488891e-05 | E87: 0.09987426575 | G87: 7943282347 | H87: 6.309573445e+11 | I87: 0.05011872336 | J87: 6.389006268e+11 | K87: 0 | M87: 0.09991395064 | O87: 9.991390418 | P87: 9.991389954 | Q87: 6.9 | S87: 1.258925412e-07 | T87: 7.943282347e-08 | U87: 0.04542202361 | V87: 3.607999583e-05 | W87: 0.0454581036
A88: 7 | B88: 1e-07 | C88: 1e-07 | D88: 4.995004995e-05 | E88: 0.0999000999 | G88: 1e+10 | H88: 1e+12 | I88: 0.1 | J88: 1.01e+12 | K88: 0 | M88: 0.09995004995 | O88: 9.995004995 | P88: 9.995004995 | Q88: 7 | S88: 1e-07 | T88: 1e-07 | U88: 0.0454111984 | V88: 4.54111984e-05 | W88: 0.0454566096
A89: 7.1 | B89: 7.943282347e-08 | C89: 1.258925412e-07 | D89: 6.286712557e-05 | E89: 0.09992063022 | G89: 1.258925412e+10 | H89: 1.584893192e+12 | I89: 0.1995262315 | J89: 1.597482447e+12 | K89: 0 | M89: 0.09998349735 | O89: 9.998354381 | P89: 9.998354845 | Q89: 7.1 | S89: 7.943282347e-08 | T89: 1.258925412e-07 | U89: 0.04539807249 | V89: 5.715278711e-05 | W89: 0.04545522528
A90: 7.2 | B90: 6.309573445e-08 | C90: 1.584893192e-07 | D90: 7.911926404e-05 | E90: 0.09993694405 | G90: 1.584893192e+10 | H90: 2.511886432e+12 | I90: 0.3981071706 | J90: 2.527735363e+12 | K90: 0 | M90: 0.1000160633 | O90: 10.00161587 | P90: 10.00161682 | Q90: 7.2 | S90: 6.309573445e-08 | T90: 1.584893192e-07 | U90: 0.04538195181 | V90: 7.192554648e-05 | W90: 0.04545387735
A91: 7.3 | B91: 5.011872336e-08 | C91: 1.995262315e-07 | D91: 9.956445854e-05 | E91: 0.09994990638 | G91: 1.995262315e+10 | H91: 3.981071706e+12 | I91: 0.7943282347 | J91: 4.001024329e+12 | K91: 0 | M91: 0.1000494708 | O91: 10.00496202 | P91: 10.00496352 | Q91: 7.3 | S91: 5.011872336e-08 | T91: 1.995262315e-07 | U91: 0.04536198545 | V91: 9.050906009e-05 | W91: 0.04545249451
A92: 7.4 | B92: 3.981071706e-08 | C92: 2.511886432e-07 | D92: 0.0001252796334 | E92: 0.09996020513 | G92: 2.511886432e+10 | H92: 6.309573445e+12 | I92: 1.584893192 | J92: 6.334692309e+12 | K92: 0 | M92: 0.1000854848 | O92: 10.00856961 | P92: 10.00857173 | Q92: 7.4 | S92: 3.981071706e-08 | T92: 2.511886432e-07 | U92: 0.04533712199 | V92: 0.0001138817016 | W92: 0.04545100369
A93: 7.5 | B93: 3.16227766e-08 | C93: 3.16227766e-07 | D93: 0.0001576154592 | E93: 0.09996838722 | G93: 3.16227766e+10 | H93: 1e+13 | I93: 3.16227766 | J93: 1.003162278e+13 | K93: 0 | M93: 0.1001260027 | O93: 10.01262873 | P93: 10.01263158 | Q93: 7.5 | S93: 3.16227766e-08 | T93: 3.16227766e-07 | U93: 0.04530605606 | V93: 0.000143270329 | W93: 0.04544932639
A94: 7.6 | B94: 2.511886432e-08 | C94: 3.981071706e-07 | D94: 0.000198264281 | E94: 0.09997488744 | G94: 3.981071706e+10 | H94: 1.584893192e+13 | I94: 6.309573445 | J94: 1.588874264e+13 | K94: 0 | M94: 0.1001731517 | O94: 10.01735247 | P94: 10.01735621 | Q94: 7.6 | S94: 2.511886432e-08 | T94: 3.981071706e-07 | U94: 0.04526716278 | V94: 0.0001802118209 | W94: 0.0454473746
A95: 7.7 | B95: 1.995262315e-08 | C95: 5.011872336e-07 | D95: 0.0002493439368 | E95: 0.09998005136 | G95: 5.011872336e+10 | H95: 2.511886432e+13 | I95: 12.58925412 | J95: 2.516898304e+13 | K95: 0 | M95: 0.1002293953 | O95: 10.02298765 | P95: 10.02299248 | Q95: 7.7 | S95: 1.995262315e-08 | T95: 5.011872336e-07 | U95: 0.04521841748 | V95: 0.0002266289357 | W95: 0.04544504642
A96: 7.8 | B96: 1.584893192e-08 | C96: 6.309573445e-07 | D96: 0.0003135006171 | E96: 0.09998415358 | G96: 6.309573445e+10 | H96: 3.981071706e+13 | I96: 25.11886432 | J96: 3.987381279e+13 | K96: 0 | M96: 0.1002976542 | O96: 10.02982693 | P96: 10.0298331 | Q96: 7.8 | S96: 1.584893192e-08 | T96: 6.309573445e-07 | U96: 0.04515729778 | V96: 0.0002849232869 | W96: 0.04544222107
A97: 7.9 | B97: 1.258925412e-08 | C97: 7.943282347e-07 | D97: 0.0003940341925 | E97: 0.09998741233 | G97: 7.943282347e+10 | H97: 63095734448016 | I97: 50.11872336 | J97: 6.317516727e+13 | K97: 0 | M97: 0.1003814465 | O97: 10.03822283 | P97: 10.03823067 | Q97: 7.9 | S97: 1.258925412e-08 | T97: 7.943282347e-07 | U97: 0.0450806647 | V97: 0.0003580884481 | W97: 0.04543875314
A98: 8 | B98: 1e-08 | C98: 1e-06 | D98: =1/(1+(10^-($A98-D$11)))*D$12 -> 0.000495049505 | E98: 0.099990001 | G98: 1e+11 | H98: =10^($A98-H$11)*G98 -> 1e+14 | I98: 100 | J98: 1.001e+14 | K98: 0 | M98: 0.1004850505 | O98: 10.04860405 | P98: 10.048614 | Q98: 8 | S98: 1e-08 | T98: 1e-06 | U98: 0.0449846197 | V98: 0.000449846197 | W98: 0.0454344659
A99: 8.1 | B99: 7.943282347e-09 | C99: 1.258925412e-06 | D99: 0.0006216367627 | E99: 0.09999205735 | G99: 1.258925412e+11 | H99: 1.584893192e+14 | I99: 199.5262315 | J99: 1.586152118e+14 | K99: 0 | M99: 0.1006136941 | O99: 10.06149451 | P99: 10.0615071 | Q99: 8.1 | S99: 7.943282347e-09 | T99: 1.258925412e-06 | U99: 0.04486433499 | V99: 0.000564808514 | W99: 0.0454291435
A100: 8.2 | B100: 6.309573445e-09 | C100: 1.584893192e-06 | D100: 0.0007800831121 | E100: 0.09999369082 | G100: 1.584893192e+11 | H100: 2.511886432e+14 | I100: 398.1071706 | J100: 2.513471325e+14 | K100: 0 | M100: 0.1007737739 | O100: 10.07753525 | P100: 10.07755116 | Q100: 8.2 | S100: 6.309573445e-09 | T100: 1.584893192e-06 | U100: 0.04471385525 | V100: 0.0007086668479 | W100: 0.0454225221
A101: 8.3 | B101: 5.011872336e-09 | C101: 1.995262315e-06 | D101: 0.0009781151936 | E101: 0.09999498838 | G101: 1.995262315e+11 | H101: 3.981071706e+14 | I101: 794.3282347 | J101: 3.983066968e+14 | K101: 0 | M101: 0.1009731036 | O101: 10.09750938 | P101: 10.09752948 | Q101: 8.3 | S101: 5.011872336e-09 | T101: 1.995262315e-06 | U101: 0.04452587178 | V101: 0.00088840794 | W101: 0.04541427972
A102: 8.4 | B102: 3.981071706e-09 | C102: 2.511886432e-06 | D102: 0.001225168378 | E102: 0.09999601909 | G102: 2.511886432e+11 | H102: 6.309573445e+14 | I102: 1584.893192 | J102: 6.312085331e+14 | K102: 0 | M102: 0.1012211875 | O102: 10.12236954 | P102: 10.12239492 | Q102: 8.4 | S102: 3.981071706e-09 | T102: 2.511886432e-06 | U102: 0.04429147373 | V102: 0.001112551519 | W102: 0.04540402525
A103: 8.5 | B103: 3.16227766e-09 | C103: 3.16227766e-06 | D103: 0.001532671502 | E103: 0.09999683782 | G103: 3.16227766e+11 | H103: 1e+15 | I103: 3162.27766 | J103: 1.000316228e+15 | K103: 0 | M103: 0.1015295093 | O103: 10.15326684 | P103: 10.15329892 | Q103: 8.5 | S103: 3.16227766e-09 | T103: 3.16227766e-06 | U103: 0.04399988831 | V103: 0.001391398639 | W103: 0.04539128695
A104: 8.6 | B104: 2.511886432e-09 | C104: 3.981071706e-06 | D104: 0.001914325194 | E104: 0.09999748818 | G104: 3.981071706e+11 | H104: 1584893192461010 | I104: 6309.573445 | J104: 1585291299637874 | K104: 0 | M104: 0.1019118134 | O104: 10.19157919 | P104: 10.19161974 | Q104: 8.6 | S104: 2.511886432e-09 | T104: 3.981071706e-06 | U104: 0.04363823213 | V104: 0.001737269312 | W104: 0.04537550144
A105: 8.7 | B105: 1.995262315e-09 | C105: 5.011872336e-06 | D105: 0.002386336052 | E105: 0.09999800478 | G105: 5.011872336e+11 | H105: 2.511886432e+15 | I105: 12589.25412 | J105: 2.512387619e+15 | K105: 0 | M105: 0.1023843408 | O105: 10.23893507 | P105: 10.23898637 | Q105: 8.7 | S105: 1.995262315e-09 | T105: 5.011872336e-06 | U105: 0.04319131146 | V105: 0.002164693391 | W105: 0.04535600485
A106: 8.8 | B106: 1.584893192e-09 | C106: 6.309573445e-06 | D106: 0.002967547155 | E106: 0.09999841513 | G106: 6.309573445e+11 | H106: 3981071705534712 | I106: 25118.86432 | J106: 3981702662904312 | K106: 0 | M106: 0.1029659623 | O106: 10.29722703 | P106: 10.29729198 | Q106: 8.8 | S106: 1.584893192e-09 | T106: 6.309573445e-06 | U106: 0.04264153 | V106: 0.002690498653 | W106: 0.04533202865
A107: 8.9 | B107: 1.258925412e-09 | C107: 7.943282347e-06 | D107: 0.003679377806 | E107: 0.09999874109 | G107: 7.943282347e+11 | H107: 6309573444801507 | I107: 50118.72336 | J107: 6310367773086351 | K107: 0 | M107: 0.1036781189 | O107: 10.36860609 | P107: 10.36868844 | Q107: 8.9 | S107: 1.258925412e-09 | T107: 7.943282347e-06 | U107: 0.04196898853 | V107: 0.003333715257 | W107: 0.04530270379
A108: 9 | B108: 1e-09 | C108: 1e-05 | D108: 0.004545454545 | E108: 0.09999900001 | G108: 1e+12 | H108: 9999999999999306 | I108: 100000 | J108: 1.0001e+16 | K108: 0 | M108: 0.1045444546 | O108: 10.45544536 | P108: 10.4555499 | Q108: 9 | S108: 1e-09 | T108: 1e-05 | U108: 0.04115188915 | V108: 0.004115188915 | W108: 0.04526707806
A109: 9.1 | B109: 7.943282347e-10 | C109: 1.258925412e-05 | D109: 0.005590788489 | E109: 0.09999920568 | G109: 1.258925412e+12 | H109: 1.584893192e+16 | I109: 199526.2315 | J109: 1.585019085e+16 | K109: 0 | M109: 0.1055899942 | O109: 10.56025826 | P109: 10.5603912 | Q109: 9.1 | S109: 7.943282347e-10 | T109: 1.258925412e-05 | U109: 0.04016737914 | V109: 0.005056773432 | W109: 0.04522415257
A110: 9.2 | B110: 6.309573445e-10 | C110: 1.584893192e-05 | D110: 0.00684034443 | E110: 0.09999936905 | G110: 1.584893192e+12 | H110: 2.511886432e+16 | I110: 398107.1706 | J110: 2.512044921e+16 | K110: 0 | M110: 0.1068397135 | O110: 10.68555618 | P110: 10.68572553 | Q110: 9.2 | S110: 6.309573445e-10 | T110: 1.584893192e-05 | U110: 0.03899297345 | V110: 0.006179969818 | W110: 0.04517294327
A111: 9.3 | B111: 5.011872336e-10 | C111: 1.995262315e-05 | D111: 0.008316876541 | E111: 0.09999949882 | G111: 1.995262315e+12 | H111: 3.981071706e+16 | I111: 794328.2347 | J111: 3.981271232e+16 | K111: 0 | M111: 0.1083163754 | O111: 10.83363275 | P111: 10.83384891 | Q111: 9.3 | S111: 5.011872336e-10 | T111: 1.995262315e-05 | U111: 0.03760865825 | V111: 0.007503913852 | W111: 0.0451125721
A112: 9.4 | B112: 3.981071706e-10 | C112: 2.511886432e-05 | D112: 0.01003800045 | E112: 0.09999960189 | G112: 2.511886432e+12 | H112: 6.309573445e+16 | I112: 1584893.192 | J112: 6.309824634e+16 | K112: 0 | M112: 0.1100376023 | O112: 11.00627208 | P112: 11.00654855 | Q112: 9.4 | S112: 3.981071706e-10 | T112: 2.511886432e-05 | U112: 0.03599967757 | V112: 0.009042710162 | W112: 0.04504238773
A113: 9.5 | B113: 3.16227766e-10 | C113: 3.16227766e-05 | D113: 0.01201265367 | E113: 0.09999968377 | G113: 3.16227766e+12 | H113: 1e+17 | I113: 3162277.66 | J113: 1.000031623e+17 | K113: 0 | M113: 0.1120123374 | O113: 11.20439599 | P113: 11.20475031 | Q113: 9.5 | S113: 3.16227766e-10 | T113: 3.16227766e-05 | U113: 0.03415982341 | V113: 0.01080228465 | W113: 0.04496210806
A114: 9.6 | B114: 2.511886432e-10 | C114: 3.981071706e-05 | D114: 0.01423736245 | E114: 0.09999974881 | G114: 3.981071706e+12 | H114: 1.584893192e+17 | I114: 6309573.445 | J114: 1.584933003e+17 | K114: 0 | M114: 0.1142371113 | O114: 11.42769217 | P114: 11.42814713 | Q114: 9.6 | S114: 2.511886432e-10 | T114: 3.981071706e-05 | U114: =($D$12-D114)*$C$2/($C$2+P114) -> 0.03209479694 | V114: 0.0127771688 | W114: 0.04487196573
A115: 9.7 | B115: 1.995262315e-10 | C115: 5.011872336e-05 | D115: 0.01669302877 | E115: 0.09999980047 | G115: 5.011872336e+12 | H115: 2.511886432e+17 | I115: 12589254.12 | J115: 2.51193655e+17 | K115: 0 | M115: 0.1166928292 | O115: 11.67429478 | P115: 11.6748799 | Q115: 9.7 | S115: 1.995262315e-10 | T115: 5.011872336e-05 | U115: 0.02982494475 | V115: 0.01494788155 | W115: 0.0447728263
A116: 9.8 | B116: 1.584893192e-10 | C116: 6.309573445e-05 | D116: 0.01934315899 | E116: 0.09999984151 | G116: 6.309573445e+12 | H116: 3.981071706e+17 | I116: 25118864.32 | J116: 3.981134802e+17 | K116: 0 | M116: 0.1193430005 | O116: 11.94060961 | P116: 11.94136306 | Q116: 9.8 | S116: 1.584893192e-10 | T116: 6.309573445e-05 | U116: 0.02738651752 | V116: 0.01727972437 | W116: 0.04466624189
A117: 9.9 | B117: 1.258925412e-10 | C117: 7.943282347e-05 | D117: 0.02213441831 | E117: 0.09999987411 | G117: 7.943282347e+12 | H117: 6.309573445e+17 | I117: 50118723.36 | J117: 6.309652878e+17 | K117: 0 | M117: 0.1221342924 | O117: 12.22137251 | P117: 12.22234337 | Q117: 9.9 | S117: 1.258925412e-10 | T117: 7.943282347e-05 | U117: 0.02483068955 | V117: 0.0197237178 | W117: 0.04455440735
A118: 10 | B118: 1e-10 | C118: 0.0001 | D118: =1/(1+(10^-($A118-D$11)))*D$12 -> 0.025 | E118: 0.0999999 | G118: 1e+13 | H118: =10^($A118-H$11)*G118 -> 1e+18 | I118: 100000000 | J118: 1.00001e+18 | K118: 0 | M118: 0.1249999 | O118: 12.50998999 | P118: 12.51124111 | Q118: 10 | S118: 1e-10 | T118: 0.0001 | U118: 0.02222000198 | V118: 0.02222000198 | W118: 0.04444000395
A119: 10.1 | B119: 7.943282347e-11 | C119: 0.0001258925412 | D119: 0.02786558169 | E119: 0.09999992057 | G119: 1.258925412e+13 | H119: 1.584893192e+18 | I119: 199526231.5 | J119: 1.584905782e+18 | K119: 0 | M119: 0.1278655023 | O119: 12.79913947 | P119: 12.80075099 | Q119: 10.1 | S119: 7.943282347e-11 | T119: 0.0001258925412 | U119: 0.01962258063 | V119: 0.0247033654 | W119: 0.04432594603
A120: 10.2 | B120: 6.309573445e-11 | C120: 0.0001584893192 | D120: 0.03065684101 | E120: 0.0999999369 | G120: 1.584893192e+13 | H120: 2.511886432e+18 | I120: 398107170.6 | J120: 2.511902281e+18 | K120: 0 | M120: 0.1306567779 | O120: 13.08152672 | P120: 13.08360033 | Q120: 10.2 | S120: 6.309573445e-11 | T120: 0.0001584893192 | U120: 0.01710518496 | V120: 0.02710989119 | W120: 0.04421507615
A121: 10.3 | B121: 5.011872336e-11 | C121: 0.0001995262315 | D121: 0.03330697123 | E121: 0.09999994988 | G121: 1.995262315e+13 | H121: 3.981071706e+18 | I121: 794328234.7 | J121: 3.981091659e+18 | K121: 0 | M121: 0.1333069211 | O121: 13.35064473 | P121: 13.35330906 | Q121: 10.3 | S121: 5.011872336e-11 | T121: 0.0001995262315 | U121: 0.01472654738 | V121: 0.02938332503 | W121: 0.04410987241
A122: 10.4 | B122: 3.981071706e-11 | C122: 0.0002511886432 | D122: 0.03576263755 | E122: 0.09999996019 | G122: 2.511886432e+13 | H122: 6.309573445e+18 | I122: 1584893192 | J122: 6.309598565e+18 | K122: 0 | M122: 0.1357625977 | O122: 13.60137863 | P122: 13.604796 | Q122: 10.4 | S122: 3.981071706e-11 | T122: 0.0002511886432 | U122: 0.01253236038 | V122: 0.031479866 | W122: 0.04401222638
A123: 10.5 | B123: 3.16227766e-11 | C123: 0.000316227766 | D123: 0.03798734633 | E123: 0.09999996838 | G123: 3.16227766e+13 | H123: 1e+19 | I123: 3162277660 | J123: 1.000003163e+19 | K123: 0 | M123: 0.1379873147 | O123: 13.83035424 | P123: 13.83472917 | Q123: 10.5 | S123: 3.16227766e-11 | T123: 0.000316227766 | U123: 0.01055271423 | V123: 0.03337061247 | W123: 0.04392332671
A124: 10.6 | B124: 2.511886432e-11 | C124: 0.0003981071706 | D124: 0.03996199955 | E124: 0.09999997488 | G124: 3.981071706e+13 | H124: 1.584893192e+19 | I124: 6309573445 | J124: 1.584897174e+19 | K124: 0 | M124: 0.1399619744 | O124: 14.03600816 | P124: 14.04159822 | Q124: 10.6 | S124: 2.511886432e-11 | T124: 0.0003981071706 | U124: 0.00880205171 | V124: 0.03504159901 | W124: 0.04384365072
A125: 10.7 | B125: 1.995262315e-11 | C125: 0.0005011872336 | D125: 0.04168312346 | E125: 0.09999998005 | G125: 5.011872336e+13 | H125: 2.511886432e+19 | I125: 1.258925412e+10 | J125: 2.511891445e+19 | K125: 0 | M125: 0.1416831035 | O125: 14.21842907 | P125: 14.22555874 | Q125: 10.7 | S125: 1.995262315e-11 | T125: 0.0005011872336 | U125: 0.00728109946 | V125: 0.03649194096 | W125: 0.04377304042
A126: 10.8 | B126: 1.584893192e-11 | C126: 0.0006309573445 | D126: 0.04315965557 | E126: 0.09999998415 | G126: 6.309573445e+13 | H126: 3.981071706e+19 | I126: 2.511886432e+10 | J126: 3.981078018e+19 | K126: 0 | M126: 0.1431596397 | O126: 14.3790597 | P126: 14.38813801 | Q126: 10.8 | S126: 1.584893192e-11 | T126: 0.0006309573445 | U126: 0.005979942107 | V126: 0.03773088392 | W126: 0.04371082603
A127: 10.9 | B127: 1.258925412e-11 | C127: 0.0007943282347 | D127: 0.04440921151 | E127: 0.09999998741 | G127: 7.943282347e+13 | H127: 6.309573445e+19 | I127: 5.011872336e+10 | J127: 6.309581393e+19 | K127: 0 | M127: 0.1444091989 | O127: 14.52035271 | P127: 14.53189581 | Q127: 10.9 | S127: 1.258925412e-11 | T127: 0.0007943282347 | U127: 0.004881424907 | V127: 0.0387745363 | W127: 0.0436559612
A128: 11 | B128: 1e-11 | C128: 0.001 | D128: 0.04545454545 | E128: 0.09999999 | G128: 1e+14 | H128: 1e+20 | I128: 1e+11 | J128: 1.000001001e+20 | K128: 0 | M128: 0.1454545355 | O128: 14.64545354 | P128: 14.66011366 | Q128: 11 | S128: 1e-11 | T128: 0.001 | U128: 0.003964285749 | V128: 0.03964285749 | W128: 0.04360714324
A129: 11.1 | B129: 7.943282347e-12 | C129: 0.001258925412 | D129: 0.04632062219 | E129: 0.09999999206 | G129: 1.258925412e+14 | H129: 1.584893192e+20 | I129: 1.995262315e+11 | J129: 1.584894453e+20 | K129: 0 | M129: 0.1463206143 | O129: 14.75795397 | P129: 14.77655655 | Q129: 11.1 | S129: 7.943282347e-12 | T129: 0.001258925412 | U129: 0.003205687569 | V129: 0.04035721543 | W129: 0.043562903
A130: 11.2 | B130: 6.309573445e-12 | C130: 0.001584893192 | D130: 0.04703245284 | E130: 0.09999999369 | G130: 1.584893192e+14 | H130: 2.511886432e+20 | I130: 3.981071706e+11 | J130: 2.51188802e+20 | K130: 0 | M130: 0.1470324465 | O130: 14.86173397 | P130: 14.88532562 | Q130: 11.2 | S130: 6.309573445e-12 | T130: 0.001584893192 | U130: 0.002583051525 | V130: 0.04093860777 | W130: 0.0435216593
A131: 11.3 | B131: 5.011872336e-12 | C131: 0.001995262315 | D131: 0.04761366395 | E131: 0.09999999499 | G131: 1.995262315e+14 | H131: 3.981071706e+20 | I131: 7.943282347e+11 | J131: 3.981073709e+20 | K131: 0 | M131: 0.1476136589 | O131: 14.96089212 | P131: 14.99080271 | Q131: 11.3 | S131: 5.011872336e-12 | T131: 0.001995262315 | U131: 0.002075240798 | V131: 0.04140649759 | W131: 0.04348173838
A132: 11.4 | B132: 3.981071706e-12 | C132: 0.002511886432 | D132: 0.04808567481 | E132: 0.09999999602 | G132: 2.511886432e+14 | H132: 6.309573445e+20 | I132: 1.584893192e+12 | J132: 6.309575973e+20 | K132: 0 | M132: 0.1480856708 | O132: 15.05975573 | P132: 15.09767938 | Q132: 11.4 | S132: 3.981071706e-12 | T132: 0.002511886432 | U132: 0.00166321789 | V132: 0.0417781445 | W132: 0.04344136239
A133: 11.5 | B133: 3.16227766e-12 | C133: 0.00316227766 | D133: 0.0484673285 | E133: 0.09999999684 | G133: 3.16227766e+14 | H133: 1e+21 | I133: 3.16227766e+12 | J133: 1.000000319e+21 | K133: 0 | M133: 0.1484673253 | O133: 15.1629603 | P133: 15.2110619 | Q133: 11.5 | S133: 3.16227766e-12 | T133: 0.00316227766 | U133: 0.00133031627 | V133: 0.04206829422 | W133: 0.04339861049
A134: 11.6 | B134: 2.511886432e-12 | C134: 0.003981071706 | D134: 0.04877483162 | E134: 0.09999999749 | G134: 3.981071706e+14 | H134: 1.584893192e+21 | I134: 6.309573445e+12 | J134: 1.584893597e+21 | K134: 0 | M134: 0.1487748291 | O134: 15.27559008 | P134: 15.33664637 | Q134: 11.6 | S134: 2.511886432e-12 | T134: 0.003981071706 | U134: 0.001062254206 | V134: 0.04228910165 | W134: 0.04335135586
A135: 11.7 | B135: 1.995262315e-12 | C135: 0.005011872336 | D135: 0.04902188481 | E135: 0.099999998 | G135: 5.011872336e+14 | H135: 2.511886432e+21 | I135: 1.258925412e+13 | J135: 2.511886945e+21 | K135: 0 | M135: 0.1490218828 | O135: 15.40337551 | P135: 15.48096413 | Q135: 11.7 | S135: 1.995262315e-12 | T135: 0.005011872336 | U135: 0.0008469925767 | V135: 0.04245018664 | W135: 0.04329717922
A136: 11.8 | B136: 1.584893192e-12 | C136: 0.006309573445 | D136: 0.04921991689 | E136: 0.09999999842 | G136: 6.309573445e+14 | H136: 3.981071706e+21 | I136: 2.511886432e+13 | J136: 3.981072362e+21 | K136: 0 | M136: 0.1492199153 | O136: 15.55294887 | P136: 15.65170445 | Q136: 11.8 | S136: 1.584893192e-12 | T136: 0.006309573445 | U136: 0.0006745106921 | V136: 0.04255874751 | W136: 0.0432332582
A137: 11.9 | B137: 1.258925412e-12 | C137: 0.007943282347 | D137: 0.04937836324 | E137: 0.09999999874 | G137: 7.943282347e+14 | H137: 6.309573445e+21 | I137: 5.011872336e+13 | J137: 6.309574289e+21 | K137: 0 | M137: 0.149378362 | O137: 15.73216443 | P137: 15.85813004 | Q137: 11.9 | S137: 1.258925412e-12 | T137: 0.007943282347 | U137: 0.0005365499707 | V137: 0.0426196791 | W137: 0.04315622907
A138: 12 | B138: 1e-12 | C138: 0.01 | D138: =1/(1+(10^-($A138-D$11)))*D$12 -> 0.0495049505 | E138: 0.099999999 | G138: 999999999999942 | H138: =10^($A138-H$11)*G138 -> 1e+22 | I138: 99999999999982 | J138: 1.00000011e+22 | K138: 0 | M138: 0.1495049495 | O138: 15.95049495 | P138: 16.11161106 | Q138: 12 | S138: 1e-12 | T138: 0.01 | U138: 0.0004263565895 | V138: 0.04263565895 | W138: 0.04306201554
A139: 12.1 | B139: 7.943282347e-13 | C139: 0.01258925412 | D139: 0.04960596581 | E139: 0.09999999921 | G139: 1258925411794093 | H139: 1.584893192e+22 | I139: 1.995262315e+14 | J139: 1.584893338e+22 | K139: 0 | M139: 0.149605965 | O139: 16.21952191 | P139: 16.42631699 | Q139: 12.1 | S139: 7.943282347e-13 | T139: 0.01258925412 | U139: 0.0003384408291 | V139: 0.04260717601 | W139: 0.04294561684
A140: 12.2 | B140: 6.309573445e-13 | C140: 0.01584893192 | D140: 0.04968649938 | E140: 0.09999999937 | G140: 1.584893192e+15 | H140: 2.511886432e+22 | I140: 3.981071706e+14 | J140: 2.51188663e+22 | K140: 0 | M140: 0.1496864988 | O140: 16.55354307 | P140: 16.82012407 | Q140: 12.2 | S140: 6.309573445e-13 | T140: 0.01584893192 | U140: 0.0002683618251 | V140: =D140*$C$2/($C$2+P140) -> 0.04253248298 | W140: =SUM(U140:V140) -> 0.0428008448
A141: 12.3 | B141: 5.011872336e-13 | C141: 0.01995262315 | D141: 0.04975065606 | E141: 0.0999999995 | G141: 1995262314968758 | H141: 3.981071706e+22 | I141: 7.943282347e+14 | J141: 3.981071984e+22 | K141: 0 | M141: 0.1497506556 | O141: 16.97032787 | P141: 17.31582398 | Q141: 12.3 | S141: 5.011872336e-13 | T141: 0.01995262315 | U141: 0.000212540754 | V141: 0.04240745568 | W141: 0.04261999644
A142: 12.4 | B142: 3.981071706e-13 | C142: 0.02511886432 | D142: 0.04980173572 | E142: 0.0999999996 | G142: 2511886431509425 | H142: 6.309573445e+22 | I142: 1.584893192e+15 | J142: 6.309573854e+22 | K142: 0 | M142: 0.1498017353 | O142: 17.49205996 | P142: 17.94276176 | Q142: 12.4 | S142: 3.981071706e-13 | T142: 0.02511886432 | U142: 0.0001681021183 | V142: 0.04222534302 | W142: 0.04239344514
A143: 12.5 | B143: 3.16227766e-13 | C143: 0.0316227766 | D143: 0.04984238454 | E143: 0.09999999968 | G143: 3.16227766e+15 | H143: 1e+23 | I143: 3162277660167765 | J143: 1.000000063e+23 | K143: 0 | M143: 0.1498423842 | O143: 18.14651608 | P143: 18.73909841 | Q143: 12.5 | S143: 3.16227766e-13 | T143: 0.0316227766 | U143: 0.0001327409937 | V143: 0.0419763879 | W143: 0.0421091289
A144: 12.6 | B144: 2.511886432e-13 | C144: 0.03981071706 | D144: 0.04987472037 | E144: 0.09999999975 | G144: 3.981071706e+15 | H144: 1.584893192e+23 | I144: 6309573444800688 | J144: 1.584893295e+23 | K144: 0 | M144: 0.1498747201 | O144: 18.96854372 | P144: 19.75500462 | Q144: 12.6 | S144: 2.511886432e-13 | T144: 0.03981071706 | U144: 0.0001046132759 | V144: 0.04164729526 | W144: 0.04175190854
A145: 12.7 | B145: 1.995262315e-13 | C145: 0.05011872336 | D145: 0.04990043554 | E145: 0.0999999998 | G145: 5011872336272399 | H145: 2.511886432e+23 | I145: 1.258925412e+16 | J145: 2.511886608e+23 | K145: 0 | M145: 0.1499004353 | O145: 20.00191587 | P145: 21.05727985 | Q145: 12.7 | S145: 1.995262315e-13 | T145: 0.05011872336 | U145: 8.224574239e-05 | V145: 0.04122051611 | W145: 0.04130276185
A146: 12.8 | B146: 1.584893192e-13 | C146: 0.06309573445 | D146: 0.04992088074 | E146: 0.09999999984 | G146: 6309573444801518 | H146: 3.981071706e+23 | I146: 2.511886432e+16 | J146: 3.98107202e+23 | K146: 0 | M146: 0.1499208806 | O146: 21.3016615 | P146: 22.73622 | Q146: 12.8 | S146: 1.584893192e-13 | T146: 0.06309573445 | U146: =($D$12-D146)*$C$2/($C$2+P146) -> 6.44628489e-05 | V146: 0.04067330796 | W146: 0.04073777081
A147: 12.9 | B147: =10^-A147 -> 1.258925412e-13 | C147: =10^-(14-A147) -> 0.07943282347 | D147: 0.04993713287 | E147: 0.09999999987 | G147: =10^($A147-G$11) -> 7943282347242286 | H147: 6.309573445e+23 | I147: 5.011872336e+16 | J147: =1+G147+H147+I147 -> 6.309574025e+23 | K147: =$G$12/J147*(G147+2*H147+3*I147) -> 0 | M147: =SUM(D147:F147)+K147 -> 0.1499371327 | O147: =(M147+C147-B147)*$C$2/$C$3 -> 22.93699562 | P147: =(M147+C147-B147)*$C$2/($C$3-C147+B147) -> 24.91615626 | Q147: =A147 -> 12.9 | S147: =B147 -> 1.258925412e-13 | T147: =C147 -> 0.07943282347 | U147: 5.032745759e-05 | V147: 0.03997652055 | W147: 0.040026848
A148: =A147+A$15 -> 13 | B148: 1e-13 | C148: 0.1 | D148: 0.04995004995 | E148: 0.0999999999 | G148: 9999999999999324 | H148: 1e+24 | I148: 1e+17 | J148: 1.00000011e+24 | K148: 0 | M148: 0.1499500499 | O148: 24.99500498 | P148: 27.77222776 | Q148: 13 | S148: 1e-13 | T148: 0.1 | U148: 3.909304144e-05 | V148: 0.03909304144 | W148: 0.03913213448
A149: 13.1 | B149: 7.943282347e-14 | C149: 0.1258925412 | D149: 0.04996031511 | E149: 0.09999999992 | G149: 1.258925412e+16 | H149: 1.584893192e+24 | I149: 1.995262315e+17 | J149: 1.584893405e+24 | K149: 0 | M149: 0.149960315 | O149: 27.58528562 | P149: 31.55823159 | Q149: 13.1 | S149: 7.943282347e-14 | T149: 0.1258925412 | U149: 3.016526479e-05 | V149: 0.03797581839 | W149: 0.03800598366
A150: 13.2 | B150: 6.309573445e-14 | C150: 0.1584893192 | D150: 0.04996847203 | E150: 0.09999999994 | G150: 1.584893192e+16 | H150: 2.511886432e+24 | I150: 3.981071706e+17 | J150: 2.511886845e+24 | K150: 0 | M150: 0.149968472 | O150: 30.84577912 | P150: 36.65524375 | Q150: 13.2 | S150: 6.309573445e-14 | T150: 0.1584893192 | U150: 2.307117792e-05 | V150: 0.03656535282 | W150: 0.036588424
A151: 13.3 | B151: 5.011872336e-14 | C151: 0.1995262315 | D151: 0.04997495319 | E151: 0.09999999995 | G151: 1.995262315e+16 | H151: 3.981071706e+24 | I151: 7.943282347e+17 | J151: 3.98107252e+24 | K151: 0 | M151: 0.1499749531 | O151: 34.95011846 | P151: 43.6617911 | Q151: 13.3 | S151: 5.011872336e-14 | T151: 0.1995262315 | U151: 1.743456513e-05 | V151: 0.03478653079 | W151: 0.03480396535
A152: 13.4 | B152: 3.981071706e-14 | C152: 0.2511886432 | D152: 0.04998010256 | E152: 0.09999999996 | G152: 2.511886432e+16 | H152: 6.309573445e+24 | I152: 1.584893192e+18 | J152: 6.309575055e+24 | K152: 0 | M152: 0.1499801025 | O152: 40.11687457 | P152: 53.57407336 | Q152: 13.4 | S152: 3.981071706e-14 | T152: 0.2511886432 | U152: 1.295624761e-05 | V152: 0.03254462258 | W152: 0.03255757883
A153: 13.5 | B153: 3.16227766e-14 | C153: 0.316227766 | D153: 0.04998419361 | E153: 0.09999999997 | G153: 3.16227766e+16 | H153: 1e+25 | I153: 3.16227766e+18 | J153: 1.000000319e+25 | K153: 0 | M153: 0.1499841936 | O153: 46.62119596 | P153: 68.18234734 | Q153: 13.5 | S153: 3.16227766e-14 | T153: 0.316227766 | U153: 9.398364413e-06 | V153: 0.02972023783 | W153: 0.02972963619
A154: 13.6 | B154: 2.511886432e-14 | C154: 0.3981071706 | D154: 0.04998744372 | E154: 0.09999999997 | G154: 3.981071706e+16 | H154: 1.584893192e+25 | I154: 6.309573445e+18 | J154: 1.584893827e+25 | K154: 0 | M154: 0.1499874437 | O154: 54.80946143 | P154: 91.06182819 | Q154: 13.6 | S154: 2.511886432e-14 | T154: 0.3981071706 | U154: 6.571840269e-06 | V154: 0.02616296735 | W154: 0.02616953919
A155: 13.7 | B155: 1.995262315e-14 | C155: 0.5011872336 | D155: 0.04999002568 | E155: 0.09999999998 | G155: 5.011872336e+16 | H155: 2.511886432e+25 | I155: 1.258925412e+19 | J155: 2.511887695e+25 | K155: 0 | M155: 0.1499900257 | O155: 65.11772593 | P155: 130.5454277 | Q155: 13.7 | S155: 1.995262315e-14 | T155: 0.5011872336 | U155: 4.326401758e-06 | V155: 0.02168337328 | W155: 0.02168769969
A156: 13.8 | B156: 1.584893192e-14 | C156: 0.6309573445 | D156: 0.04999207679 | E156: 0.09999999998 | G156: 6.309573445e+16 | H156: 3.981071706e+25 | I156: 2.511886432e+19 | J156: 3.981074224e+25 | K156: 0 | M156: 0.1499920768 | O156: 78.09494213 | P156: 211.6149474 | Q156: 13.8 | S156: 1.584893192e-14 | T156: 0.6309573445 | U156: 2.542628422e-06 | V156: 0.01604290077 | W156: 0.0160454434
A157: 13.9 | B157: 1.258925412e-14 | C157: 0.7943282347 | D157: 0.04999370617 | E157: 0.09999999999 | G157: 7.943282347e+16 | H157: 6.309573445e+25 | I157: 5.011872336e+19 | J157: 6.309578465e+25 | K157: 0 | M157: 0.1499937062 | O157: 94.43219409 | P157: 459.1402907 | Q157: 13.9 | S157: 1.258925412e-14 | T157: 0.7943282347 | U157: 1.125627113e-06 | V157: 0.008941173977 | W157: 0.008942299605
A158: 14 | B158: 1e-14 | C158: 1 | D158: 0.0499950005 | E158: 0.09999999999 | G158: 1e+17 | H158: =10^($A158-H$11)*G158 -> 1e+26 | I158: 1e+20 | J158: 1.000001001e+26 | K158: 0 | M158: 0.1499950005 | O158: 114.9995 | P158: 1.311049399e+15 | Q158: 14 | S158: 1e-14 | T158: 1 | U158: 3.813357493e-19 | V158: 3.813357493e-15 | W158: 3.813738829e-15
